"SERVICE_CODE","ORGANISATION_UNIT","EXPENDITURE_CATEGORY","EXPENDITURE_DESCRIPTION","EXPENDITURE_CODE","NARRATIVE","DATE","TRANSATION_CODE","NET_AMOUNT","SUPPLIER_CODE","SUPPLIER_NAME","FROM_DATE","TO_DATE","FINANCIAL_PERIOD_YEAR"
"P&V","FORMER LV LIDO SITE","PREMISES RELATED EXPENDITURE","GM MAIN CONTRACT SCHEDULED","2141","GLENDALE GROUNDS MANAGEMENT LI",11/1/2022 00:00:00,"257583",545.95,"GL0214","GLENDALE GROUNDS MANAGEMENT LIMITED",27/12/2021 00:00:00,30/1/2022 00:00:00,"P10-2022"
"P&V","FORMER LV LIDO SITE","PREMISES RELATED EXPENDITURE","GM MAIN CONTRACT SCHEDULED","2141","GLENDALE GROUNDS MANAGEMENT LI",18/1/2022 00:00:00,"258140",134.3,"GL0214","GLENDALE GROUNDS MANAGEMENT LIMITED",27/12/2021 00:00:00,30/1/2022 00:00:00,"P10-2022"
,"LEE VALLEY ATHLETICS CENTRE","PREMISES RELATED EXPENDITURE","GM MAIN CONTRACT SCHEDULED","2141","GLENDALE GROUNDS MANAGEMENT LI",11/1/2022 00:00:00,"257583",327.6,"GL0214","GLENDALE GROUNDS MANAGEMENT LIMITED",27/12/2021 00:00:00,30/1/2022 00:00:00,"P10-2022"
,"LEE VALLEY ATHLETICS CENTRE","PREMISES RELATED EXPENDITURE","GM MAIN CONTRACT SCHEDULED","2141","GLENDALE GROUNDS MANAGEMENT LI",18/1/2022 00:00:00,"258140",140.16,"GL0214","GLENDALE GROUNDS MANAGEMENT LIMITED",27/12/2021 00:00:00,30/1/2022 00:00:00,"P10-2022"
,"LEE VALLEY WHITE WATER CENTRE","PREMISES RELATED EXPENDITURE","GM MAIN CONTRACT SCHEDULED","2141","GLENDALE GROUNDS MANAGEMENT LI",11/1/2022 00:00:00,"257583",1406.46,"GL0214","GLENDALE GROUNDS MANAGEMENT LIMITED",27/12/2021 00:00:00,30/1/2022 00:00:00,"P10-2022"
,"LEE VALLEY WHITE WATER CENTRE","PREMISES RELATED EXPENDITURE","GM MAIN CONTRACT SCHEDULED","2141","GLENDALE GROUNDS MANAGEMENT LI",18/1/2022 00:00:00,"258140",517.63,"GL0214","GLENDALE GROUNDS MANAGEMENT LIMITED",27/12/2021 00:00:00,30/1/2022 00:00:00,"P10-2022"
,"LEE VALLEY WATERWORKS CENTRE","PREMISES RELATED EXPENDITURE","GM HORTICULTURE SCHEDULED","2143","GLENDALE GROUNDS MANAGEMENT LI",11/1/2022 00:00:00,"257583",83.42,"GL0214","GLENDALE GROUNDS MANAGEMENT LIMITED",27/12/2021 00:00:00,30/1/2022 00:00:00,"P10-2022"
"P&V","NORTH AREA RANGERS","PREMISES RELATED EXPENDITURE","GM HORTICULTURE SCHEDULED","2143","GLENDALE GROUNDS MANAGEMENT LI",11/1/2022 00:00:00,"257583",124.03,"GL0214","GLENDALE GROUNDS MANAGEMENT LIMITED",27/12/2021 00:00:00,30/1/2022 00:00:00,"P10-2022"
"P&V","SOUTH AREA RANGERS","PREMISES RELATED EXPENDITURE","GM HORTICULTURE SCHEDULED","2143","GLENDALE GROUNDS MANAGEMENT LI",11/1/2022 00:00:00,"257583",71.11,"GL0214","GLENDALE GROUNDS MANAGEMENT LIMITED",27/12/2021 00:00:00,30/1/2022 00:00:00,"P10-2022"
"P&V","ABBEY GARDENS","PREMISES RELATED EXPENDITURE","GM HORTICULTURE SCHEDULED","2143","GLENDALE GROUNDS MANAGEMENT LI",11/1/2022 00:00:00,"257583",969.08,"GL0214","GLENDALE GROUNDS MANAGEMENT LIMITED",27/12/2021 00:00:00,30/1/2022 00:00:00,"P10-2022"
"P&V","GUNPOWDER PARK","PREMISES RELATED EXPENDITURE","GM HORTICULTURE SCHEDULED","2143","GLENDALE GROUNDS MANAGEMENT LI",11/1/2022 00:00:00,"257583",127.21,"GL0214","GLENDALE GROUNDS MANAGEMENT LIMITED",27/12/2021 00:00:00,30/1/2022 00:00:00,"P10-2022"
"P&V","RIVER LEE COUNTRY PARK","PREMISES RELATED EXPENDITURE","GM HORTICULTURE SCHEDULED","2143","GLENDALE GROUNDS MANAGEMENT LI",11/1/2022 00:00:00,"257583",66.01,"GL0214","GLENDALE GROUNDS MANAGEMENT LIMITED",27/12/2021 00:00:00,30/1/2022 00:00:00,"P10-2022"
,"LEE VALLEY VELOPARK","PREMISES RELATED EXPENDITURE","GM HORTICULTURE SCHEDULED","2143","GLENDALE GROUNDS MANAGEMENT LI",11/1/2022 00:00:00,"257583",550,"GL0214","GLENDALE GROUNDS MANAGEMENT LIMITED",27/12/2021 00:00:00,30/1/2022 00:00:00,"P10-2022"
,"LV HOCKEY AND TENNIS CENTRE","PREMISES RELATED EXPENDITURE","GM HORTICULTURE SCHEDULED","2143","GLENDALE GROUNDS MANAGEMENT LI",11/1/2022 00:00:00,"257583",696.85,"GL0214","GLENDALE GROUNDS MANAGEMENT LIMITED",27/12/2021 00:00:00,30/1/2022 00:00:00,"P10-2022"
"P&V","THREE MILLS","PREMISES RELATED EXPENDITURE","GM HORTICULTURE SCHEDULED","2143","GLENDALE GROUNDS MANAGEMENT LI",11/1/2022 00:00:00,"257583",26.45,"GL0214","GLENDALE GROUNDS MANAGEMENT LIMITED",27/12/2021 00:00:00,30/1/2022 00:00:00,"P10-2022"
,"LEE VALLEY RIDING CENTRE","PREMISES RELATED EXPENDITURE","GM HORTICULTURE SCHEDULED","2143","GLENDALE GROUNDS MANAGEMENT LI",11/1/2022 00:00:00,"257583",6.61,"GL0214","GLENDALE GROUNDS MANAGEMENT LIMITED",27/12/2021 00:00:00,30/1/2022 00:00:00,"P10-2022"
"P&V","FORMER LV LIDO SITE","PREMISES RELATED EXPENDITURE","GM HORTICULTURE SCHEDULED","2143","GLENDALE GROUNDS MANAGEMENT LI",11/1/2022 00:00:00,"257583",6.31,"GL0214","GLENDALE GROUNDS MANAGEMENT LIMITED",27/12/2021 00:00:00,30/1/2022 00:00:00,"P10-2022"
,"LEE VALLEY WHITE WATER CENTRE","PREMISES RELATED EXPENDITURE","GM HORTICULTURE SCHEDULED","2143","GLENDALE GROUNDS MANAGEMENT LI",11/1/2022 00:00:00,"257583",3.79,"GL0214","GLENDALE GROUNDS MANAGEMENT LIMITED",27/12/2021 00:00:00,30/1/2022 00:00:00,"P10-2022"
"P&V","EAST INDIA DOCK AND BOW CREEK","PREMISES RELATED EXPENDITURE","GM ARBORICULTURE UNSCHEDULED","2146","P116059-SERVICE-Tree Works - East India Dock Basin",30/1/2022 00:00:00,"258500",225,"PA0222","PARKIN & PARKER TREE SPECIALISTS",27/12/2021 00:00:00,30/1/2022 00:00:00,"P10-2022"
"P&V","NORTH AREA RANGERS","PREMISES RELATED EXPENDITURE","GM ARBORICULTURE UNSCHEDULED","2146","P115431-SERVICE-Tree Works at Silvermeade",6/1/2022 00:00:00,"257513",895,"MU0030","P J MUSK TREES",27/12/2021 00:00:00,30/1/2022 00:00:00,"P10-2022"
"P&V","NORTH AREA RANGERS","PREMISES RELATED EXPENDITURE","GM ARBORICULTURE UNSCHEDULED","2146","P115736-SERVICE-Tree Works - Stanstead Innings Banjo Lake",26/1/2022 00:00:00,"258392",675,"VE0004","PRINCIPAL TREES LTD",27/12/2021 00:00:00,30/1/2022 00:00:00,"P10-2022"
"P&V","NORTH AREA RANGERS","PREMISES RELATED EXPENDITURE","GM ARBORICULTURE UNSCHEDULED","2146","P115736-SERVICE-Tree Works - Stanstead Innings Banjo Lake",26/1/2022 00:00:00,"258392",1500,"VE0004","PRINCIPAL TREES LTD",27/12/2021 00:00:00,30/1/2022 00:00:00,"P10-2022"
"P&V","NORTH AREA RANGERS","PREMISES RELATED EXPENDITURE","GM ARBORICULTURE UNSCHEDULED","2146","P115736-SERVICE-Tree Works - Stanstead Innings Stock Pit",26/1/2022 00:00:00,"258392",320,"VE0004","PRINCIPAL TREES LTD",27/12/2021 00:00:00,30/1/2022 00:00:00,"P10-2022"
"P&V","NORTH AREA RANGERS","PREMISES RELATED EXPENDITURE","GM ARBORICULTURE UNSCHEDULED","2146","P115736-SERVICE-Tree Works - Stanstead Innings Stock Pit",26/1/2022 00:00:00,"258392",195,"VE0004","PRINCIPAL TREES LTD",27/12/2021 00:00:00,30/1/2022 00:00:00,"P10-2022"
"P&V","NORTH AREA RANGERS","PREMISES RELATED EXPENDITURE","GM ARBORICULTURE UNSCHEDULED","2146","P115736-SERVICE-Tree Works - Stanstead Innings Stock Pit",26/1/2022 00:00:00,"258392",2200,"VE0004","PRINCIPAL TREES LTD",27/12/2021 00:00:00,30/1/2022 00:00:00,"P10-2022"
"P&V","ABBEY GARDENS","PREMISES RELATED EXPENDITURE","GM ARBORICULTURE UNSCHEDULED","2146","P115891-SERVICE-Tree Works - Cornmill Meadows",26/1/2022 00:00:00,"258390",1830,"VE0004","PRINCIPAL TREES LTD",27/12/2021 00:00:00,30/1/2022 00:00:00,"P10-2022"
"P&V","ABBEY GARDENS","PREMISES RELATED EXPENDITURE","GM ARBORICULTURE UNSCHEDULED","2146","P115893-SERVICE-Tree Works - Tree Park at Cornmill Meadows",26/1/2022 00:00:00,"258391",425,"VE0004","PRINCIPAL TREES LTD",27/12/2021 00:00:00,30/1/2022 00:00:00,"P10-2022"
"P&V","RIVER LEE COUNTRY PARK","PREMISES RELATED EXPENDITURE","GM ARBORICULTURE UNSCHEDULED","2146","P115821-SERVICE-Tree Works - Bowyers",26/1/2022 00:00:00,"258386",1950,"VE0004","PRINCIPAL TREES LTD",27/12/2021 00:00:00,30/1/2022 00:00:00,"P10-2022"
"P&V","RIVER LEE COUNTRY PARK","PREMISES RELATED EXPENDITURE","GM ARBORICULTURE UNSCHEDULED","2146","P115819-SERVICE-Tree Works - Thistly Marsh",26/1/2022 00:00:00,"258387",795,"VE0004","PRINCIPAL TREES LTD",27/12/2021 00:00:00,30/1/2022 00:00:00,"P10-2022"
"P&V","RIVER LEE COUNTRY PARK","PREMISES RELATED EXPENDITURE","GM ARBORICULTURE UNSCHEDULED","2146","P115822-SERVICE-Tree Works - Hooks Marsh",26/1/2022 00:00:00,"258388",125,"VE0004","PRINCIPAL TREES LTD",27/12/2021 00:00:00,30/1/2022 00:00:00,"P10-2022"
"P&V","RIVER LEE COUNTRY PARK","PREMISES RELATED EXPENDITURE","GM ARBORICULTURE UNSCHEDULED","2146","P115651-SERVICE-Re-Pollard Poplars at Pindar",26/1/2022 00:00:00,"258389",3450,"VE0004","PRINCIPAL TREES LTD",27/12/2021 00:00:00,30/1/2022 00:00:00,"P10-2022"
"P&V","RIVER LEE COUNTRY PARK","PREMISES RELATED EXPENDITURE","GM ARBORICULTURE UNSCHEDULED","2146","P115817-SERVICE-Tree Works - Turners Hill",30/1/2022 00:00:00,"258660",2385,"MU0030","P J MUSK TREES",27/12/2021 00:00:00,30/1/2022 00:00:00,"P10-2022"
"P&V","SOUTH AREA RANGERS","PREMISES RELATED EXPENDITURE","HABITAT MANAGEMENT WORKS","2149","P115799-SERVICE-Tree Works at Lee Park Way",30/1/2022 00:00:00,"258501",300,"PA0222","PARKIN & PARKER TREE SPECIALISTS",27/12/2021 00:00:00,30/1/2022 00:00:00,"P10-2022"
"P&V","SOUTH AREA RANGERS","PREMISES RELATED EXPENDITURE","HABITAT MANAGEMENT WORKS","2149","P115799-SERVICE-Tree Works at Lee Park Way",30/1/2022 00:00:00,"258501",575,"PA0222","PARKIN & PARKER TREE SPECIALISTS",27/12/2021 00:00:00,30/1/2022 00:00:00,"P10-2022"
"P&V","GUNPOWDER PARK","PREMISES RELATED EXPENDITURE","HABITAT MANAGEMENT WORKS","2149","P114567-SERVICE-De-Silt Black Ditch - Gunpowder Park",17/1/2022 00:00:00,"257887",6710,"FA0099","FARM & COUNTRY SUPPLIES LTD",27/12/2021 00:00:00,30/1/2022 00:00:00,"P10-2022"
"P&V","GUNPOWDER PARK","PREMISES RELATED EXPENDITURE","HABITAT MANAGEMENT WORKS","2149","P115675-SERVICE-Tree Works at Gunpowder Park and Sewardstone",30/1/2022 00:00:00,"257906",995,"PA0222","PARKIN & PARKER TREE SPECIALISTS",27/12/2021 00:00:00,30/1/2022 00:00:00,"P10-2022"
,"LEE VALLEY MARINA SPRINGFIELD","PREMISES RELATED EXPENDITURE","GENERAL WASTE","2211","P115394-SERVICE-Nov,Dec, General waste & Recyling",17/1/2022 00:00:00,"257866",1254.58,"CL0037","VEOLIA ES (UK) LTD",27/12/2021 00:00:00,30/1/2022 00:00:00,"P10-2022"
,"LEE VALLEY MARINA STANSTEAD","PREMISES RELATED EXPENDITURE","GENERAL WASTE","2211","P112012-SERVICE-Annual waste removal RH &SA moorings",6/1/2022 00:00:00,"257609",139.5,"CL0037","VEOLIA ES (UK) LTD",27/12/2021 00:00:00,30/1/2022 00:00:00,"P10-2022"
,"LEE VALLEY MARINA STANSTEAD","PREMISES RELATED EXPENDITURE","GENERAL WASTE","2211","P112012-SERVICE-Annual waste removal RH &SA moorings",10/1/2022 00:00:00,"257754",438,"CL0037","VEOLIA ES (UK) LTD",27/12/2021 00:00:00,30/1/2022 00:00:00,"P10-2022"
,"LEE VALLEY MARINA STANSTEAD","PREMISES RELATED EXPENDITURE","GENERAL WASTE","2211","P112012-SERVICE-Annual waste removal RH &SA moorings",17/1/2022 00:00:00,"257859",13.47,"CL0037","VEOLIA ES (UK) LTD",27/12/2021 00:00:00,30/1/2022 00:00:00,"P10-2022"
,"LEE VALLEY MARINA STANSTEAD","PREMISES RELATED EXPENDITURE","GENERAL WASTE","2211","P112012-SERVICE-Annual waste removal RH &SA moorings",17/1/2022 00:00:00,"257862",11.16,"CL0037","VEOLIA ES (UK) LTD",27/12/2021 00:00:00,30/1/2022 00:00:00,"P10-2022"
,"LEE VALLEY MARINA STANSTEAD","PREMISES RELATED EXPENDITURE","GENERAL WASTE","2211","P112012-SERVICE-Annual waste removal RH &SA moorings",17/1/2022 00:00:00,"257867",15.5,"CL0037","VEOLIA ES (UK) LTD",27/12/2021 00:00:00,30/1/2022 00:00:00,"P10-2022"
,"LEE VALLEY CAMPSITE","PREMISES RELATED EXPENDITURE","GENERAL WASTE","2211","P115965-SERVICE-Dec 21 Skip Collection",17/1/2022 00:00:00,"257611",926.45,"CL0037","VEOLIA ES (UK) LTD",27/12/2021 00:00:00,30/1/2022 00:00:00,"P10-2022"
,"LEE VALLEY CAMPSITE","PREMISES RELATED EXPENDITURE","GENERAL WASTE","2211","P115965-SERVICE-Dec 21 duty of care  & rental",17/1/2022 00:00:00,"257860",42.05,"CL0037","VEOLIA ES (UK) LTD",27/12/2021 00:00:00,30/1/2022 00:00:00,"P10-2022"
,"LEE VALLEY CAMPSITE","PREMISES RELATED EXPENDITURE","GENERAL WASTE","2211","P115965-SERVICE-Dec 21 Skip Collection",17/1/2022 00:00:00,"257921",-469.31,"CL0037","VEOLIA ES (UK) LTD",27/12/2021 00:00:00,30/1/2022 00:00:00,"P10-2022"
,"LEE VALLEY CARAVAN PARK","PREMISES RELATED EXPENDITURE","GENERAL WASTE","2211","P116007-SERVICE-Rubbish collection",11/1/2022 00:00:00,"257610",438.24,"CL0037","VEOLIA ES (UK) LTD",27/12/2021 00:00:00,30/1/2022 00:00:00,"P10-2022"
,"LEE VALLEY CARAVAN PARK","PREMISES RELATED EXPENDITURE","GENERAL WASTE","2211","P116089-SERVICE-Skip rental/care",18/1/2022 00:00:00,"257861",20.97,"CL0037","VEOLIA ES (UK) LTD",27/12/2021 00:00:00,30/1/2022 00:00:00,"P10-2022"
"P&V","NORTH AREA RANGERS","PREMISES RELATED EXPENDITURE","GENERAL WASTE","2211","P115673-SERVICE-Removal - Used Engine Oil and Paint",6/1/2022 00:00:00,"257638",180,"MK0465","M K CLEANING & MAINTENANCE LTD",27/12/2021 00:00:00,30/1/2022 00:00:00,"P10-2022"
"P&V","NORTH AREA RANGERS","PREMISES RELATED EXPENDITURE","GENERAL WASTE","2211","P115673-SERVICE-Waste Removel from Farm",6/1/2022 00:00:00,"257638",900,"MK0465","M K CLEANING & MAINTENANCE LTD",27/12/2021 00:00:00,30/1/2022 00:00:00,"P10-2022"
"P&V","NORTH AREA RANGERS","PREMISES RELATED EXPENDITURE","GENERAL WASTE","2211","P115673-SERVICE-Removal - 150 x Tyres at Farm",6/1/2022 00:00:00,"257638",405,"MK0465","M K CLEANING & MAINTENANCE LTD",27/12/2021 00:00:00,30/1/2022 00:00:00,"P10-2022"
"P&V","NORTH AREA RANGERS","PREMISES RELATED EXPENDITURE","GENERAL WASTE","2211","P115673-SERVICE-Removal - Asbestos Tank",6/1/2022 00:00:00,"257638",150,"MK0465","M K CLEANING & MAINTENANCE LTD",27/12/2021 00:00:00,30/1/2022 00:00:00,"P10-2022"
"P&V","SOUTH AREA RANGERS","EMPLOYEES","APPOINTMENT EXPENSES","1301","P115876-SERVICE-RANGER ADVERTS COSTS",17/1/2022 00:00:00,"257858",337.55,"SA0133","SOWERBY ADVERTISING AND COMMUNICATIONS",27/12/2021 00:00:00,30/1/2022 00:00:00,"P10-2022"
"P&V","RIVER LEE COUNTRY PARK","EMPLOYEES","APPOINTMENT EXPENSES","1301","P115876-SERVICE-RANGER ADVERT COSTS",17/1/2022 00:00:00,"257858",337.55,"SA0133","SOWERBY ADVERTISING AND COMMUNICATIONS",27/12/2021 00:00:00,30/1/2022 00:00:00,"P10-2022"
,"LEE VALLEY WHITE WATER CENTRE","EMPLOYEES","APPOINTMENT EXPENSES","1301","BRITISH CANOEING",30/1/2022 00:00:00,"258633",104.17,"BR0580","BRITISH CANOEING",27/12/2021 00:00:00,30/1/2022 00:00:00,"P10-2022"
,"LEE VALLEY WHITE WATER CENTRE","EMPLOYEES","APPOINTMENT EXPENSES","1301","BRITISH CANOEING",30/1/2022 00:00:00,"258651",-104.17,"BR0580","BRITISH CANOEING",27/12/2021 00:00:00,30/1/2022 00:00:00,"P10-2022"
,"LEE VALLEY WHITE WATER CENTRE","EMPLOYEES","APPOINTMENT EXPENSES","1301","P116250-SERVICE-SNR INSTRUCTOR ADVERT COSTS",30/1/2022 00:00:00,"258689",730,"SA0133","SOWERBY ADVERTISING AND COMMUNICATIONS",27/12/2021 00:00:00,30/1/2022 00:00:00,"P10-2022"
"P&V","SOUTH AREA RANGERS","EMPLOYEES","TRAINING EXPENSES","1305","P115863-SERVICE-1 Day Brush Cutter Training",6/1/2022 00:00:00,"257511",490,"SA0137","SAFFRON WALDEN AGRICULTURAL TRAINING GROUP",27/12/2021 00:00:00,30/1/2022 00:00:00,"P10-2022"
"P&V","ALMOST WILD CAMPSITE","EMPLOYEES","TRAINING EXPENSES","1305","P115643-SERVICE-BUSH CRAFT COURSE",5/1/2022 00:00:00,"256617",180,"LE0468","LEARN OUTDOORS LTD",27/12/2021 00:00:00,30/1/2022 00:00:00,"P10-2022"
"R&B","NON DISTRIBUTED COSTS","EMPLOYEES","SUPERANNUATION ADDED YEARS","1310","LONDON PENSIONS FUND AUTHORITY",6/1/2022 00:00:00,"257539",5322.66,"LO0031","LONDON PENSIONS FUND AUTHORITY",27/12/2021 00:00:00,30/1/2022 00:00:00,"P10-2022"
"P&V","MYDDELTON HOUSE GARDENS","EMPLOYEES","CRB CHECKS","1330","DBS CHECK",10/1/2022 00:00:00,"257752",17,"DD0119","DUE DILIGENCE CHECKING LIMITED",27/12/2021 00:00:00,30/1/2022 00:00:00,"P10-2022"
"P&V","MYDDELTON HOUSE GARDENS","EMPLOYEES","CRB CHECKS","1330","SERVICE CHARGE",10/1/2022 00:00:00,"257752",18,"DD0119","DUE DILIGENCE CHECKING LIMITED",27/12/2021 00:00:00,30/1/2022 00:00:00,"P10-2022"
"P&V","SOUTH AREA RANGERS","EMPLOYEES","CRB CHECKS","1330","DBS CHECK",10/1/2022 00:00:00,"257752",18,"DD0119","DUE DILIGENCE CHECKING LIMITED",27/12/2021 00:00:00,30/1/2022 00:00:00,"P10-2022"
"P&V","BIODIVERSITY ACTION PLAN","EMPLOYEES","CRB CHECKS","1330","DBS CHECK",10/1/2022 00:00:00,"257752",18,"DD0119","DUE DILIGENCE CHECKING LIMITED",27/12/2021 00:00:00,30/1/2022 00:00:00,"P10-2022"
,"LEE VALLEY VELOPARK","EMPLOYEES","CRB CHECKS","1330","SERVICE CHARGE",10/1/2022 00:00:00,"257752",18,"DD0119","DUE DILIGENCE CHECKING LIMITED",27/12/2021 00:00:00,30/1/2022 00:00:00,"P10-2022"
,"LV LEISURE CENTRE CAMPSITE","EMPLOYEES","CRB CHECKS","1330","DBS CHECK",10/1/2022 00:00:00,"257752",18,"DD0119","DUE DILIGENCE CHECKING LIMITED",27/12/2021 00:00:00,30/1/2022 00:00:00,"P10-2022"
,"LEE VALLEY ATHLETICS CENTRE","EMPLOYEES","CRB CHECKS","1330","DBS CHECKS",10/1/2022 00:00:00,"257753",36,"DD0119","DUE DILIGENCE CHECKING LIMITED",27/12/2021 00:00:00,30/1/2022 00:00:00,"P10-2022"
"R&B","CORPORATE TRAINING","EMPLOYEES","APPRENTICE LEVY","1390","HMRC",6/1/2022 00:00:00,"256696",1798,"HM0368","HMRC",27/12/2021 00:00:00,30/1/2022 00:00:00,"P10-2022"
"R&B","CORPORATE TRAINING","EMPLOYEES","APPRENTICE LEVY","1390","PAYE",17/1/2022 00:00:00,"257836",1839,"HM0368","HMRC",27/12/2021 00:00:00,30/1/2022 00:00:00,"P10-2022"
"CEO","LVLC SERVICE CHARGE","PREMISES RELATED EXPENDITURE","SCHEDULED GROUND MAINTENANCE","2111","GLENDALE GROUNDS MANAGEMENT LI",11/1/2022 00:00:00,"257583",1483.59,"GL0214","GLENDALE GROUNDS MANAGEMENT LIMITED",27/12/2021 00:00:00,30/1/2022 00:00:00,"P10-2022"
"CEO","LVLC SERVICE CHARGE","PREMISES RELATED EXPENDITURE","SCHEDULED GROUND MAINTENANCE","2111","GLENDALE GROUNDS MANAGEMENT LI",11/1/2022 00:00:00,"257583",54.13,"GL0214","GLENDALE GROUNDS MANAGEMENT LIMITED",27/12/2021 00:00:00,30/1/2022 00:00:00,"P10-2022"
"CEO","LVLC SERVICE CHARGE","PREMISES RELATED EXPENDITURE","SCHEDULED GROUND MAINTENANCE","2111","GLENDALE GROUNDS MANAGEMENT LI",18/1/2022 00:00:00,"258140",121.4,"GL0214","GLENDALE GROUNDS MANAGEMENT LIMITED",27/12/2021 00:00:00,30/1/2022 00:00:00,"P10-2022"
"P&V","MYDDELTON HOUSE","PREMISES RELATED EXPENDITURE","CONTRACT CLEANING","2120","P112094-SERVICE-Myddelton House Cleaning Contract",25/1/2022 00:00:00,"258142",2908.62,"BR0632","BRITANNIA SERVICES GROUP LTD",27/12/2021 00:00:00,30/1/2022 00:00:00,"P10-2022"
,"LEE VALLEY CAMPSITE","PREMISES RELATED EXPENDITURE","CONTRACT CLEANING","2120","P115903-SERVICE-CARPET STAIN AT STATIC AT SEWARDSTONE",6/1/2022 00:00:00,"256547",50,"LI0305","LIMPIAR CLEANING",27/12/2021 00:00:00,30/1/2022 00:00:00,"P10-2022"
,"LEE VALLEY CAMPSITE","PREMISES RELATED EXPENDITURE","CONTRACT CLEANING","2120","P115994-SERVICE-Monthly clean Dec 21",18/1/2022 00:00:00,"257855",994.5,"LI0305","LIMPIAR CLEANING",27/12/2021 00:00:00,30/1/2022 00:00:00,"P10-2022"
,"LEE VALLEY CARAVAN PARK","PREMISES RELATED EXPENDITURE","CONTRACT CLEANING","2120","P115877-SERVICE-Cleaning Contract",11/1/2022 00:00:00,"257545",120,"LI0305","LIMPIAR CLEANING",27/12/2021 00:00:00,30/1/2022 00:00:00,"P10-2022"
,"LEE VALLEY CARAVAN PARK","PREMISES RELATED EXPENDITURE","CONTRACT CLEANING","2120","P115992-SERVICE-Contract Cleaning",17/1/2022 00:00:00,"257857",1930.5,"LI0305","LIMPIAR CLEANING",27/12/2021 00:00:00,30/1/2022 00:00:00,"P10-2022"
,"LEE VALLEY CARAVAN PARK","PREMISES RELATED EXPENDITURE","CONTRACT CLEANING","2120","P116288-SERVICE-Linnen Cleaning",30/1/2022 00:00:00,"258609",544.25,"JO0168","JOHNSON STALBRIDGE LINEN SERVICES",27/12/2021 00:00:00,30/1/2022 00:00:00,"P10-2022"
,"LEE VALLEY CARAVAN PARK","PREMISES RELATED EXPENDITURE","CONTRACT CLEANING","2120","P116291-SERVICE-AMW Hire of Poo Scoop",30/1/2022 00:00:00,"258637",125,"HE0454","HERTS TOOL CO",27/12/2021 00:00:00,30/1/2022 00:00:00,"P10-2022"
"P&V","NORTH AREA RANGERS","PREMISES RELATED EXPENDITURE","CONTRACT CLEANING","2120","GLENDALE GROUNDS MANAGEMENT LI",11/1/2022 00:00:00,"257583",197.98,"GL0214","GLENDALE GROUNDS MANAGEMENT LIMITED",27/12/2021 00:00:00,30/1/2022 00:00:00,"P10-2022"
"P&V","GUNPOWDER PARK","PREMISES RELATED EXPENDITURE","CONTRACT CLEANING","2120","GLENDALE GROUNDS MANAGEMENT LI",11/1/2022 00:00:00,"257583",271.09,"GL0214","GLENDALE GROUNDS MANAGEMENT LIMITED",27/12/2021 00:00:00,30/1/2022 00:00:00,"P10-2022"
"P&V","RIVER LEE COUNTRY PARK","PREMISES RELATED EXPENDITURE","CONTRACT CLEANING","2120","GLENDALE GROUNDS MANAGEMENT LI",11/1/2022 00:00:00,"257583",542.17,"GL0214","GLENDALE GROUNDS MANAGEMENT LIMITED",27/12/2021 00:00:00,30/1/2022 00:00:00,"P10-2022"
,"LEE VALLEY VELOPARK","PREMISES RELATED EXPENDITURE","CONTRACT CLEANING","2120","P115968-SERVICE-Contract Cleaning 12 Dec",12/1/2022 00:00:00,"257497",1204.35,"CA0498","CASNA GROUP",27/12/2021 00:00:00,30/1/2022 00:00:00,"P10-2022"
,"LEE VALLEY VELOPARK","PREMISES RELATED EXPENDITURE","CONTRACT CLEANING","2120","P115973-SERVICE-Contract Cleaning 19 Dec",12/1/2022 00:00:00,"257575",1310.55,"CA0498","CASNA GROUP",27/12/2021 00:00:00,30/1/2022 00:00:00,"P10-2022"
,"LEE VALLEY VELOPARK","PREMISES RELATED EXPENDITURE","CONTRACT CLEANING","2120","P115977-SERVICE-Window Cleaning Nov",12/1/2022 00:00:00,"257628",713.13,"ELI0362","ELITE SUPPORT SERVICES (LONDON) LIMITED",27/12/2021 00:00:00,30/1/2022 00:00:00,"P10-2022"
,"LEE VALLEY VELOPARK","PREMISES RELATED EXPENDITURE","CONTRACT CLEANING","2120","P115979-SERVICE-Contract Cleaning 26 Dec",12/1/2022 00:00:00,"257635",406.98,"CA0498","CASNA GROUP",27/12/2021 00:00:00,30/1/2022 00:00:00,"P10-2022"
,"LEE VALLEY VELOPARK","PREMISES RELATED EXPENDITURE","CONTRACT CLEANING","2120","P116223-SERVICE-Contract Cleaning 9 Jan",30/1/2022 00:00:00,"258419",601.56,"CA0498","CASNA GROUP",27/12/2021 00:00:00,30/1/2022 00:00:00,"P10-2022"
,"LEE VALLEY VELOPARK","PREMISES RELATED EXPENDITURE","CONTRACT CLEANING","2120","P116298-SERVICE-Contract Cleaning 16 Jan",30/1/2022 00:00:00,"258471",601.56,"CA0498","CASNA GROUP",27/12/2021 00:00:00,30/1/2022 00:00:00,"P10-2022"
,"LV LEISURE CENTRE CAMPSITE","PREMISES RELATED EXPENDITURE","CONTRACT CLEANING","2120","P116064-SERVICE-Monthly clean",18/1/2022 00:00:00,"257856",1014,"LI0305","LIMPIAR CLEANING",27/12/2021 00:00:00,30/1/2022 00:00:00,"P10-2022"
,"LV LEISURE CENTRE CAMPSITE","PREMISES RELATED EXPENDITURE","CONTRACT CLEANING","2120","P116136-SERVICE-Pest Control",25/1/2022 00:00:00,"258117",70,"VE0006","VERMINATE CITY & RURAL PEST CONTROL LTD",27/12/2021 00:00:00,30/1/2022 00:00:00,"P10-2022"
,"LEE VALLEY RIDING CENTRE","PREMISES RELATED EXPENDITURE","CLEANING CONTRACT","2121","P113893-SERVICE-centre cleaning august 21 - dec 21",7/1/2022 00:00:00,"257577",1082.01,"MA0015","MAYFAIR CLEANING COMPANY LIMITED",27/12/2021 00:00:00,30/1/2022 00:00:00,"P10-2022"
,"LEE VALLEY WHITE WATER CENTRE","PREMISES RELATED EXPENDITURE","CLEANING CONTRACT","2121","P115322-SERVICE-November to Jan Contract Cleaning",10/1/2022 00:00:00,"257498",843.86,"CA0498","CASNA GROUP",27/12/2021 00:00:00,30/1/2022 00:00:00,"P10-2022"
,"LEE VALLEY WHITE WATER CENTRE","PREMISES RELATED EXPENDITURE","CLEANING CONTRACT","2121","P115322-SERVICE-November to Jan Contract Cleaning",10/1/2022 00:00:00,"257576",559.79,"CA0498","CASNA GROUP",27/12/2021 00:00:00,30/1/2022 00:00:00,"P10-2022"
,"LEE VALLEY WHITE WATER CENTRE","PREMISES RELATED EXPENDITURE","CLEANING CONTRACT","2121","P115322-SERVICE-November to Jan Contract Cleaning",30/1/2022 00:00:00,"258472",601.56,"CA0498","CASNA GROUP",27/12/2021 00:00:00,30/1/2022 00:00:00,"P10-2022"
,"LEE VALLEY WHITE WATER CENTRE","PREMISES RELATED EXPENDITURE","CLEANING CONTRACT","2121","P116001-SERVICE-Deep Floor Clean Quote CAS2022",30/1/2022 00:00:00,"258489",264,"CA0630","CAS CARPET CARE",27/12/2021 00:00:00,30/1/2022 00:00:00,"P10-2022"
,"LEE VALLEY MARINA STANSTEAD","PREMISES RELATED EXPENDITURE","GM MAIN CONTRACT SCHEDULED","2141","GLENDALE GROUNDS MANAGEMENT LI",11/1/2022 00:00:00,"257583",189.21,"GL0214","GLENDALE GROUNDS MANAGEMENT LIMITED",27/12/2021 00:00:00,30/1/2022 00:00:00,"P10-2022"
,"LEE VALLEY MARINA STANSTEAD","PREMISES RELATED EXPENDITURE","GM MAIN CONTRACT SCHEDULED","2141","GLENDALE GROUNDS MANAGEMENT LI",18/1/2022 00:00:00,"258140",93.41,"GL0214","GLENDALE GROUNDS MANAGEMENT LIMITED",27/12/2021 00:00:00,30/1/2022 00:00:00,"P10-2022"
,"LEE VALLEY WATERWORKS CENTRE","PREMISES RELATED EXPENDITURE","GM MAIN CONTRACT SCHEDULED","2141","GLENDALE GROUNDS MANAGEMENT LI",18/1/2022 00:00:00,"257582",8238.3,"GL0214","GLENDALE GROUNDS MANAGEMENT LIMITED",27/12/2021 00:00:00,30/1/2022 00:00:00,"P10-2022"
,"LEE VALLEY WATERWORKS CENTRE","PREMISES RELATED EXPENDITURE","GM MAIN CONTRACT SCHEDULED","2141","GLENDALE GROUNDS MANAGEMENT LI",11/1/2022 00:00:00,"257583",250.67,"GL0214","GLENDALE GROUNDS MANAGEMENT LIMITED",27/12/2021 00:00:00,30/1/2022 00:00:00,"P10-2022"
,"LEE VALLEY WATERWORKS CENTRE","PREMISES RELATED EXPENDITURE","GM MAIN CONTRACT SCHEDULED","2141","GLENDALE GROUNDS MANAGEMENT LI",11/1/2022 00:00:00,"257583",126.23,"GL0214","GLENDALE GROUNDS MANAGEMENT LIMITED",27/12/2021 00:00:00,30/1/2022 00:00:00,"P10-2022"
,"LEE VALLEY WATERWORKS CENTRE","PREMISES RELATED EXPENDITURE","GM MAIN CONTRACT SCHEDULED","2141","GLENDALE GROUNDS MANAGEMENT LI",18/1/2022 00:00:00,"258139",-8238.3,"GL0214","GLENDALE GROUNDS MANAGEMENT LIMITED",27/12/2021 00:00:00,30/1/2022 00:00:00,"P10-2022"
,"LEE VALLEY WATERWORKS CENTRE","PREMISES RELATED EXPENDITURE","GM MAIN CONTRACT SCHEDULED","2141","GLENDALE GROUNDS MANAGEMENT LI",18/1/2022 00:00:00,"258140",107.55,"GL0214","GLENDALE GROUNDS MANAGEMENT LIMITED",27/12/2021 00:00:00,30/1/2022 00:00:00,"P10-2022"
,"LEE VALLEY FARM HAYES HILL","PREMISES RELATED EXPENDITURE","GM MAIN CONTRACT SCHEDULED","2141","GLENDALE GROUNDS MANAGEMENT LI",11/1/2022 00:00:00,"257583",153,"GL0214","GLENDALE GROUNDS MANAGEMENT LIMITED",27/12/2021 00:00:00,30/1/2022 00:00:00,"P10-2022"
,"LEE VALLEY FARM HAYES HILL","PREMISES RELATED EXPENDITURE","GM MAIN CONTRACT SCHEDULED","2141","GLENDALE GROUNDS MANAGEMENT LI",18/1/2022 00:00:00,"258140",40.49,"GL0214","GLENDALE GROUNDS MANAGEMENT LIMITED",27/12/2021 00:00:00,30/1/2022 00:00:00,"P10-2022"
"P&V","EAST INDIA DOCK AND BOW CREEK","PREMISES RELATED EXPENDITURE","GM MAIN CONTRACT SCHEDULED","2141","GLENDALE GROUNDS MANAGEMENT LI",11/1/2022 00:00:00,"257583",417.18,"GL0214","GLENDALE GROUNDS MANAGEMENT LIMITED",27/12/2021 00:00:00,30/1/2022 00:00:00,"P10-2022"
"P&V","EAST INDIA DOCK AND BOW CREEK","PREMISES RELATED EXPENDITURE","GM MAIN CONTRACT SCHEDULED","2141","GLENDALE GROUNDS MANAGEMENT LI",11/1/2022 00:00:00,"257583",450.85,"GL0214","GLENDALE GROUNDS MANAGEMENT LIMITED",27/12/2021 00:00:00,30/1/2022 00:00:00,"P10-2022"
"P&V","EAST INDIA DOCK AND BOW CREEK","PREMISES RELATED EXPENDITURE","GM MAIN CONTRACT SCHEDULED","2141","GLENDALE GROUNDS MANAGEMENT LI",18/1/2022 00:00:00,"258140",294.63,"GL0214","GLENDALE GROUNDS MANAGEMENT LIMITED",27/12/2021 00:00:00,30/1/2022 00:00:00,"P10-2022"
"P&V","NORTH AREA RANGERS","PREMISES RELATED EXPENDITURE","GM MAIN CONTRACT SCHEDULED","2141","GLENDALE GROUNDS MANAGEMENT LI",11/1/2022 00:00:00,"257583",2805.49,"GL0214","GLENDALE GROUNDS MANAGEMENT LIMITED",27/12/2021 00:00:00,30/1/2022 00:00:00,"P10-2022"
"P&V","NORTH AREA RANGERS","PREMISES RELATED EXPENDITURE","GM MAIN CONTRACT SCHEDULED","2141","GLENDALE GROUNDS MANAGEMENT LI",18/1/2022 00:00:00,"258140",669.85,"GL0214","GLENDALE GROUNDS MANAGEMENT LIMITED",27/12/2021 00:00:00,30/1/2022 00:00:00,"P10-2022"
"P&V","SOUTH AREA RANGERS","PREMISES RELATED EXPENDITURE","GM MAIN CONTRACT SCHEDULED","2141","GLENDALE GROUNDS MANAGEMENT LI",11/1/2022 00:00:00,"257583",3230.07,"GL0214","GLENDALE GROUNDS MANAGEMENT LIMITED",27/12/2021 00:00:00,30/1/2022 00:00:00,"P10-2022"
"P&V","SOUTH AREA RANGERS","PREMISES RELATED EXPENDITURE","GM MAIN CONTRACT SCHEDULED","2141","GLENDALE GROUNDS MANAGEMENT LI",11/1/2022 00:00:00,"257583",360.68,"GL0214","GLENDALE GROUNDS MANAGEMENT LIMITED",27/12/2021 00:00:00,30/1/2022 00:00:00,"P10-2022"
"P&V","SOUTH AREA RANGERS","PREMISES RELATED EXPENDITURE","GM MAIN CONTRACT SCHEDULED","2141","GLENDALE GROUNDS MANAGEMENT LI",18/1/2022 00:00:00,"258140",1015.34,"GL0214","GLENDALE GROUNDS MANAGEMENT LIMITED",27/12/2021 00:00:00,30/1/2022 00:00:00,"P10-2022"
"P&V","ABBEY GARDENS","PREMISES RELATED EXPENDITURE","GM MAIN CONTRACT SCHEDULED","2141","GLENDALE GROUNDS MANAGEMENT LI",11/1/2022 00:00:00,"257583",1421.16,"GL0214","GLENDALE GROUNDS MANAGEMENT LIMITED",27/12/2021 00:00:00,30/1/2022 00:00:00,"P10-2022"
"P&V","ABBEY GARDENS","PREMISES RELATED EXPENDITURE","GM MAIN CONTRACT SCHEDULED","2141","GLENDALE GROUNDS MANAGEMENT LI",18/1/2022 00:00:00,"258140",228.83,"GL0214","GLENDALE GROUNDS MANAGEMENT LIMITED",27/12/2021 00:00:00,30/1/2022 00:00:00,"P10-2022"
"P&V","GUNPOWDER PARK","PREMISES RELATED EXPENDITURE","GM MAIN CONTRACT SCHEDULED","2141","GLENDALE GROUNDS MANAGEMENT LI",11/1/2022 00:00:00,"257583",1401.51,"GL0214","GLENDALE GROUNDS MANAGEMENT LIMITED",27/12/2021 00:00:00,30/1/2022 00:00:00,"P10-2022"
"P&V","GUNPOWDER PARK","PREMISES RELATED EXPENDITURE","GM MAIN CONTRACT SCHEDULED","2141","GLENDALE GROUNDS MANAGEMENT LI",18/1/2022 00:00:00,"258140",457.95,"GL0214","GLENDALE GROUNDS MANAGEMENT LIMITED",27/12/2021 00:00:00,30/1/2022 00:00:00,"P10-2022"
"P&V","RIVER LEE COUNTRY PARK","PREMISES RELATED EXPENDITURE","GM MAIN CONTRACT SCHEDULED","2141","GLENDALE GROUNDS MANAGEMENT LI",11/1/2022 00:00:00,"257583",1304.46,"GL0214","GLENDALE GROUNDS MANAGEMENT LIMITED",27/12/2021 00:00:00,30/1/2022 00:00:00,"P10-2022"
"P&V","RIVER LEE COUNTRY PARK","PREMISES RELATED EXPENDITURE","GM MAIN CONTRACT SCHEDULED","2141","GLENDALE GROUNDS MANAGEMENT LI",11/1/2022 00:00:00,"257583",8179.78,"GL0214","GLENDALE GROUNDS MANAGEMENT LIMITED",27/12/2021 00:00:00,30/1/2022 00:00:00,"P10-2022"
"P&V","RIVER LEE COUNTRY PARK","PREMISES RELATED EXPENDITURE","GM MAIN CONTRACT SCHEDULED","2141","GLENDALE GROUNDS MANAGEMENT LI",18/1/2022 00:00:00,"258140",3043,"GL0214","GLENDALE GROUNDS MANAGEMENT LIMITED",27/12/2021 00:00:00,30/1/2022 00:00:00,"P10-2022"
,"LEE VALLEY VELOPARK","PREMISES RELATED EXPENDITURE","GM MAIN CONTRACT SCHEDULED","2141","GLENDALE GROUNDS MANAGEMENT LI",11/1/2022 00:00:00,"257583",3527.51,"GL0214","GLENDALE GROUNDS MANAGEMENT LIMITED",27/12/2021 00:00:00,30/1/2022 00:00:00,"P10-2022"
,"LEE VALLEY VELOPARK","PREMISES RELATED EXPENDITURE","GM MAIN CONTRACT SCHEDULED","2141","GLENDALE GROUNDS MANAGEMENT LI",18/1/2022 00:00:00,"258140",170.85,"GL0214","GLENDALE GROUNDS MANAGEMENT LIMITED",27/12/2021 00:00:00,30/1/2022 00:00:00,"P10-2022"
,"LV HOCKEY AND TENNIS CENTRE","PREMISES RELATED EXPENDITURE","GM MAIN CONTRACT SCHEDULED","2141","GLENDALE GROUNDS MANAGEMENT LI",11/1/2022 00:00:00,"257583",2229.6,"GL0214","GLENDALE GROUNDS MANAGEMENT LIMITED",27/12/2021 00:00:00,30/1/2022 00:00:00,"P10-2022"
,"LV HOCKEY AND TENNIS CENTRE","PREMISES RELATED EXPENDITURE","GM MAIN CONTRACT SCHEDULED","2141","GLENDALE GROUNDS MANAGEMENT LI",18/1/2022 00:00:00,"258140",70.76,"GL0214","GLENDALE GROUNDS MANAGEMENT LIMITED",27/12/2021 00:00:00,30/1/2022 00:00:00,"P10-2022"
"P&V","THREE MILLS","PREMISES RELATED EXPENDITURE","GM MAIN CONTRACT SCHEDULED","2141","GLENDALE GROUNDS MANAGEMENT LI",11/1/2022 00:00:00,"257583",797,"GL0214","GLENDALE GROUNDS MANAGEMENT LIMITED",27/12/2021 00:00:00,30/1/2022 00:00:00,"P10-2022"
"P&V","THREE MILLS","PREMISES RELATED EXPENDITURE","GM MAIN CONTRACT SCHEDULED","2141","GLENDALE GROUNDS MANAGEMENT LI",18/1/2022 00:00:00,"258140",194.65,"GL0214","GLENDALE GROUNDS MANAGEMENT LIMITED",27/12/2021 00:00:00,30/1/2022 00:00:00,"P10-2022"
,"LEE VALLEY RIDING CENTRE","PREMISES RELATED EXPENDITURE","GM MAIN CONTRACT SCHEDULED","2141","GLENDALE GROUNDS MANAGEMENT LI",11/1/2022 00:00:00,"257583",231.08,"GL0214","GLENDALE GROUNDS MANAGEMENT LIMITED",27/12/2021 00:00:00,30/1/2022 00:00:00,"P10-2022"
,"LEE VALLEY RIDING CENTRE","PREMISES RELATED EXPENDITURE","GM MAIN CONTRACT SCHEDULED","2141","GLENDALE GROUNDS MANAGEMENT LI",18/1/2022 00:00:00,"258140",64.45,"GL0214","GLENDALE GROUNDS MANAGEMENT LIMITED",27/12/2021 00:00:00,30/1/2022 00:00:00,"P10-2022"
,"LEE VALLEY ICE CENTRE","PREMISES RELATED EXPENDITURE","GM MAIN CONTRACT SCHEDULED","2141","GLENDALE GROUNDS MANAGEMENT LI",11/1/2022 00:00:00,"257583",164.91,"GL0214","GLENDALE GROUNDS MANAGEMENT LIMITED",27/12/2021 00:00:00,30/1/2022 00:00:00,"P10-2022"
"P&V","NORTH AREA RANGERS","PREMISES RELATED EXPENDITURE","GENERAL WASTE","2211","P115673-SERVICE-Removal - General Waste / Bikes",6/1/2022 00:00:00,"257638",180,"MK0465","M K CLEANING & MAINTENANCE LTD",27/12/2021 00:00:00,30/1/2022 00:00:00,"P10-2022"
"P&V","SOUTH AREA RANGERS","PREMISES RELATED EXPENDITURE","GENERAL WASTE","2211","P114549-SERVICE-Skip at WaterWorks Centre",18/1/2022 00:00:00,"257915",280,"GB0239","GBN SERVICES LTD",27/12/2021 00:00:00,30/1/2022 00:00:00,"P10-2022"
"P&V","SOUTH AREA RANGERS","PREMISES RELATED EXPENDITURE","GENERAL WASTE","2211","P114549-SERVICE-Mattress",18/1/2022 00:00:00,"257915",35,"GB0239","GBN SERVICES LTD",27/12/2021 00:00:00,30/1/2022 00:00:00,"P10-2022"
"P&V","GUNPOWDER PARK","PREMISES RELATED EXPENDITURE","GENERAL WASTE","2211","P115639-SERVICE-Remove Fly Tip from Rammey Marsh Car Park",6/1/2022 00:00:00,"257581",300,"GL0214","GLENDALE GROUNDS MANAGEMENT LIMITED",27/12/2021 00:00:00,30/1/2022 00:00:00,"P10-2022"
"P&V","RIVER LEE COUNTRY PARK","PREMISES RELATED EXPENDITURE","GENERAL WASTE","2211","P115674-SERVICE-Removal of 30 bags of Asbestos sheets from Co",6/1/2022 00:00:00,"257639",800,"MK0465","M K CLEANING & MAINTENANCE LTD",27/12/2021 00:00:00,30/1/2022 00:00:00,"P10-2022"
"P&V","RIVER LEE COUNTRY PARK","PREMISES RELATED EXPENDITURE","GENERAL WASTE","2211","P115803-SERVICE-12yd General Rubbish Skip at Holyfield Hall F",17/1/2022 00:00:00,"257845",280,"GB0239","GBN SERVICES LTD",27/12/2021 00:00:00,30/1/2022 00:00:00,"P10-2022"
"P&V","RIVER LEE COUNTRY PARK","PREMISES RELATED EXPENDITURE","GENERAL WASTE","2211","P115803-SERVICE-12yd General Rubbish Skip at Holyfield Hall F",20/1/2022 00:00:00,"258248",280,"GB0239","GBN SERVICES LTD",27/12/2021 00:00:00,30/1/2022 00:00:00,"P10-2022"
,"LEE VALLEY VELOPARK","PREMISES RELATED EXPENDITURE","GENERAL WASTE","2211","P115971-SERVICE-Waste Collection and Products",12/1/2022 00:00:00,"257571",285.27,"PE0015","PHS GROUP PLC",27/12/2021 00:00:00,30/1/2022 00:00:00,"P10-2022"
,"LEE VALLEY VELOPARK","PREMISES RELATED EXPENDITURE","GENERAL WASTE","2211","P115384-SERVICE-Confidential Waste Collection",17/1/2022 00:00:00,"257740",46,"CS0287","CURTIS SECURITY SHREDDING LTD",27/12/2021 00:00:00,30/1/2022 00:00:00,"P10-2022"
,"LEE VALLEY VELOPARK","PREMISES RELATED EXPENDITURE","GENERAL WASTE","2211","P116098-SERVICE-Waste Collection",19/1/2022 00:00:00,"257865",450.26,"CL0037","VEOLIA ES (UK) LTD",27/12/2021 00:00:00,30/1/2022 00:00:00,"P10-2022"
,"LEE VALLEY VELOPARK","PREMISES RELATED EXPENDITURE","GENERAL WASTE","2211","P116100-SERVICE-Skip Delivery",19/1/2022 00:00:00,"258107",700,"BR0453","BREWSTERS WASTE MANAGEMENT LIMITED",27/12/2021 00:00:00,30/1/2022 00:00:00,"P10-2022"
,"LV HOCKEY AND TENNIS CENTRE","PREMISES RELATED EXPENDITURE","GENERAL WASTE","2211","P113890-SERVICE-waste removal and duty of care",17/1/2022 00:00:00,"257864",473.87,"CL0037","VEOLIA ES (UK) LTD",27/12/2021 00:00:00,30/1/2022 00:00:00,"P10-2022"
,"LEE VALLEY RIDING CENTRE","PREMISES RELATED EXPENDITURE","GENERAL WASTE","2211","P112414-SERVICE-muck heap removal",7/1/2022 00:00:00,"257517",200,"AL0241","ALLMAC HAULAGE LTD",27/12/2021 00:00:00,30/1/2022 00:00:00,"P10-2022"
,"LEE VALLEY RIDING CENTRE","PREMISES RELATED EXPENDITURE","GENERAL WASTE","2211","P112045-SERVICE-Recycling waste & compactor",10/1/2022 00:00:00,"257781",1128.42,"BY0049","BYWATERS (LEYTON) LTD",27/12/2021 00:00:00,30/1/2022 00:00:00,"P10-2022"
,"LEE VALLEY RIDING CENTRE","PREMISES RELATED EXPENDITURE","GENERAL WASTE","2211","P112045-SERVICE-Recycling waste & compactor",10/1/2022 00:00:00,"257798",679.83,"BY0049","BYWATERS (LEYTON) LTD",27/12/2021 00:00:00,30/1/2022 00:00:00,"P10-2022"
,"LEE VALLEY RIDING CENTRE","PREMISES RELATED EXPENDITURE","GENERAL WASTE","2211","P112414-SERVICE-muck heap removal",17/1/2022 00:00:00,"258172",200,"AL0241","ALLMAC HAULAGE LTD",27/12/2021 00:00:00,30/1/2022 00:00:00,"P10-2022"
,"LEE VALLEY RIDING CENTRE","PREMISES RELATED EXPENDITURE","GENERAL WASTE","2211","P112414-SERVICE-muck heap removal",17/1/2022 00:00:00,"258173",200,"AL0241","ALLMAC HAULAGE LTD",27/12/2021 00:00:00,30/1/2022 00:00:00,"P10-2022"
,"LV LEISURE CENTRE CAMPSITE","PREMISES RELATED EXPENDITURE","GENERAL WASTE","2211","P115942-SERVICE-Skip exchange",7/1/2022 00:00:00,"257608",912.09,"CL0037","VEOLIA ES (UK) LTD",27/12/2021 00:00:00,30/1/2022 00:00:00,"P10-2022"
,"LV LEISURE CENTRE CAMPSITE","PREMISES RELATED EXPENDITURE","GENERAL WASTE","2211","P116029-SERVICE-Recycling",17/1/2022 00:00:00,"257782",278.46,"BY0049","BYWATERS (LEYTON) LTD",27/12/2021 00:00:00,30/1/2022 00:00:00,"P10-2022"
,"LV LEISURE CENTRE CAMPSITE","PREMISES RELATED EXPENDITURE","GENERAL WASTE","2211","P116065-SERVICE-skip",18/1/2022 00:00:00,"257863",20.97,"CL0037","VEOLIA ES (UK) LTD",27/12/2021 00:00:00,30/1/2022 00:00:00,"P10-2022"
,"LEE VALLEY WHITE WATER CENTRE","PREMISES RELATED EXPENDITURE","GENERAL WASTE","2211","P114687-SERVICE-Oct to Mar Refuse collection",10/1/2022 00:00:00,"257797",1325.68,"BY0049","BYWATERS (LEYTON) LTD",27/12/2021 00:00:00,30/1/2022 00:00:00,"P10-2022"
,"LEE VALLEY ICE CENTRE","PREMISES RELATED EXPENDITURE","HAZARDOUS WASTE DISPOSAL","2212","P112958-SERVICE-Sanitary 25/4/21-24/5/21",10/1/2022 00:00:00,"257308",32.17,"PE0015","PHS GROUP PLC",27/12/2021 00:00:00,30/1/2022 00:00:00,"P10-2022"
,"LEE VALLEY ICE CENTRE","PREMISES RELATED EXPENDITURE","HAZARDOUS WASTE DISPOSAL","2212","P112958-SERVICE-Sanitary 25/4/21-24/5/21",10/1/2022 00:00:00,"257500",-32.17,"PE0015","PHS GROUP PLC",27/12/2021 00:00:00,30/1/2022 00:00:00,"P10-2022"
,"LEE VALLEY ICE CENTRE","PREMISES RELATED EXPENDITURE","HAZARDOUS WASTE DISPOSAL","2212","P112958-SERVICE-Sanitary 25/4/21-24/5/21",30/1/2022 00:00:00,"258437",32.17,"PE0015","PHS GROUP PLC",27/12/2021 00:00:00,30/1/2022 00:00:00,"P10-2022"
,"LEE VALLEY ICE CENTRE","PREMISES RELATED EXPENDITURE","HAZARDOUS WASTE DISPOSAL","2212","P112958-SERVICE-Sanitary 25/4/21-24/5/21",30/1/2022 00:00:00,"258665",-32.17,"PE0015","PHS GROUP PLC",27/12/2021 00:00:00,30/1/2022 00:00:00,"P10-2022"
"P&V","RIVER LEE COUNTRY PARK","PREMISES RELATED EXPENDITURE","FLYTIPPING/WHITE GOOD DISPOSAL","2213","P115862-SERVICE-Remove and Dispose Dumped Caravan from Farm",6/1/2022 00:00:00,"257637",500,"MK0465","M K CLEANING & MAINTENANCE LTD",27/12/2021 00:00:00,30/1/2022 00:00:00,"P10-2022"
"P&V","MYDDELTON HOUSE","PREMISES RELATED EXPENDITURE","BUILDING SERVICE AGREEMENTS","2220","P115998-SERVICE-line rental 01/09/21-31/08/21",11/1/2022 00:00:00,"256226",445.41,"AD0015","ADT FIRE & SECURITY PLC",27/12/2021 00:00:00,30/1/2022 00:00:00,"P10-2022"
"P&V","MYDDELTON HOUSE","PREMISES RELATED EXPENDITURE","BUILDING SERVICE AGREEMENTS","2220","P114366-SERVICE-Sanitary Services",7/1/2022 00:00:00,"257306",53.44,"PE0015","PHS GROUP PLC",27/12/2021 00:00:00,30/1/2022 00:00:00,"P10-2022"
"P&V","MYDDELTON HOUSE","PREMISES RELATED EXPENDITURE","BUILDING SERVICE AGREEMENTS","2220","P114366-SERVICE-Sanitary Services",7/1/2022 00:00:00,"257501",22.52,"PE0015","PHS GROUP PLC",27/12/2021 00:00:00,30/1/2022 00:00:00,"P10-2022"
"P&V","MYDDELTON HOUSE","PREMISES RELATED EXPENDITURE","BUILDING SERVICE AGREEMENTS","2220","P114366-SERVICE-Sanitary Services",7/1/2022 00:00:00,"257505",8.25,"PE0015","PHS GROUP PLC",27/12/2021 00:00:00,30/1/2022 00:00:00,"P10-2022"
"P&V","MYDDELTON HOUSE","PREMISES RELATED EXPENDITURE","BUILDING SERVICE AGREEMENTS","2220","P114366-SERVICE-Sanitary Services",7/1/2022 00:00:00,"257507",166.18,"PE0015","PHS GROUP PLC",27/12/2021 00:00:00,30/1/2022 00:00:00,"P10-2022"
"P&V","MYDDELTON HOUSE","PREMISES RELATED EXPENDITURE","BUILDING SERVICE AGREEMENTS","2220","P114366-SERVICE-Sanitary Services",30/1/2022 00:00:00,"258434",53.44,"PE0015","PHS GROUP PLC",27/12/2021 00:00:00,30/1/2022 00:00:00,"P10-2022"
"P&V","MYDDELTON HOUSE","PREMISES RELATED EXPENDITURE","BUILDING SERVICE AGREEMENTS","2220","P114366-SERVICE-Sanitary Services",30/1/2022 00:00:00,"258621",8.25,"PE0015","PHS GROUP PLC",27/12/2021 00:00:00,30/1/2022 00:00:00,"P10-2022"
"P&V","MYDDELTON HOUSE","PREMISES RELATED EXPENDITURE","BUILDING SERVICE AGREEMENTS","2220","P114366-SERVICE-Sanitary Services",30/1/2022 00:00:00,"258623",22.52,"PE0015","PHS GROUP PLC",27/12/2021 00:00:00,30/1/2022 00:00:00,"P10-2022"
,"LEE VALLEY CAMPSITE","PREMISES RELATED EXPENDITURE","BUILDING SERVICE AGREEMENTS","2220","P115647-SERVICE-Staff caravan 2",7/1/2022 00:00:00,"257218",670,"SO0400","SOUTHERN GREEN SERVICES LIMITED",27/12/2021 00:00:00,30/1/2022 00:00:00,"P10-2022"
,"LEE VALLEY CAMPSITE","PREMISES RELATED EXPENDITURE","BUILDING SERVICE AGREEMENTS","2220","P115647-SERVICE-Staff Caravan 1",7/1/2022 00:00:00,"257218",155,"SO0400","SOUTHERN GREEN SERVICES LIMITED",27/12/2021 00:00:00,30/1/2022 00:00:00,"P10-2022"
,"LEE VALLEY CAMPSITE","PREMISES RELATED EXPENDITURE","BUILDING SERVICE AGREEMENTS","2220","P115957-SERVICE-Shop Intruder alarm fault 2312",17/1/2022 00:00:00,"257521",105,"AC0012","SCUTUM SOUTH EAST LTD (frmly Active Security)",27/12/2021 00:00:00,30/1/2022 00:00:00,"P10-2022"
,"LEE VALLEY CAMPSITE","PREMISES RELATED EXPENDITURE","BUILDING SERVICE AGREEMENTS","2220","P115959-SERVICE-Pest control Dec 21",17/1/2022 00:00:00,"257764",70,"VE0006","VERMINATE CITY & RURAL PEST CONTROL LTD",27/12/2021 00:00:00,30/1/2022 00:00:00,"P10-2022"
,"LEE VALLEY CAMPSITE","PREMISES RELATED EXPENDITURE","BUILDING SERVICE AGREEMENTS","2220","P115959-SERVICE-Jan 22",25/1/2022 00:00:00,"258116",70,"VE0006","VERMINATE CITY & RURAL PEST CONTROL LTD",27/12/2021 00:00:00,30/1/2022 00:00:00,"P10-2022"
,"LEE VALLEY CARAVAN PARK","PREMISES RELATED EXPENDITURE","BUILDING SERVICE AGREEMENTS","2220","P116092-SERVICE-Monthly pest control",18/1/2022 00:00:00,"258115",70,"VE0006","VERMINATE CITY & RURAL PEST CONTROL LTD",27/12/2021 00:00:00,30/1/2022 00:00:00,"P10-2022"
,"LEE VALLEY CARAVAN PARK","PREMISES RELATED EXPENDITURE","BUILDING SERVICE AGREEMENTS","2220","P116232-SERVICE-Monthly hygiene",26/1/2022 00:00:00,"258416",90.39,"IN0012","INITIAL WASHROOM HYGIENE",27/12/2021 00:00:00,30/1/2022 00:00:00,"P10-2022"
"P&V","NORTH AREA RANGERS","PREMISES RELATED EXPENDITURE","BUILDING SERVICE AGREEMENTS","2220","P111201-SERVICE-Sanitary Disposal - Old Mill & Meadows Toilet",25/1/2022 00:00:00,"258435",17.58,"PE0015","PHS GROUP PLC",27/12/2021 00:00:00,30/1/2022 00:00:00,"P10-2022"
"P&V","GUNPOWDER PARK","PREMISES RELATED EXPENDITURE","BUILDING SERVICE AGREEMENTS","2220","P111199-SERVICE-Sanitary Disposal - Gunpowder Park Office Toi",6/1/2022 00:00:00,"257502",2.7,"PE0015","PHS GROUP PLC",27/12/2021 00:00:00,30/1/2022 00:00:00,"P10-2022"
"P&V","GUNPOWDER PARK","PREMISES RELATED EXPENDITURE","BUILDING SERVICE AGREEMENTS","2220","P111200-SERVICE-Sanitary Disposal - Gunpowder Park - Public T",30/1/2022 00:00:00,"257923",16.9,"PE0015","PHS GROUP PLC",27/12/2021 00:00:00,30/1/2022 00:00:00,"P10-2022"
"P&V","GUNPOWDER PARK","PREMISES RELATED EXPENDITURE","BUILDING SERVICE AGREEMENTS","2220","P111200-SERVICE-Sanitary Disposal - Gunpowder Park - Public T",30/1/2022 00:00:00,"258617",-11.05,"PE0015","PHS GROUP PLC",27/12/2021 00:00:00,30/1/2022 00:00:00,"P10-2022"
"P&V","GUNPOWDER PARK","PREMISES RELATED EXPENDITURE","BUILDING SERVICE AGREEMENTS","2220","P111200-SERVICE-Sanitary Disposal - Gunpowder Park - Public T",30/1/2022 00:00:00,"258618",8.45,"PE0015","PHS GROUP PLC",27/12/2021 00:00:00,30/1/2022 00:00:00,"P10-2022"
"P&V","GUNPOWDER PARK","PREMISES RELATED EXPENDITURE","BUILDING SERVICE AGREEMENTS","2220","P111199-SERVICE-Sanitary Disposal - Gunpowder Park Office Toi",30/1/2022 00:00:00,"258624",2.7,"PE0015","PHS GROUP PLC",27/12/2021 00:00:00,30/1/2022 00:00:00,"P10-2022"
"P&V","RIVER LEE COUNTRY PARK","PREMISES RELATED EXPENDITURE","BUILDING SERVICE AGREEMENTS","2220","P112774-SERVICE-Sharps Container - Ranger Farm Office",6/1/2022 00:00:00,"257506",5.88,"PE0015","PHS GROUP PLC",27/12/2021 00:00:00,30/1/2022 00:00:00,"P10-2022"
"P&V","RIVER LEE COUNTRY PARK","PREMISES RELATED EXPENDITURE","BUILDING SERVICE AGREEMENTS","2220","P111202-SERVICE-Sanitary Disposal - Fishers Green Toilets",17/1/2022 00:00:00,"257922",11.37,"PE0015","PHS GROUP PLC",27/12/2021 00:00:00,30/1/2022 00:00:00,"P10-2022"
"P&V","RIVER LEE COUNTRY PARK","PREMISES RELATED EXPENDITURE","BUILDING SERVICE AGREEMENTS","2220","P112774-SERVICE-Sharps Container - Ranger Farm Office",30/1/2022 00:00:00,"258622",5.88,"PE0015","PHS GROUP PLC",27/12/2021 00:00:00,30/1/2022 00:00:00,"P10-2022"
,"LEE VALLEY VELOPARK","PREMISES RELATED EXPENDITURE","BUILDING SERVICE AGREEMENTS","2220","P111429-SERVICE-BMS Contract VP",10/1/2022 00:00:00,"257519",590,"IN0197","INTEGRATED BUILDING MANAGEMENT SYSTEMS LTD",27/12/2021 00:00:00,30/1/2022 00:00:00,"P10-2022"
,"LEE VALLEY VELOPARK","PREMISES RELATED EXPENDITURE","BUILDING SERVICE AGREEMENTS","2220","P110516-SERVICE-Service Contract Renewal 2021-2022",11/1/2022 00:00:00,"257834",-835,"GO0211","GOODWATER LTD",27/12/2021 00:00:00,30/1/2022 00:00:00,"P10-2022"
,"LEE VALLEY VELOPARK","PREMISES RELATED EXPENDITURE","BUILDING SERVICE AGREEMENTS","2220","P112097-SERVICE-Pest Control 2021-2022",18/1/2022 00:00:00,"258121",250,"VE0006","VERMINATE CITY & RURAL PEST CONTROL LTD",27/12/2021 00:00:00,30/1/2022 00:00:00,"P10-2022"
,"LEE VALLEY VELOPARK","PREMISES RELATED EXPENDITURE","BUILDING SERVICE AGREEMENTS","2220","P110516-SERVICE-Service Contract Renewal 2021-2022",25/1/2022 00:00:00,"258441",1165,"GO0211","GOODWATER LTD",27/12/2021 00:00:00,30/1/2022 00:00:00,"P10-2022"
,"LEE VALLEY VELOPARK","PREMISES RELATED EXPENDITURE","BUILDING SERVICE AGREEMENTS","2220","P110516-SERVICE-Service Contract Renewal 2021-2022",25/1/2022 00:00:00,"258442",795,"GO0211","GOODWATER LTD",27/12/2021 00:00:00,30/1/2022 00:00:00,"P10-2022"
,"LEE VALLEY VELOPARK","PREMISES RELATED EXPENDITURE","BUILDING SERVICE AGREEMENTS","2220","P116299-SERVICE-CCTV Supply and Installation",30/1/2022 00:00:00,"258504",1956.6,"ST0642","STANLEY SECURITY SOLUTIONS LTD",27/12/2021 00:00:00,30/1/2022 00:00:00,"P10-2022"
,"LEE VALLEY VELOPARK","PREMISES RELATED EXPENDITURE","BUILDING SERVICE AGREEMENTS","2220","P111429-SERVICE-BMS Contract VP",30/1/2022 00:00:00,"258602",590,"IN0197","INTEGRATED BUILDING MANAGEMENT SYSTEMS LTD",27/12/2021 00:00:00,30/1/2022 00:00:00,"P10-2022"
,"LEE VALLEY VELOPARK","PREMISES RELATED EXPENDITURE","BUILDING SERVICE AGREEMENTS","2220","P115913-SERVICE-Fire Extinguisher Service",30/1/2022 00:00:00,"258680",696.84,"TJ0009","T.J.FIRE & SECURITY",27/12/2021 00:00:00,30/1/2022 00:00:00,"P10-2022"
,"LV HOCKEY AND TENNIS CENTRE","PREMISES RELATED EXPENDITURE","BUILDING SERVICE AGREEMENTS","2220","P110517-SERVICE-Service Contract Renewal 2021-2022",11/1/2022 00:00:00,"257835",-1385,"GO0211","GOODWATER LTD",27/12/2021 00:00:00,30/1/2022 00:00:00,"P10-2022"
,"LV HOCKEY AND TENNIS CENTRE","PREMISES RELATED EXPENDITURE","BUILDING SERVICE AGREEMENTS","2220","P111429-SERVICE-BMS Contract HTC",25/1/2022 00:00:00,"258251",590,"IN0197","INTEGRATED BUILDING MANAGEMENT SYSTEMS LTD",27/12/2021 00:00:00,30/1/2022 00:00:00,"P10-2022"
,"LV HOCKEY AND TENNIS CENTRE","PREMISES RELATED EXPENDITURE","BUILDING SERVICE AGREEMENTS","2220","P110517-SERVICE-Service Contract Renewal 2021-2022",25/1/2022 00:00:00,"258447",730,"GO0211","GOODWATER LTD",27/12/2021 00:00:00,30/1/2022 00:00:00,"P10-2022"
,"LV HOCKEY AND TENNIS CENTRE","PREMISES RELATED EXPENDITURE","BUILDING SERVICE AGREEMENTS","2220","P110517-SERVICE-Service Contract Renewal 2021-2022",25/1/2022 00:00:00,"258448",420,"GO0211","GOODWATER LTD",27/12/2021 00:00:00,30/1/2022 00:00:00,"P10-2022"
,"LV HOCKEY AND TENNIS CENTRE","PREMISES RELATED EXPENDITURE","BUILDING SERVICE AGREEMENTS","2220","P115867-SERVICE-power factor correction unit inspection",26/1/2022 00:00:00,"258495",1845,"NA0192","NAVITAS ELECTRICAL LIMITED",27/12/2021 00:00:00,30/1/2022 00:00:00,"P10-2022"
,"LV HOCKEY AND TENNIS CENTRE","PREMISES RELATED EXPENDITURE","BUILDING SERVICE AGREEMENTS","2220","P115914-SERVICE-Fire Extinguisher Service",30/1/2022 00:00:00,"258613",331.47,"TJ0009","T.J.FIRE & SECURITY",27/12/2021 00:00:00,30/1/2022 00:00:00,"P10-2022"
,"LV HOCKEY AND TENNIS CATERING","PREMISES RELATED EXPENDITURE","BUILDING SERVICE AGREEMENTS","2220","P114879-SERVICE-Drainage Maintenance",17/1/2022 00:00:00,"257882",780,"WH0353","W HARDY LIMITED",27/12/2021 00:00:00,30/1/2022 00:00:00,"P10-2022"
,"LV LEISURE CENTRE CAMPSITE","PREMISES RELATED EXPENDITURE","BUILDING SERVICE AGREEMENTS","2220","P115941-SERVICE-Fire safety checks",7/1/2022 00:00:00,"257330",228.95,"MO0478","MORGAN FIRE PROTECTION LTD",27/12/2021 00:00:00,30/1/2022 00:00:00,"P10-2022"
,"LV LEISURE CENTRE CAMPSITE","PREMISES RELATED EXPENDITURE","BUILDING SERVICE AGREEMENTS","2220","P115824-SERVICE-Barrier servicing",11/1/2022 00:00:00,"257750",296,"AP0032","APT SECURITY SYSTEMS",27/12/2021 00:00:00,30/1/2022 00:00:00,"P10-2022"
,"LV LEISURE CENTRE CAMPSITE","PREMISES RELATED EXPENDITURE","BUILDING SERVICE AGREEMENTS","2220","P116017-SERVICE-pest control",17/1/2022 00:00:00,"257765",70,"VE0006","VERMINATE CITY & RURAL PEST CONTROL LTD",27/12/2021 00:00:00,30/1/2022 00:00:00,"P10-2022"
,"LEE VALLEY WHITE WATER CENTRE","PREMISES RELATED EXPENDITURE","BUILDING SERVICE AGREEMENTS","2220","P115369-SERVICE-Water heater in Raftguides Kitchen",10/1/2022 00:00:00,"257295",429.4,"GI0137","R & P GIBBS LIMITED",27/12/2021 00:00:00,30/1/2022 00:00:00,"P10-2022"
,"LEE VALLEY WHITE WATER CENTRE","PREMISES RELATED EXPENDITURE","BUILDING SERVICE AGREEMENTS","2220","P111254-SERVICE-Hygiene Services April 2021 to 2022",10/1/2022 00:00:00,"257504",169.07,"PE0015","PHS GROUP PLC",27/12/2021 00:00:00,30/1/2022 00:00:00,"P10-2022"
,"LEE VALLEY WHITE WATER CENTRE","PREMISES RELATED EXPENDITURE","BUILDING SERVICE AGREEMENTS","2220","P111254-SERVICE-Hygiene Services April 2021 to 2022",30/1/2022 00:00:00,"258620",169.07,"PE0015","PHS GROUP PLC",27/12/2021 00:00:00,30/1/2022 00:00:00,"P10-2022"
,"LV LEISURE CENTRE CAMPSITE","PREMISES RELATED EXPENDITURE","ENGINEERING SERVICE AGREEMENTS","2221","P116063-SERVICE-Sanitary bins",18/1/2022 00:00:00,"257854",142.29,"PE0015","PHS GROUP PLC",27/12/2021 00:00:00,30/1/2022 00:00:00,"P10-2022"
"P&V","MYDDELTON HOUSE","PREMISES RELATED EXPENDITURE","BUILDING REPAIRS & MAINTENANCE","2222","P115414-SERVICE-bungalow windows lock",11/1/2022 00:00:00,"256928",165,"RE0094","REACT 2 IT (BUILDING & REFURBISHMENT) LTD",27/12/2021 00:00:00,30/1/2022 00:00:00,"P10-2022"
"CEO","RESIDENTIAL ACCOMMODATION","PREMISES RELATED EXPENDITURE","BUILDING REPAIRS & MAINTENANCE","2222","P115713-SERVICE-Holyfield Hall - Drain Heating System & Fit N",17/1/2022 00:00:00,"256811",640,"TO0634","TOTAL & COMPLETE MAINTENANCE LTD",27/12/2021 00:00:00,30/1/2022 00:00:00,"P10-2022"
"CEO","RESIDENTIAL ACCOMMODATION","PREMISES RELATED EXPENDITURE","BUILDING REPAIRS & MAINTENANCE","2222","P116045-SERVICE-Mice Pest Control - 1 Bungalow - Aug, Sept, D",17/1/2022 00:00:00,"257761",53.34,"VE0006","VERMINATE CITY & RURAL PEST CONTROL LTD",27/12/2021 00:00:00,30/1/2022 00:00:00,"P10-2022"
"CEO","RESIDENTIAL ACCOMMODATION","PREMISES RELATED EXPENDITURE","BUILDING REPAIRS & MAINTENANCE","2222","P116045-SERVICE-Mice Pest Control - 1 Bungalow - Aug, Sept, D",17/1/2022 00:00:00,"257762",53.34,"VE0006","VERMINATE CITY & RURAL PEST CONTROL LTD",27/12/2021 00:00:00,30/1/2022 00:00:00,"P10-2022"
"CEO","RESIDENTIAL ACCOMMODATION","PREMISES RELATED EXPENDITURE","BUILDING REPAIRS & MAINTENANCE","2222","P116045-SERVICE-Mice Pest Control - 1 Bungalow - Aug, Sept, D",17/1/2022 00:00:00,"257766",53.34,"VE0006","VERMINATE CITY & RURAL PEST CONTROL LTD",27/12/2021 00:00:00,30/1/2022 00:00:00,"P10-2022"
"CEO","RESIDENTIAL ACCOMMODATION","PREMISES RELATED EXPENDITURE","BUILDING REPAIRS & MAINTENANCE","2222","P116047-SERVICE-Chimney Sweep - Aquaside",30/1/2022 00:00:00,"257826",75,"ES0397","ESSEX STOVES AND CHIMNEYS",27/12/2021 00:00:00,30/1/2022 00:00:00,"P10-2022"
"CEO","RESIDENTIAL ACCOMMODATION","PREMISES RELATED EXPENDITURE","BUILDING REPAIRS & MAINTENANCE","2222","P115168-SERVICE-Pest Control - Connaught Close",30/1/2022 00:00:00,"258122",70,"VE0006","VERMINATE CITY & RURAL PEST CONTROL LTD",27/12/2021 00:00:00,30/1/2022 00:00:00,"P10-2022"
"CEO","RESIDENTIAL ACCOMMODATION","PREMISES RELATED EXPENDITURE","BUILDING REPAIRS & MAINTENANCE","2222","P116256-SERVICE-Pest Control - 1 Bungalow Jan",30/1/2022 00:00:00,"258123",53.34,"VE0006","VERMINATE CITY & RURAL PEST CONTROL LTD",27/12/2021 00:00:00,30/1/2022 00:00:00,"P10-2022"
"CEO","COMMERCIAL ACCOMMODATION","PREMISES RELATED EXPENDITURE","BUILDING REPAIRS & MAINTENANCE","2222","P111994-SERVICE-2 x Stop blocks concrete Wharf road",18/1/2022 00:00:00,"257514",62,"NA0171","NAIVETTE SERVICES LTD",27/12/2021 00:00:00,30/1/2022 00:00:00,"P10-2022"
"P&V","FISHERIES MANAGEMENT","PREMISES RELATED EXPENDITURE","BUILDING REPAIRS & MAINTENANCE","2222","P115933-SERVICE-PAT Test - Fisheries Office",11/1/2022 00:00:00,"257493",39,"BR0018","BRADSHAW ELECTRICAL LIMITED",27/12/2021 00:00:00,30/1/2022 00:00:00,"P10-2022"
,"LEE VALLEY MARINA SPRINGFIELD","PREMISES RELATED EXPENDITURE","BUILDING REPAIRS & MAINTENANCE","2222","P115189-SERVICE-To Service 2 x Worcester Boilers",18/1/2022 00:00:00,"256556",137,"AS0039","ASTON GROUP",27/12/2021 00:00:00,30/1/2022 00:00:00,"P10-2022"
,"LEE VALLEY MARINA SPRINGFIELD","PREMISES RELATED EXPENDITURE","BUILDING REPAIRS & MAINTENANCE","2222","P115189-SERVICE-To Service AMBI Rads",18/1/2022 00:00:00,"256556",190,"AS0039","ASTON GROUP",27/12/2021 00:00:00,30/1/2022 00:00:00,"P10-2022"
,"LEE VALLEY MARINA SPRINGFIELD","PREMISES RELATED EXPENDITURE","BUILDING REPAIRS & MAINTENANCE","2222","P112205-SERVICE-To supply vermin & pest control",18/1/2022 00:00:00,"258119",375,"VE0006","VERMINATE CITY & RURAL PEST CONTROL LTD",27/12/2021 00:00:00,30/1/2022 00:00:00,"P10-2022"
,"LEE VALLEY MARINA SPRINGFIELD","PREMISES RELATED EXPENDITURE","BUILDING REPAIRS & MAINTENANCE","2222","P112675-SERVICE-Dennis Security emergency call outs",17/1/2022 00:00:00,"258171",285,"DE0013","DENNIS SECURITY CENTRE",27/12/2021 00:00:00,30/1/2022 00:00:00,"P10-2022"
,"LEE VALLEY MARINA SPRINGFIELD","PREMISES RELATED EXPENDITURE","BUILDING REPAIRS & MAINTENANCE","2222","P116097-SERVICE-TMV Servicing",17/1/2022 00:00:00,"258175",206.71,"KI0090","KINGFISHER ENVIRONMENTAL SERVICES LTD",27/12/2021 00:00:00,30/1/2022 00:00:00,"P10-2022"
,"LEE VALLEY MARINA STANSTEAD","PREMISES RELATED EXPENDITURE","BUILDING REPAIRS & MAINTENANCE","2222","P115421-SERVICE-Annual bacterial legionella test x2",18/1/2022 00:00:00,"258177",102.8,"KI0090","KINGFISHER ENVIRONMENTAL SERVICES LTD",27/12/2021 00:00:00,30/1/2022 00:00:00,"P10-2022"
,"STANSTEAD RECHARGEABLE WORKS","PREMISES RELATED EXPENDITURE","BUILDING REPAIRS & MAINTENANCE","2222","P115947-SERVICE-drain unblocker, mens shower block-screwfix",17/1/2022 00:00:00,"257851",19.16,"SC0057","SCREWFIX DIRECT LTD",27/12/2021 00:00:00,30/1/2022 00:00:00,"P10-2022"
"P&V","LEE VALLEY FARM HOLYFIELDHALL","PREMISES RELATED EXPENDITURE","BUILDING REPAIRS & MAINTENANCE","2222","P115921-SERVICE-PA Testing",6/1/2022 00:00:00,"257492",255,"BR0018","BRADSHAW ELECTRICAL LIMITED",27/12/2021 00:00:00,30/1/2022 00:00:00,"P10-2022"
"P&V","RYE HOUSE GATEHOUSE","PREMISES RELATED EXPENDITURE","BUILDING REPAIRS & MAINTENANCE","2222","P116130-SERVICE-Fire Extinguisher Service - Rye House Gatehou",30/1/2022 00:00:00,"258476",27.02,"TJ0009","T.J.FIRE & SECURITY",27/12/2021 00:00:00,30/1/2022 00:00:00,"P10-2022"
"P&V","GUNPOWDER PARK","PREMISES RELATED EXPENDITURE","BUILDING REPAIRS & MAINTENANCE","2222","P115850-SERVICE-New Lock - Gents Disable Toilet at Gunpowder",6/1/2022 00:00:00,"257494",190,"RE0094","REACT 2 IT (BUILDING & REFURBISHMENT) LTD",27/12/2021 00:00:00,30/1/2022 00:00:00,"P10-2022"
"P&V","RIVER LEE COUNTRY PARK","PREMISES RELATED EXPENDITURE","BUILDING REPAIRS & MAINTENANCE","2222","P115932-SERVICE-PAT Test - Ranger Office",11/1/2022 00:00:00,"257491",282,"BR0018","BRADSHAW ELECTRICAL LIMITED",27/12/2021 00:00:00,30/1/2022 00:00:00,"P10-2022"
"P&V","RIVER LEE COUNTRY PARK","PREMISES RELATED EXPENDITURE","BUILDING REPAIRS & MAINTENANCE","2222","P116130-SERVICE-Fire Extinguisher Service - Wildlife Discover",30/1/2022 00:00:00,"258475",54.29,"TJ0009","T.J.FIRE & SECURITY",27/12/2021 00:00:00,30/1/2022 00:00:00,"P10-2022"
"P&V","RIVER LEE COUNTRY PARK","PREMISES RELATED EXPENDITURE","BUILDING REPAIRS & MAINTENANCE","2222","P115871-SERVICE-Ranger Office Heaters at the Farm",30/1/2022 00:00:00,"258638",400,"BR0018","BRADSHAW ELECTRICAL LIMITED",27/12/2021 00:00:00,30/1/2022 00:00:00,"P10-2022"
,"LEE VALLEY VELOPARK","PREMISES RELATED EXPENDITURE","BUILDING REPAIRS & MAINTENANCE","2222","P115664-SERVICE-Replacement Cartridges",10/1/2022 00:00:00,"257496",1994.01,"RI0234","RICHMONDS OF LONDON LIMITED",27/12/2021 00:00:00,30/1/2022 00:00:00,"P10-2022"
,"LEE VALLEY VELOPARK","PREMISES RELATED EXPENDITURE","BUILDING REPAIRS & MAINTENANCE","2222","P115970-SERVICE-Prevantative Maintenance Q4",12/1/2022 00:00:00,"257559",1956.6,"ST0642","STANLEY SECURITY SOLUTIONS LTD",27/12/2021 00:00:00,30/1/2022 00:00:00,"P10-2022"
,"LEE VALLEY VELOPARK","PREMISES RELATED EXPENDITURE","BUILDING REPAIRS & MAINTENANCE","2222","P115975-SERVICE-Door Maintenance",12/1/2022 00:00:00,"257619",370,"GU0198","GUARDIAN INDUSTRIAL DOORS LIMITED",27/12/2021 00:00:00,30/1/2022 00:00:00,"P10-2022"
,"LEE VALLEY VELOPARK","PREMISES RELATED EXPENDITURE","BUILDING REPAIRS & MAINTENANCE","2222","P115976-SERVICE-Eco Electric Three Phase",12/1/2022 00:00:00,"257620",350,"GU0198","GUARDIAN INDUSTRIAL DOORS LIMITED",27/12/2021 00:00:00,30/1/2022 00:00:00,"P10-2022"
,"LEE VALLEY VELOPARK","PREMISES RELATED EXPENDITURE","BUILDING REPAIRS & MAINTENANCE","2222","P115980-SERVICE-10 456832 White 1 Gang Surface Box x2",12/1/2022 00:00:00,"257641",13.97,"RS0046","RS COMPONENTS LIMITED",27/12/2021 00:00:00,30/1/2022 00:00:00,"P10-2022"
,"LEE VALLEY VELOPARK","PREMISES RELATED EXPENDITURE","BUILDING REPAIRS & MAINTENANCE","2222","P115856-SERVICE-Call Out",12/1/2022 00:00:00,"257741",197,"GU0210","GUIDELINE LIFT SERVICES LTD",27/12/2021 00:00:00,30/1/2022 00:00:00,"P10-2022"
,"LEE VALLEY VELOPARK","PREMISES RELATED EXPENDITURE","BUILDING REPAIRS & MAINTENANCE","2222","P115664-SERVICE-Replacement Cartridges",17/1/2022 00:00:00,"257869",198.79,"RI0234","RICHMONDS OF LONDON LIMITED",27/12/2021 00:00:00,30/1/2022 00:00:00,"P10-2022"
,"LEE VALLEY VELOPARK","PREMISES RELATED EXPENDITURE","BUILDING REPAIRS & MAINTENANCE","2222","P115664-SERVICE-Replacement Cartridges",25/1/2022 00:00:00,"258204",13.25,"RI0234","RICHMONDS OF LONDON LIMITED",27/12/2021 00:00:00,30/1/2022 00:00:00,"P10-2022"
,"LEE VALLEY VELOPARK","PREMISES RELATED EXPENDITURE","BUILDING REPAIRS & MAINTENANCE","2222","P116184-SERVICE-Quarterly Maintenance Q3",25/1/2022 00:00:00,"258216",656.51,"GU0210","GUIDELINE LIFT SERVICES LTD",27/12/2021 00:00:00,30/1/2022 00:00:00,"P10-2022"
,"LEE VALLEY VELOPARK","PREMISES RELATED EXPENDITURE","BUILDING REPAIRS & MAINTENANCE","2222","P115793-SERVICE-Safety Net Inspection",30/1/2022 00:00:00,"258295",2000,"ST0483","STAN LIMITED",27/12/2021 00:00:00,30/1/2022 00:00:00,"P10-2022"
,"LV HOCKEY AND TENNIS CENTRE","PREMISES RELATED EXPENDITURE","BUILDING REPAIRS & MAINTENANCE","2222","P115987-SERVICE-twv sample",12/1/2022 00:00:00,"257002",30,"GO0211","GOODWATER LTD",27/12/2021 00:00:00,30/1/2022 00:00:00,"P10-2022"
,"LV HOCKEY AND TENNIS CENTRE","PREMISES RELATED EXPENDITURE","BUILDING REPAIRS & MAINTENANCE","2222","P115645-SERVICE-tank irrigation/sampling",7/1/2022 00:00:00,"257529",695,"GO0211","GOODWATER LTD",27/12/2021 00:00:00,30/1/2022 00:00:00,"P10-2022"
,"LV HOCKEY AND TENNIS CENTRE","PREMISES RELATED EXPENDITURE","BUILDING REPAIRS & MAINTENANCE","2222","P115985-SERVICE-shutter service and repairs",12/1/2022 00:00:00,"257618",645,"GU0198","GUARDIAN INDUSTRIAL DOORS LIMITED",27/12/2021 00:00:00,30/1/2022 00:00:00,"P10-2022"
,"LV HOCKEY AND TENNIS CENTRE","PREMISES RELATED EXPENDITURE","BUILDING REPAIRS & MAINTENANCE","2222","P116170-SERVICE-yard skip mixed material",25/1/2022 00:00:00,"258106",220,"BR0453","BREWSTERS WASTE MANAGEMENT LIMITED",27/12/2021 00:00:00,30/1/2022 00:00:00,"P10-2022"
,"LV HOCKEY AND TENNIS CENTRE","PREMISES RELATED EXPENDITURE","BUILDING REPAIRS & MAINTENANCE","2222","P115866-SERVICE-hinge replacement dooe not closing and fan",17/1/2022 00:00:00,"258136",0.1,"PO0412","PROTOCOOL LIMITED",27/12/2021 00:00:00,30/1/2022 00:00:00,"P10-2022"
,"LV HOCKEY AND TENNIS CENTRE","PREMISES RELATED EXPENDITURE","BUILDING REPAIRS & MAINTENANCE","2222","P115866-SERVICE-new controller",17/1/2022 00:00:00,"258136",736,"PO0412","PROTOCOOL LIMITED",27/12/2021 00:00:00,30/1/2022 00:00:00,"P10-2022"
,"LV HOCKEY AND TENNIS CENTRE","PREMISES RELATED EXPENDITURE","BUILDING REPAIRS & MAINTENANCE","2222","P115866-SERVICE-red mould on ice machine",17/1/2022 00:00:00,"258137",890.8,"PO0412","PROTOCOOL LIMITED",27/12/2021 00:00:00,30/1/2022 00:00:00,"P10-2022"
,"LV HOCKEY AND TENNIS CENTRE","PREMISES RELATED EXPENDITURE","BUILDING REPAIRS & MAINTENANCE","2222","P115866-SERVICE-further investigation diagnostic",17/1/2022 00:00:00,"258138",198,"PO0412","PROTOCOOL LIMITED",27/12/2021 00:00:00,30/1/2022 00:00:00,"P10-2022"
,"LV HOCKEY AND TENNIS CENTRE","PREMISES RELATED EXPENDITURE","BUILDING REPAIRS & MAINTENANCE","2222","P115866-SERVICE-fan motor replacement",17/1/2022 00:00:00,"258150",198,"PO0412","PROTOCOOL LIMITED",27/12/2021 00:00:00,30/1/2022 00:00:00,"P10-2022"
,"LV HOCKEY AND TENNIS CENTRE","PREMISES RELATED EXPENDITURE","BUILDING REPAIRS & MAINTENANCE","2222","P115866-SERVICE-door handle supply and install",17/1/2022 00:00:00,"258151",228,"PO0412","PROTOCOOL LIMITED",27/12/2021 00:00:00,30/1/2022 00:00:00,"P10-2022"
,"LV HOCKEY AND TENNIS CENTRE","PREMISES RELATED EXPENDITURE","BUILDING REPAIRS & MAINTENANCE","2222","P115866-SERVICE-tank pump replacement",17/1/2022 00:00:00,"258152",495.32,"PO0412","PROTOCOOL LIMITED",27/12/2021 00:00:00,30/1/2022 00:00:00,"P10-2022"
,"LV HOCKEY AND TENNIS CENTRE","PREMISES RELATED EXPENDITURE","BUILDING REPAIRS & MAINTENANCE","2222","P115866-SERVICE-refrigerant leak pressure test required",17/1/2022 00:00:00,"258153",778.74,"PO0412","PROTOCOOL LIMITED",27/12/2021 00:00:00,30/1/2022 00:00:00,"P10-2022"
,"LV HOCKEY AND TENNIS CENTRE","PREMISES RELATED EXPENDITURE","BUILDING REPAIRS & MAINTENANCE","2222","P115866-SERVICE-red mould on ice machine",17/1/2022 00:00:00,"258154",90,"PO0412","PROTOCOOL LIMITED",27/12/2021 00:00:00,30/1/2022 00:00:00,"P10-2022"
,"LV HOCKEY AND TENNIS CENTRE","PREMISES RELATED EXPENDITURE","BUILDING REPAIRS & MAINTENANCE","2222","P115866-SERVICE-minor remedial works",17/1/2022 00:00:00,"258154",108,"PO0412","PROTOCOOL LIMITED",27/12/2021 00:00:00,30/1/2022 00:00:00,"P10-2022"
,"LV HOCKEY AND TENNIS CENTRE","PREMISES RELATED EXPENDITURE","BUILDING REPAIRS & MAINTENANCE","2222","P115866-SERVICE-fan motor replacement",17/1/2022 00:00:00,"258154",729.84,"PO0412","PROTOCOOL LIMITED",27/12/2021 00:00:00,30/1/2022 00:00:00,"P10-2022"
,"LV HOCKEY AND TENNIS CENTRE","PREMISES RELATED EXPENDITURE","BUILDING REPAIRS & MAINTENANCE","2222","P116169-SERVICE-call out for damaged wire",25/1/2022 00:00:00,"258155",99,"PO0412","PROTOCOOL LIMITED",27/12/2021 00:00:00,30/1/2022 00:00:00,"P10-2022"
,"LV HOCKEY AND TENNIS CENTRE","PREMISES RELATED EXPENDITURE","BUILDING REPAIRS & MAINTENANCE","2222","P116093-SERVICE-fix isolation problem on  pitch 2",18/1/2022 00:00:00,"258179",407.5,"IR0149","IRRIGATION CONTROL LIMITED",27/12/2021 00:00:00,30/1/2022 00:00:00,"P10-2022"
,"LV HOCKEY AND TENNIS CENTRE","PREMISES RELATED EXPENDITURE","BUILDING REPAIRS & MAINTENANCE","2222","P116119-SERVICE-lift servicing october to dec 21",25/1/2022 00:00:00,"258229",90.04,"GU0210","GUIDELINE LIFT SERVICES LTD",27/12/2021 00:00:00,30/1/2022 00:00:00,"P10-2022"
,"LV HOCKEY AND TENNIS CENTRE","PREMISES RELATED EXPENDITURE","BUILDING REPAIRS & MAINTENANCE","2222","P116264-SERVICE-fall arrest safety system",30/1/2022 00:00:00,"258295",650,"ST0483","STAN LIMITED",27/12/2021 00:00:00,30/1/2022 00:00:00,"P10-2022"
,"LV HOCKEY AND TENNIS CENTRE","PREMISES RELATED EXPENDITURE","BUILDING REPAIRS & MAINTENANCE","2222","P116333-SERVICE-hoist service",30/1/2022 00:00:00,"258511",164,"AR0335","ARJO UK LTD (FRMLY ARJOHUNTLEIGH UK)",27/12/2021 00:00:00,30/1/2022 00:00:00,"P10-2022"
,"LEE VALLEY RIDING CENTRE","PREMISES RELATED EXPENDITURE","BUILDING REPAIRS & MAINTENANCE","2222","P112358-SERVICE-soap and sanitary dispensers and bins",10/1/2022 00:00:00,"257503",91.17,"PE0015","PHS GROUP PLC",27/12/2021 00:00:00,30/1/2022 00:00:00,"P10-2022"
,"LEE VALLEY RIDING CENTRE","PREMISES RELATED EXPENDITURE","BUILDING REPAIRS & MAINTENANCE","2222","P116013-SERVICE-red care BT jan to march 22",12/1/2022 00:00:00,"257791",171.32,"AD0015","ADT FIRE & SECURITY PLC",27/12/2021 00:00:00,30/1/2022 00:00:00,"P10-2022"
,"LEE VALLEY RIDING CENTRE","PREMISES RELATED EXPENDITURE","BUILDING REPAIRS & MAINTENANCE","2222","P116013-SERVICE-intruder alarm maintenance jan to March 22",12/1/2022 00:00:00,"257791",82.13,"AD0015","ADT FIRE & SECURITY PLC",27/12/2021 00:00:00,30/1/2022 00:00:00,"P10-2022"
,"LEE VALLEY RIDING CENTRE","PREMISES RELATED EXPENDITURE","BUILDING REPAIRS & MAINTENANCE","2222","P116012-SERVICE-power issue on all cctv screens",12/1/2022 00:00:00,"257794",160,"CA0334","CAM-TECH SECURITY SYSTEMS LTD",27/12/2021 00:00:00,30/1/2022 00:00:00,"P10-2022"
,"LEE VALLEY RIDING CENTRE","PREMISES RELATED EXPENDITURE","BUILDING REPAIRS & MAINTENANCE","2222","P116069-SERVICE-password reset to restore cameras",17/1/2022 00:00:00,"257965",160,"CA0334","CAM-TECH SECURITY SYSTEMS LTD",27/12/2021 00:00:00,30/1/2022 00:00:00,"P10-2022"
,"LEE VALLEY RIDING CENTRE","PREMISES RELATED EXPENDITURE","BUILDING REPAIRS & MAINTENANCE","2222","P116082-SERVICE-repair intruder alarm",17/1/2022 00:00:00,"258148",75,"AD0015","ADT FIRE & SECURITY PLC",27/12/2021 00:00:00,30/1/2022 00:00:00,"P10-2022"
,"LEE VALLEY RIDING CENTRE","PREMISES RELATED EXPENDITURE","BUILDING REPAIRS & MAINTENANCE","2222","P116083-SERVICE-review intruder alarm",17/1/2022 00:00:00,"258149",75,"AD0015","ADT FIRE & SECURITY PLC",27/12/2021 00:00:00,30/1/2022 00:00:00,"P10-2022"
,"LEE VALLEY RIDING CENTRE","PREMISES RELATED EXPENDITURE","BUILDING REPAIRS & MAINTENANCE","2222","P115781-SERVICE-fault with cogs on gate",19/1/2022 00:00:00,"258252",698,"EA0001","EAGLE AUTOMATION SYSTEMS LTD",27/12/2021 00:00:00,30/1/2022 00:00:00,"P10-2022"
,"LEE VALLEY RIDING CENTRE","PREMISES RELATED EXPENDITURE","BUILDING REPAIRS & MAINTENANCE","2222","P112358-SERVICE-soap and sanitary dispensers and bins",30/1/2022 00:00:00,"258619",91.17,"PE0015","PHS GROUP PLC",27/12/2021 00:00:00,30/1/2022 00:00:00,"P10-2022"
,"LEE VALLEY RIDING CENTRE","PREMISES RELATED EXPENDITURE","BUILDING REPAIRS & MAINTENANCE","2222","P116106-SERVICE-risk assessment for riding centre",30/1/2022 00:00:00,"258673",1100,"GO0211","GOODWATER LTD",27/12/2021 00:00:00,30/1/2022 00:00:00,"P10-2022"
"P&V","FORMER LV LIDO SITE","PREMISES RELATED EXPENDITURE","BUILDING REPAIRS & MAINTENANCE","2222","P116130-SERVICE-Fire Extinguisher Service - Broxbourne Rivers",30/1/2022 00:00:00,"258477",64.98,"TJ0009","T.J.FIRE & SECURITY",27/12/2021 00:00:00,30/1/2022 00:00:00,"P10-2022"
"P&V","FORMER LV LIDO SITE","PREMISES RELATED EXPENDITURE","BUILDING REPAIRS & MAINTENANCE","2222","P116297-SERVICE-PAT Testing Brox RS",30/1/2022 00:00:00,"258649",85,"BR0018","BRADSHAW ELECTRICAL LIMITED",27/12/2021 00:00:00,30/1/2022 00:00:00,"P10-2022"
,"LV LEISURE CENTRE CAMPSITE","PREMISES RELATED EXPENDITURE","BUILDING REPAIRS & MAINTENANCE","2222","P116028-SERVICE-pump station service",17/1/2022 00:00:00,"257773",180,"CO0550","CONVERT WATER LTD",27/12/2021 00:00:00,30/1/2022 00:00:00,"P10-2022"
,"LV LEISURE CENTRE CAMPSITE","PREMISES RELATED EXPENDITURE","BUILDING REPAIRS & MAINTENANCE","2222","P115440-SERVICE-Boiler room ventilation",30/1/2022 00:00:00,"258484",850,"FL0287","FLAKT GROUP UK LTD",27/12/2021 00:00:00,30/1/2022 00:00:00,"P10-2022"
,"LEE VALLEY ATHLETICS CENTRE","PREMISES RELATED EXPENDITURE","BUILDING REPAIRS & MAINTENANCE","2222","P115469-SERVICE-LVAC WINDOW CLEANING - QUOTE 80/221/1369",10/1/2022 00:00:00,"257311",1857.99,"ELI0362","ELITE SUPPORT SERVICES (LONDON) LIMITED",27/12/2021 00:00:00,30/1/2022 00:00:00,"P10-2022"
,"LEE VALLEY ATHLETICS CENTRE","PREMISES RELATED EXPENDITURE","BUILDING REPAIRS & MAINTENANCE","2222","P115616-SERVICE-LVAC DRAINAGE MANAGEMENT QUOTE WH-04731",18/1/2022 00:00:00,"257883",780,"WH0353","W HARDY LIMITED",27/12/2021 00:00:00,30/1/2022 00:00:00,"P10-2022"
,"LEE VALLEY WHITE WATER CENTRE","PREMISES RELATED EXPENDITURE","BUILDING REPAIRS & MAINTENANCE","2222","P115318-SERVICE-Emergency Light Tests Sept to March",17/1/2022 00:00:00,"257880",330,"GI0137","R & P GIBBS LIMITED",27/12/2021 00:00:00,30/1/2022 00:00:00,"P10-2022"
,"LEE VALLEY WHITE WATER CENTRE","PREMISES RELATED EXPENDITURE","BUILDING REPAIRS & MAINTENANCE","2222","P115175-SERVICE-To test the water condition in the Heating an",30/1/2022 00:00:00,"258635",150,"GI0137","R & P GIBBS LIMITED",27/12/2021 00:00:00,30/1/2022 00:00:00,"P10-2022"
,"LEE VALLEY WHITE WATER CENTRE","PREMISES RELATED EXPENDITURE","BUILDING REPAIRS & MAINTENANCE","2222","P115620-SERVICE-Service of 2 x Electric Boilers - jan 2022",30/1/2022 00:00:00,"258636",150,"GI0137","R & P GIBBS LIMITED",27/12/2021 00:00:00,30/1/2022 00:00:00,"P10-2022"
"CEO","LVLC SERVICE CHARGE","PREMISES RELATED EXPENDITURE","BUILDING REPAIRS & MAINTENANCE","2222","P112704-SERVICE-Contract Sweep",6/1/2022 00:00:00,"257239",150,"SE0374","SELECT SWEEPER HIRE LTD",27/12/2021 00:00:00,30/1/2022 00:00:00,"P10-2022"
"CEO","LVLC SERVICE CHARGE","PREMISES RELATED EXPENDITURE","BUILDING REPAIRS & MAINTENANCE","2222","P116046-SERVICE-Picketts Lock Car Park Lamp Posts",17/1/2022 00:00:00,"257795",725,"BR0018","BRADSHAW ELECTRICAL LIMITED",27/12/2021 00:00:00,30/1/2022 00:00:00,"P10-2022"
,"LEE VALLEY ATHLETICS CENTRE","PREMISES RELATED EXPENDITURE","ENGINEERING SERVICES CONTRACT","2223","P111589-SERVICE-LVAC ANNUAL Maintenenace Of Access Control -",11/1/2022 00:00:00,"257488",491.28,"AD0015","ADT FIRE & SECURITY PLC",27/12/2021 00:00:00,30/1/2022 00:00:00,"P10-2022"
,"LEE VALLEY ATHLETICS CENTRE","PREMISES RELATED EXPENDITURE","ENGINEERING SERVICES CONTRACT","2223","P111585-SERVICE-LVAC ANNUAL FIRE ALARM MAINTENANCE 21/22",11/1/2022 00:00:00,"257489",3197.1,"AD0015","ADT FIRE & SECURITY PLC",27/12/2021 00:00:00,30/1/2022 00:00:00,"P10-2022"
,"LEE VALLEY ATHLETICS CENTRE","PREMISES RELATED EXPENDITURE","ENGINEERING SERVICES CONTRACT","2223","P111584-SERVICE-LVAC ANNUAL CONTRACT",30/1/2022 00:00:00,"257535",1906.5,"DA0075","D.A.T.A. CLEANING SERVICES",27/12/2021 00:00:00,30/1/2022 00:00:00,"P10-2022"
,"LEE VALLEY ATHLETICS CENTRE","PREMISES RELATED EXPENDITURE","ENGINEERING SERVICES CONTRACT","2223","P111604-SERVICE-LVAC ANNUAL REFUSE COLLECTION 21/22",11/1/2022 00:00:00,"257588",334.8,"SI0659","SIMPLY WASTE SOLUTIONS",27/12/2021 00:00:00,30/1/2022 00:00:00,"P10-2022"
,"LEE VALLEY ATHLETICS CENTRE","PREMISES RELATED EXPENDITURE","ENGINEERING SERVICES CONTRACT","2223","P111755-SERVICE-LVAC ANNUAL MAINTENANCE 21/22",26/1/2022 00:00:00,"258292",1415,"KE0163","KERSHAW MECHANICAL SERVICES LTD",27/12/2021 00:00:00,30/1/2022 00:00:00,"P10-2022"
,"LEE VALLEY ATHLETICS CENTRE","PREMISES RELATED EXPENDITURE","ENGINEERING SERVICES CONTRACT","2223","P111584-SERVICE-LVAC ANNUAL CONTRACT",30/1/2022 00:00:00,"258510",1922,"DA0075","D.A.T.A. CLEANING SERVICES",27/12/2021 00:00:00,30/1/2022 00:00:00,"P10-2022"
,"LEE VALLEY WHITE WATER CENTRE","PREMISES RELATED EXPENDITURE","ENGINEERING SERVICES CONTRACT","2223","P114617-SERVICE-Oct 21 to Mar 2022",10/1/2022 00:00:00,"257315",1530,"AM0309","AMP 5 LIMITED",27/12/2021 00:00:00,30/1/2022 00:00:00,"P10-2022"
,"LEE VALLEY WHITE WATER CENTRE","PREMISES RELATED EXPENDITURE","ENGINEERING SERVICES CONTRACT","2223","P114617-SERVICE-Oct 21 to Mar 2022",17/1/2022 00:00:00,"257905",1530,"AM0309","AMP 5 LIMITED",27/12/2021 00:00:00,30/1/2022 00:00:00,"P10-2022"
,"LEE VALLEY WHITE WATER CENTRE","PREMISES RELATED EXPENDITURE","ENGINEERING SERVICES CONTRACT","2223","P114617-SERVICE-Oct 21 to Mar 2022",19/1/2022 00:00:00,"258203",1530,"AM0309","AMP 5 LIMITED",27/12/2021 00:00:00,30/1/2022 00:00:00,"P10-2022"
,"LEE VALLEY WHITE WATER CENTRE","PREMISES RELATED EXPENDITURE","ENGINEERING SERVICES CONTRACT","2223","P111172-SERVICE-Lightning protection",19/1/2022 00:00:00,"258278",265,"OC0009","PTSG PREMIER TECHNICAL SERVICES GROUP",27/12/2021 00:00:00,30/1/2022 00:00:00,"P10-2022"
,"LEE VALLEY WHITE WATER CENTRE","PREMISES RELATED EXPENDITURE","ENGINEERING SERVICES CONTRACT","2223","P116160-SERVICE-Lift on 28.01.22",30/1/2022 00:00:00,"258640",1100,"QU0004","QUINTO CRANE & PLANT LIMITED",27/12/2021 00:00:00,30/1/2022 00:00:00,"P10-2022"
"P&V","ABBEY GARDENS","SUPPLIES AND SERVICES","FENCES/GATES ETC.","2231","P115676-SERVICE-50x Wooden Stariners 125mm x 2.1m",11/1/2022 00:00:00,"257768",513,"TI0164","414 TIMBER & FENCING",27/12/2021 00:00:00,30/1/2022 00:00:00,"P10-2022"
"P&V","GUNPOWDER PARK","SUPPLIES AND SERVICES","PARK SIGNS AND BOARDS","2236","P116014-SERVICE-Remove Signs at Gunpowder Park",25/1/2022 00:00:00,"258415",400,"JO0019","R G JOYCE",27/12/2021 00:00:00,30/1/2022 00:00:00,"P10-2022"
"CEO","COMMERCIAL ACCOMMODATION","PREMISES RELATED EXPENDITURE","EAST HALE ALLOTMENTS","2261","P112083-SERVICE-Allotment Bins",6/1/2022 00:00:00,"257560",107.81,"CL0037","VEOLIA ES (UK) LTD",27/12/2021 00:00:00,30/1/2022 00:00:00,"P10-2022"
"CEO","COMMERCIAL ACCOMMODATION","PREMISES RELATED EXPENDITURE","EAST HALE ALLOTMENTS","2261","P111998-SERVICE-11 Grass cuts throughout the season",11/1/2022 00:00:00,"257579",907.22,"GL0214","GLENDALE GROUNDS MANAGEMENT LIMITED",27/12/2021 00:00:00,30/1/2022 00:00:00,"P10-2022"
"CEO","COMMERCIAL ACCOMMODATION","PREMISES RELATED EXPENDITURE","EAST HALE ALLOTMENTS","2261","P112083-SERVICE-Allotment Bins",26/1/2022 00:00:00,"257868",130.24,"CL0037","VEOLIA ES (UK) LTD",27/12/2021 00:00:00,30/1/2022 00:00:00,"P10-2022"
"P&V","MYDDELTON HOUSE","PREMISES RELATED EXPENDITURE","ENERGY COSTS (ELECTRICITY)","2332","KENT COUNTY COUNCIL (KCS)",6/1/2022 00:00:00,"257187",918.12,"KE0007","KENT COUNTY COUNCIL (KCS)",27/12/2021 00:00:00,30/1/2022 00:00:00,"P10-2022"
"CEO","RESIDENTIAL ACCOMMODATION","PREMISES RELATED EXPENDITURE","ENERGY COSTS (ELECTRICITY)","2332","E-ON NEXT ENERGY LTD",18/1/2022 00:00:00,"257776",36.54,"EO0398","E-ON NEXT ENERGY LTD",27/12/2021 00:00:00,30/1/2022 00:00:00,"P10-2022"
"CEO","COMMERCIAL ACCOMMODATION","PREMISES RELATED EXPENDITURE","ENERGY COSTS (ELECTRICITY)","2332","E-ON NEXT ENERGY LTD",6/1/2022 00:00:00,"256595",35.85,"EO0398","E-ON NEXT ENERGY LTD",27/12/2021 00:00:00,30/1/2022 00:00:00,"P10-2022"
"CEO","COMMERCIAL ACCOMMODATION","PREMISES RELATED EXPENDITURE","ENERGY COSTS (ELECTRICITY)","2332","E-ON NEXT ENERGY LTD",30/1/2022 00:00:00,"257908",28.82,"EO0398","E-ON NEXT ENERGY LTD",27/12/2021 00:00:00,30/1/2022 00:00:00,"P10-2022"
"CEO","COMMERCIAL ACCOMMODATION","PREMISES RELATED EXPENDITURE","ENERGY COSTS (ELECTRICITY)","2332","E-ON NEXT ENERGY LTD",30/1/2022 00:00:00,"258135",14.22,"EO0398","E-ON NEXT ENERGY LTD",27/12/2021 00:00:00,30/1/2022 00:00:00,"P10-2022"
"CEO","COMMERCIAL ACCOMMODATION","PREMISES RELATED EXPENDITURE","ENERGY COSTS (ELECTRICITY)","2332","P116257-SERVICE-LV Forge",30/1/2022 00:00:00,"258491",19.61,"CA0006","CALOR GAS LIMITED",27/12/2021 00:00:00,30/1/2022 00:00:00,"P10-2022"
"CEO","COMMERCIAL ACCOMMODATION","PREMISES RELATED EXPENDITURE","ENERGY COSTS (ELECTRICITY)","2332","E-ON",30/1/2022 00:00:00,"258494",25.82,"PO0025","E-ON",27/12/2021 00:00:00,30/1/2022 00:00:00,"P10-2022"
"P&V","FISHERIES MANAGEMENT","PREMISES RELATED EXPENDITURE","ENERGY COSTS (ELECTRICITY)","2332","HERTFORD COUNTY YACHT CLUB",25/1/2022 00:00:00,"258453",2984.09,"HE0379","HERTFORD COUNTY YACHT CLUB",27/12/2021 00:00:00,30/1/2022 00:00:00,"P10-2022"
,"LEE VALLEY MARINA SPRINGFIELD","PREMISES RELATED EXPENDITURE","ENERGY COSTS (ELECTRICITY)","2332","KENT COUNTY COUNCIL (KCS)",20/1/2022 00:00:00,"258185",4259.4,"KE0007","KENT COUNTY COUNCIL (KCS)",27/12/2021 00:00:00,30/1/2022 00:00:00,"P10-2022"
,"LEE VALLEY WATERWORKS CENTRE","PREMISES RELATED EXPENDITURE","ENERGY COSTS (ELECTRICITY)","2332","NPOWER LIMITED",20/1/2022 00:00:00,"258245",1063.81,"NP0123","NPOWER LIMITED",27/12/2021 00:00:00,30/1/2022 00:00:00,"P10-2022"
,"LEE VALLEY CAMPSITE","PREMISES RELATED EXPENDITURE","ENERGY COSTS (ELECTRICITY)","2332","KENT COUNTY COUNCIL (KCS)",25/1/2022 00:00:00,"258186",3778.86,"KE0007","KENT COUNTY COUNCIL (KCS)",27/12/2021 00:00:00,30/1/2022 00:00:00,"P10-2022"
,"LEE VALLEY CAMPSITE","PREMISES RELATED EXPENDITURE","ENERGY COSTS (ELECTRICITY)","2332","KENT COUNTY COUNCIL (KCS)",25/1/2022 00:00:00,"258187",2696.71,"KE0007","KENT COUNTY COUNCIL (KCS)",27/12/2021 00:00:00,30/1/2022 00:00:00,"P10-2022"
,"LV CAMPSITE CARAVAN SALES","PREMISES RELATED EXPENDITURE","ENERGY COSTS (ELECTRICITY)","2332","P115905-SERVICE-installation on new static",7/1/2022 00:00:00,"256141",120,"BR0018","BRADSHAW ELECTRICAL LIMITED",27/12/2021 00:00:00,30/1/2022 00:00:00,"P10-2022"
,"LV CAMPSITE CARAVAN SALES","PREMISES RELATED EXPENDITURE","ENERGY COSTS (ELECTRICITY)","2332","P115907-SERVICE-installation on new static at Sewardstone",7/1/2022 00:00:00,"257316",100,"BR0018","BRADSHAW ELECTRICAL LIMITED",27/12/2021 00:00:00,30/1/2022 00:00:00,"P10-2022"
,"LEE VALLEY CARAVAN PARK","PREMISES RELATED EXPENDITURE","ENERGY COSTS (ELECTRICITY)","2332","KENT COUNTY COUNCIL (KCS)",25/1/2022 00:00:00,"258183",9212.12,"KE0007","KENT COUNTY COUNCIL (KCS)",27/12/2021 00:00:00,30/1/2022 00:00:00,"P10-2022"
"P&V","CAR PARK INCOME","PREMISES RELATED EXPENDITURE","ENERGY COSTS (ELECTRICITY)","2332","NPOWER LIMITED",20/1/2022 00:00:00,"258238",35.11,"NP0123","NPOWER LIMITED",27/12/2021 00:00:00,30/1/2022 00:00:00,"P10-2022"
"P&V","CAR PARK INCOME","PREMISES RELATED EXPENDITURE","ENERGY COSTS (ELECTRICITY)","2332","NPOWER LIMITED",20/1/2022 00:00:00,"258246",21.96,"NP0123","NPOWER LIMITED",27/12/2021 00:00:00,30/1/2022 00:00:00,"P10-2022"
,"LEE VALLEY VELOPARK","PREMISES RELATED EXPENDITURE","ENERGY COSTS (ELECTRICITY)","2332","KENT COUNTY COUNCIL (KCS)",25/1/2022 00:00:00,"258184",1.02,"KE0007","KENT COUNTY COUNCIL (KCS)",27/12/2021 00:00:00,30/1/2022 00:00:00,"P10-2022"
,"LEE VALLEY VELOPARK","PREMISES RELATED EXPENDITURE","ENERGY COSTS (ELECTRICITY)","2332","KENT COUNTY COUNCIL (KCS)",25/1/2022 00:00:00,"258184",103.32,"KE0007","KENT COUNTY COUNCIL (KCS)",27/12/2021 00:00:00,30/1/2022 00:00:00,"P10-2022"
,"LEE VALLEY VELOPARK","PREMISES RELATED EXPENDITURE","ENERGY COSTS (ELECTRICITY)","2332","KENT COUNTY COUNCIL (KCS)",25/1/2022 00:00:00,"258265",42.04,"KE0007","KENT COUNTY COUNCIL (KCS)",27/12/2021 00:00:00,30/1/2022 00:00:00,"P10-2022"
,"LEE VALLEY VELOPARK","PREMISES RELATED EXPENDITURE","ENERGY COSTS (ELECTRICITY)","2332","KENT COUNTY COUNCIL (KCS)",25/1/2022 00:00:00,"258266",154.67,"KE0007","KENT COUNTY COUNCIL (KCS)",27/12/2021 00:00:00,30/1/2022 00:00:00,"P10-2022"
,"LEE VALLEY VELOPARK","PREMISES RELATED EXPENDITURE","ENERGY COSTS (ELECTRICITY)","2332","KENT COUNTY COUNCIL (KCS)",25/1/2022 00:00:00,"258275",104.66,"KE0007","KENT COUNTY COUNCIL (KCS)",27/12/2021 00:00:00,30/1/2022 00:00:00,"P10-2022"
,"LV HOCKEY AND TENNIS CENTRE","PREMISES RELATED EXPENDITURE","ENERGY COSTS (ELECTRICITY)","2332","NPOWER LIMITED",19/1/2022 00:00:00,"258244",9247.43,"NP0123","NPOWER LIMITED",27/12/2021 00:00:00,30/1/2022 00:00:00,"P10-2022"
,"LEE VALLEY RIDING CENTRE","PREMISES RELATED EXPENDITURE","ENERGY COSTS (ELECTRICITY)","2332","NPOWER LIMITED",19/1/2022 00:00:00,"258237",974.48,"NP0123","NPOWER LIMITED",27/12/2021 00:00:00,30/1/2022 00:00:00,"P10-2022"
,"LEE VALLEY RIDING CENTRE","PREMISES RELATED EXPENDITURE","ENERGY COSTS (ELECTRICITY)","2332","EDF ENERGY 1 LIMITED",26/1/2022 00:00:00,"258487",135.68,"ED0077","EDF ENERGY 1 LIMITED",27/12/2021 00:00:00,30/1/2022 00:00:00,"P10-2022"
,"LV LEISURE CENTRE CAMPSITE","PREMISES RELATED EXPENDITURE","ENERGY COSTS (ELECTRICITY)","2332","NPOWER LIMITED",25/1/2022 00:00:00,"258243",6504.1,"NP0123","NPOWER LIMITED",27/12/2021 00:00:00,30/1/2022 00:00:00,"P10-2022"
,"LEE VALLEY WHITE WATER CENTRE","PREMISES RELATED EXPENDITURE","ENERGY COSTS (ELECTRICITY)","2332","NPOWER LIMITED",20/1/2022 00:00:00,"258239",537.45,"NP0123","NPOWER LIMITED",27/12/2021 00:00:00,30/1/2022 00:00:00,"P10-2022"
,"LEE VALLEY WHITE WATER CENTRE","PREMISES RELATED EXPENDITURE","ENERGY COSTS (ELECTRICITY)","2332","NPOWER LIMITED",20/1/2022 00:00:00,"258240",9119.72,"NP0123","NPOWER LIMITED",27/12/2021 00:00:00,30/1/2022 00:00:00,"P10-2022"
,"LEE VALLEY WHITE WATER CENTRE","PREMISES RELATED EXPENDITURE","ENERGY COSTS (ELECTRICITY)","2332","NPOWER LIMITED",20/1/2022 00:00:00,"258241",9701.81,"NP0123","NPOWER LIMITED",27/12/2021 00:00:00,30/1/2022 00:00:00,"P10-2022"
,"LEE VALLEY WHITE WATER CENTRE","PREMISES RELATED EXPENDITURE","ENERGY COSTS (ELECTRICITY)","2332","NPOWER LIMITED",20/1/2022 00:00:00,"258242",19095.39,"NP0123","NPOWER LIMITED",27/12/2021 00:00:00,30/1/2022 00:00:00,"P10-2022"
"CEO","RESIDENTIAL ACCOMMODATION","PREMISES RELATED EXPENDITURE","ENERGY COSTS (GAS)","2333","BRITISH GAS BUSINESS",30/1/2022 00:00:00,"257953",42.66,"BR0030","BRITISH GAS BUSINESS",27/12/2021 00:00:00,30/1/2022 00:00:00,"P10-2022"
,"LEE VALLEY MARINA SPRINGFIELD","PREMISES RELATED EXPENDITURE","ENERGY COSTS (GAS)","2333","KENT COUNTY COUNCIL (KCS)",17/1/2022 00:00:00,"258159",426.98,"KE0007","KENT COUNTY COUNCIL (KCS)",27/12/2021 00:00:00,30/1/2022 00:00:00,"P10-2022"
,"LEE VALLEY MARINA STANSTEAD","PREMISES RELATED EXPENDITURE","ENERGY COSTS (GAS)","2333","KENT COUNTY COUNCIL (KCS)",17/1/2022 00:00:00,"258156",397.27,"KE0007","KENT COUNTY COUNCIL (KCS)",27/12/2021 00:00:00,30/1/2022 00:00:00,"P10-2022"
,"LEE VALLEY MARINA STANSTEAD","PREMISES RELATED EXPENDITURE","ENERGY COSTS (GAS)","2333","KENT COUNTY COUNCIL (KCS)",17/1/2022 00:00:00,"258157",109.77,"KE0007","KENT COUNTY COUNCIL (KCS)",27/12/2021 00:00:00,30/1/2022 00:00:00,"P10-2022"
,"LEE VALLEY WATERWORKS CENTRE","PREMISES RELATED EXPENDITURE","ENERGY COSTS (GAS)","2333","KENT COUNTY COUNCIL (KCS)",17/1/2022 00:00:00,"258161",378.65,"KE0007","KENT COUNTY COUNCIL (KCS)",27/12/2021 00:00:00,30/1/2022 00:00:00,"P10-2022"
,"LEE VALLEY CAMPSITE","PREMISES RELATED EXPENDITURE","ENERGY COSTS (GAS)","2333","KENT COUNTY COUNCIL (KCS)",17/1/2022 00:00:00,"258160",560.03,"KE0007","KENT COUNTY COUNCIL (KCS)",27/12/2021 00:00:00,30/1/2022 00:00:00,"P10-2022"
,"LEE VALLEY CARAVAN PARK","PREMISES RELATED EXPENDITURE","ENERGY COSTS (GAS)","2333","P116004-SERVICE-Gas top up",11/1/2022 00:00:00,"257523",5129.96,"AV0327","AVANTI GAS LIMITED",27/12/2021 00:00:00,30/1/2022 00:00:00,"P10-2022"
,"LEE VALLEY CARAVAN PARK","PREMISES RELATED EXPENDITURE","ENERGY COSTS (GAS)","2333","P116005-SERVICE-Gas top up",11/1/2022 00:00:00,"257829",273.91,"AV0327","AVANTI GAS LIMITED",27/12/2021 00:00:00,30/1/2022 00:00:00,"P10-2022"
,"LEE VALLEY CARAVAN PARK","PREMISES RELATED EXPENDITURE","ENERGY COSTS (GAS)","2333","P116090-SERVICE-Refill of gas units",17/1/2022 00:00:00,"258111",9151.99,"AV0327","AVANTI GAS LIMITED",27/12/2021 00:00:00,30/1/2022 00:00:00,"P10-2022"
,"LEE VALLEY CARAVAN PARK","PREMISES RELATED EXPENDITURE","ENERGY COSTS (GAS)","2333","P116079-SERVICE-8 x 47kg 1 x 19kg",30/1/2022 00:00:00,"258629",594.51,"CA0006","CALOR GAS LIMITED",27/12/2021 00:00:00,30/1/2022 00:00:00,"P10-2022"
"P&V","GUNPOWDER PARK","PREMISES RELATED EXPENDITURE","ENERGY COSTS (GAS)","2333","KENT COUNTY COUNCIL (KCS)",20/1/2022 00:00:00,"258182",72.79,"KE0007","KENT COUNTY COUNCIL (KCS)",27/12/2021 00:00:00,30/1/2022 00:00:00,"P10-2022"
,"LEE VALLEY RIDING CENTRE","PREMISES RELATED EXPENDITURE","ENERGY COSTS (GAS)","2333","BRITISH GAS BUSINESS",6/1/2022 00:00:00,"257606",204.07,"BR0029","BRITISH GAS BUSINESS",27/12/2021 00:00:00,30/1/2022 00:00:00,"P10-2022"
,"LEE VALLEY RIDING CENTRE","PREMISES RELATED EXPENDITURE","ENERGY COSTS (GAS)","2333","TOTALENERGIES GAS & POWER LIMI",19/1/2022 00:00:00,"258199",259.05,"TO0168","TOTALENERGIES GAS & POWER LIMITED",27/12/2021 00:00:00,30/1/2022 00:00:00,"P10-2022"
,"LEE VALLEY RIDING CENTRE","PREMISES RELATED EXPENDITURE","ENERGY COSTS (GAS)","2333","BRITISH GAS BUSINESS",30/1/2022 00:00:00,"258598",200.02,"BR0029","BRITISH GAS BUSINESS",27/12/2021 00:00:00,30/1/2022 00:00:00,"P10-2022"
,"LV LEISURE CENTRE CAMPSITE","PREMISES RELATED EXPENDITURE","ENERGY COSTS (GAS)","2333","KENT COUNTY COUNCIL (KCS)",17/1/2022 00:00:00,"258158",1929.19,"KE0007","KENT COUNTY COUNCIL (KCS)",27/12/2021 00:00:00,30/1/2022 00:00:00,"P10-2022"
"P&V","MYDDELTON HOUSE","PREMISES RELATED EXPENDITURE","ENERGY COSTS (BIOMASS FUEL)","2334","P115988-SERVICE-biomass fuel",11/1/2022 00:00:00,"256951",1104.24,"BA0631","BALCAS TIMBER LTD/BALCAS ENERGY",27/12/2021 00:00:00,30/1/2022 00:00:00,"P10-2022"
,"LEE VALLEY RIDING CENTRE","PREMISES RELATED EXPENDITURE","BUSINESS RATES","2444","ADJUSTMENTS FOR PERIOD 01/07/21-01/04/22",12/1/2022 00:00:00,"257770",135.79,"WA0005","LONDON BOROUGH OF WALTHAM FOREST",27/12/2021 00:00:00,30/1/2022 00:00:00,"P10-2022"
,"LEE VALLEY RIDING CENTRE","PREMISES RELATED EXPENDITURE","BUSINESS RATES","2444","ADJUSTMENTS FOR PERIOD 31/03/20-01/04/20",12/1/2022 00:00:00,"257771",0.09,"WA0005","LONDON BOROUGH OF WALTHAM FOREST",27/12/2021 00:00:00,30/1/2022 00:00:00,"P10-2022"
,"LEE VALLEY MARINA SPRINGFIELD","PREMISES RELATED EXPENDITURE","WATER","2555","CASTLE WATER LIMITED",11/1/2022 00:00:00,"257809",10711.61,"CA0625","CASTLE WATER LIMITED",27/12/2021 00:00:00,30/1/2022 00:00:00,"P10-2022"
,"LEE VALLEY MARINA SPRINGFIELD","PREMISES RELATED EXPENDITURE","WATER","2555","CASTLE WATER LIMITED",11/1/2022 00:00:00,"257809",14462.39,"CA0625","CASTLE WATER LIMITED",27/12/2021 00:00:00,30/1/2022 00:00:00,"P10-2022"
,"LEE VALLEY MARINA SPRINGFIELD","PREMISES RELATED EXPENDITURE","WATER","2555","CASTLE WATER LIMITED",18/1/2022 00:00:00,"258231",858.16,"CA0625","CASTLE WATER LIMITED",27/12/2021 00:00:00,30/1/2022 00:00:00,"P10-2022"
,"LEE VALLEY MARINA SPRINGFIELD","PREMISES RELATED EXPENDITURE","WATER","2555","CASTLE WATER LIMITED",18/1/2022 00:00:00,"258231",1242.83,"CA0625","CASTLE WATER LIMITED",27/12/2021 00:00:00,30/1/2022 00:00:00,"P10-2022"
,"LEE VALLEY MARINA STANSTEAD","PREMISES RELATED EXPENDITURE","WATER","2555","CASTLE WATER LIMITED",12/1/2022 00:00:00,"257800",129.16,"CA0625","CASTLE WATER LIMITED",27/12/2021 00:00:00,30/1/2022 00:00:00,"P10-2022"
,"LEE VALLEY MARINA STANSTEAD","PREMISES RELATED EXPENDITURE","WATER","2555","CASTLE WATER LIMITED",12/1/2022 00:00:00,"257800",123.39,"CA0625","CASTLE WATER LIMITED",27/12/2021 00:00:00,30/1/2022 00:00:00,"P10-2022"
,"LEE VALLEY WATERWORKS CENTRE","PREMISES RELATED EXPENDITURE","WATER","2555","CASTLE WATER LIMITED",11/1/2022 00:00:00,"257804",1675.36,"CA0625","CASTLE WATER LIMITED",27/12/2021 00:00:00,30/1/2022 00:00:00,"P10-2022"
,"LEE VALLEY WATERWORKS CENTRE","PREMISES RELATED EXPENDITURE","WATER","2555","CASTLE WATER LIMITED",18/1/2022 00:00:00,"258222",136.98,"CA0625","CASTLE WATER LIMITED",27/12/2021 00:00:00,30/1/2022 00:00:00,"P10-2022"
,"LEE VALLEY CAMPSITE","PREMISES RELATED EXPENDITURE","WATER","2555","CASTLE WATER LIMITED",11/1/2022 00:00:00,"257802",1396.15,"CA0625","CASTLE WATER LIMITED",27/12/2021 00:00:00,30/1/2022 00:00:00,"P10-2022"
,"LEE VALLEY CARAVAN PARK","PREMISES RELATED EXPENDITURE","WATER","2555","CASTLE WATER LIMITED",11/1/2022 00:00:00,"257806",20896.8,"CA0625","CASTLE WATER LIMITED",27/12/2021 00:00:00,30/1/2022 00:00:00,"P10-2022"
,"LEE VALLEY CARAVAN PARK","PREMISES RELATED EXPENDITURE","WATER","2555","CASTLE WATER LIMITED",11/1/2022 00:00:00,"257806",13777.73,"CA0625","CASTLE WATER LIMITED",27/12/2021 00:00:00,30/1/2022 00:00:00,"P10-2022"
,"LEE VALLEY CARAVAN PARK","PREMISES RELATED EXPENDITURE","WATER","2555","CASTLE WATER LIMITED",18/1/2022 00:00:00,"258234",2865.1,"CA0625","CASTLE WATER LIMITED",27/12/2021 00:00:00,30/1/2022 00:00:00,"P10-2022"
,"LEE VALLEY CARAVAN PARK","PREMISES RELATED EXPENDITURE","WATER","2555","CASTLE WATER LIMITED",18/1/2022 00:00:00,"258234",1869.41,"CA0625","CASTLE WATER LIMITED",27/12/2021 00:00:00,30/1/2022 00:00:00,"P10-2022"
,"LEE VALLEY VELOPARK","PREMISES RELATED EXPENDITURE","WATER","2555","CASTLE WATER LIMITED",12/1/2022 00:00:00,"257810",1929.36,"CA0625","CASTLE WATER LIMITED",27/12/2021 00:00:00,30/1/2022 00:00:00,"P10-2022"
,"LEE VALLEY VELOPARK","PREMISES RELATED EXPENDITURE","WATER","2555","CASTLE WATER LIMITED",12/1/2022 00:00:00,"257810",6517.26,"CA0625","CASTLE WATER LIMITED",27/12/2021 00:00:00,30/1/2022 00:00:00,"P10-2022"
,"LEE VALLEY VELOPARK","PREMISES RELATED EXPENDITURE","WATER","2555","CASTLE WATER LIMITED",18/1/2022 00:00:00,"258235",853.3,"CA0625","CASTLE WATER LIMITED",27/12/2021 00:00:00,30/1/2022 00:00:00,"P10-2022"
,"LEE VALLEY VELOPARK","PREMISES RELATED EXPENDITURE","WATER","2555","CASTLE WATER LIMITED",18/1/2022 00:00:00,"258235",133.45,"CA0625","CASTLE WATER LIMITED",27/12/2021 00:00:00,30/1/2022 00:00:00,"P10-2022"
,"LV HOCKEY AND TENNIS CENTRE","PREMISES RELATED EXPENDITURE","WATER","2555","CASTLE WATER LIMITED",10/1/2022 00:00:00,"257805",5726.42,"CA0625","CASTLE WATER LIMITED",27/12/2021 00:00:00,30/1/2022 00:00:00,"P10-2022"
,"LV HOCKEY AND TENNIS CENTRE","PREMISES RELATED EXPENDITURE","WATER","2555","CASTLE WATER LIMITED",10/1/2022 00:00:00,"257805",10396.01,"CA0625","CASTLE WATER LIMITED",27/12/2021 00:00:00,30/1/2022 00:00:00,"P10-2022"
,"LV HOCKEY AND TENNIS CENTRE","PREMISES RELATED EXPENDITURE","WATER","2555","CASTLE WATER LIMITED",18/1/2022 00:00:00,"258223",1240.1,"CA0625","CASTLE WATER LIMITED",27/12/2021 00:00:00,30/1/2022 00:00:00,"P10-2022"
,"LV HOCKEY AND TENNIS CENTRE","PREMISES RELATED EXPENDITURE","WATER","2555","CASTLE WATER LIMITED",18/1/2022 00:00:00,"258223",755.67,"CA0625","CASTLE WATER LIMITED",27/12/2021 00:00:00,30/1/2022 00:00:00,"P10-2022"
,"LEE VALLEY RIDING CENTRE","PREMISES RELATED EXPENDITURE","WATER","2555","CASTLE WATER LIMITED",10/1/2022 00:00:00,"257803",2411.58,"CA0625","CASTLE WATER LIMITED",27/12/2021 00:00:00,30/1/2022 00:00:00,"P10-2022"
,"LEE VALLEY RIDING CENTRE","PREMISES RELATED EXPENDITURE","WATER","2555","CASTLE WATER LIMITED",10/1/2022 00:00:00,"257803",2643.42,"CA0625","CASTLE WATER LIMITED",27/12/2021 00:00:00,30/1/2022 00:00:00,"P10-2022"
,"LEE VALLEY RIDING CENTRE","PREMISES RELATED EXPENDITURE","WATER","2555","CASTLE WATER LIMITED",18/1/2022 00:00:00,"258221",217.06,"CA0625","CASTLE WATER LIMITED",27/12/2021 00:00:00,30/1/2022 00:00:00,"P10-2022"
,"LEE VALLEY RIDING CENTRE","PREMISES RELATED EXPENDITURE","WATER","2555","CASTLE WATER LIMITED",18/1/2022 00:00:00,"258221",220.47,"CA0625","CASTLE WATER LIMITED",27/12/2021 00:00:00,30/1/2022 00:00:00,"P10-2022"
,"LV LEISURE CENTRE CAMPSITE","PREMISES RELATED EXPENDITURE","WATER","2555","CASTLE WATER LIMITED",11/1/2022 00:00:00,"257801",205.99,"CA0625","CASTLE WATER LIMITED",27/12/2021 00:00:00,30/1/2022 00:00:00,"P10-2022"
,"LV LEISURE CENTRE CAMPSITE","PREMISES RELATED EXPENDITURE","WATER","2555","CASTLE WATER LIMITED",11/1/2022 00:00:00,"257808",372.13,"CA0625","CASTLE WATER LIMITED",27/12/2021 00:00:00,30/1/2022 00:00:00,"P10-2022"
,"LV LEISURE CENTRE CAMPSITE","PREMISES RELATED EXPENDITURE","WATER","2555","CASTLE WATER LIMITED",11/1/2022 00:00:00,"257808",419.52,"CA0625","CASTLE WATER LIMITED",27/12/2021 00:00:00,30/1/2022 00:00:00,"P10-2022"
,"LV LEISURE CENTRE CAMPSITE","PREMISES RELATED EXPENDITURE","WATER","2555","CASTLE WATER LIMITED",11/1/2022 00:00:00,"257811",1517.15,"CA0625","CASTLE WATER LIMITED",27/12/2021 00:00:00,30/1/2022 00:00:00,"P10-2022"
,"LV LEISURE CENTRE CAMPSITE","PREMISES RELATED EXPENDITURE","WATER","2555","CASTLE WATER LIMITED",11/1/2022 00:00:00,"257811",2120.69,"CA0625","CASTLE WATER LIMITED",27/12/2021 00:00:00,30/1/2022 00:00:00,"P10-2022"
,"LV LEISURE CENTRE CAMPSITE","PREMISES RELATED EXPENDITURE","WATER","2555","CASTLE WATER LIMITED",11/1/2022 00:00:00,"257812",7214.2,"CA0625","CASTLE WATER LIMITED",27/12/2021 00:00:00,30/1/2022 00:00:00,"P10-2022"
,"LV LEISURE CENTRE CAMPSITE","PREMISES RELATED EXPENDITURE","WATER","2555","CASTLE WATER LIMITED",11/1/2022 00:00:00,"257812",5291.05,"CA0625","CASTLE WATER LIMITED",27/12/2021 00:00:00,30/1/2022 00:00:00,"P10-2022"
,"LV LEISURE CENTRE CAMPSITE","PREMISES RELATED EXPENDITURE","WATER","2555","CASTLE WATER LIMITED",11/1/2022 00:00:00,"257813",-433.35,"CA0625","CASTLE WATER LIMITED",27/12/2021 00:00:00,30/1/2022 00:00:00,"P10-2022"
,"LV LEISURE CENTRE CAMPSITE","PREMISES RELATED EXPENDITURE","WATER","2555","CASTLE WATER LIMITED",11/1/2022 00:00:00,"257813",-146.31,"CA0625","CASTLE WATER LIMITED",27/12/2021 00:00:00,30/1/2022 00:00:00,"P10-2022"
,"LV LEISURE CENTRE CAMPSITE","PREMISES RELATED EXPENDITURE","WATER","2555","CASTLE WATER LIMITED",18/1/2022 00:00:00,"258233",28.22,"CA0625","CASTLE WATER LIMITED",27/12/2021 00:00:00,30/1/2022 00:00:00,"P10-2022"
,"LV LEISURE CENTRE CAMPSITE","PREMISES RELATED EXPENDITURE","WATER","2555","CASTLE WATER LIMITED",18/1/2022 00:00:00,"258233",25.1,"CA0625","CASTLE WATER LIMITED",27/12/2021 00:00:00,30/1/2022 00:00:00,"P10-2022"
,"LEE VALLEY ATHLETICS CENTRE","PREMISES RELATED EXPENDITURE","WATER","2555","CASTLE WATER LIMITED",11/1/2022 00:00:00,"257807",2863.16,"CA0625","CASTLE WATER LIMITED",27/12/2021 00:00:00,30/1/2022 00:00:00,"P10-2022"
,"LEE VALLEY ATHLETICS CENTRE","PREMISES RELATED EXPENDITURE","WATER","2555","CASTLE WATER LIMITED",11/1/2022 00:00:00,"257807",3377.95,"CA0625","CASTLE WATER LIMITED",27/12/2021 00:00:00,30/1/2022 00:00:00,"P10-2022"
,"LEE VALLEY ATHLETICS CENTRE","PREMISES RELATED EXPENDITURE","WATER","2555","CASTLE WATER LIMITED",18/1/2022 00:00:00,"258232",285.2,"CA0625","CASTLE WATER LIMITED",27/12/2021 00:00:00,30/1/2022 00:00:00,"P10-2022"
,"LEE VALLEY ATHLETICS CENTRE","PREMISES RELATED EXPENDITURE","WATER","2555","CASTLE WATER LIMITED",18/1/2022 00:00:00,"258232",316.74,"CA0625","CASTLE WATER LIMITED",27/12/2021 00:00:00,30/1/2022 00:00:00,"P10-2022"
,"LEE VALLEY WHITE WATER CENTRE","PREMISES RELATED EXPENDITURE","WATER","2555","CASTLE WATER LIMITED",11/1/2022 00:00:00,"257487",1850.28,"CA0625","CASTLE WATER LIMITED",27/12/2021 00:00:00,30/1/2022 00:00:00,"P10-2022"
,"LEE VALLEY WHITE WATER CENTRE","PREMISES RELATED EXPENDITURE","WATER","2555","CASTLE WATER LIMITED",11/1/2022 00:00:00,"257487",2164.1,"CA0625","CASTLE WATER LIMITED",27/12/2021 00:00:00,30/1/2022 00:00:00,"P10-2022"
,"LEE VALLEY WHITE WATER CENTRE","PREMISES RELATED EXPENDITURE","WATER","2555","CASTLE WATER LIMITED",11/1/2022 00:00:00,"257586",913.44,"CA0625","CASTLE WATER LIMITED",27/12/2021 00:00:00,30/1/2022 00:00:00,"P10-2022"
,"LEE VALLEY WHITE WATER CENTRE","PREMISES RELATED EXPENDITURE","WATER","2555","CASTLE WATER LIMITED",11/1/2022 00:00:00,"257586",1068.66,"CA0625","CASTLE WATER LIMITED",27/12/2021 00:00:00,30/1/2022 00:00:00,"P10-2022"
,"LEE VALLEY WHITE WATER CENTRE","PREMISES RELATED EXPENDITURE","WATER","2555","CASTLE WATER LIMITED",19/1/2022 00:00:00,"258270",-91.36,"CA0625","CASTLE WATER LIMITED",27/12/2021 00:00:00,30/1/2022 00:00:00,"P10-2022"
,"LEE VALLEY WHITE WATER CENTRE","PREMISES RELATED EXPENDITURE","WATER","2555","CASTLE WATER LIMITED",19/1/2022 00:00:00,"258270",-146.96,"CA0625","CASTLE WATER LIMITED",27/12/2021 00:00:00,30/1/2022 00:00:00,"P10-2022"
,"LEE VALLEY MARINA SPRINGFIELD","PREMISES RELATED EXPENDITURE","CLEANING & DOMESTIC SUPPLIES","2666","P114471-SERVICE-Site cleaning for Sept,Oct,Nov & Dec 2021",11/1/2022 00:00:00,"257578",912.33,"MA0015","MAYFAIR CLEANING COMPANY LIMITED",27/12/2021 00:00:00,30/1/2022 00:00:00,"P10-2022"
,"LEE VALLEY MARINA SPRINGFIELD","PREMISES RELATED EXPENDITURE","CLEANING & DOMESTIC SUPPLIES","2666","P114767-SERVICE-Sanitary Disposal/Dust Mats ect rental",30/1/2022 00:00:00,"258436",186.18,"PE0015","PHS GROUP PLC",27/12/2021 00:00:00,30/1/2022 00:00:00,"P10-2022"
,"LEE VALLEY WATERWORKS CENTRE","PREMISES RELATED EXPENDITURE","CLEANING & DOMESTIC SUPPLIES","2666","P115911-SERVICE-Cleaning WaterWorks Centre - Dec 2021",6/1/2022 00:00:00,"257580",526,"GL0214","GLENDALE GROUNDS MANAGEMENT LIMITED",27/12/2021 00:00:00,30/1/2022 00:00:00,"P10-2022"
,"LEE VALLEY CAMPSITE","PREMISES RELATED EXPENDITURE","CLEANING & DOMESTIC SUPPLIES","2666","P115244-SERVICE-CLEANING MATERIALS",10/1/2022 00:00:00,"255462",141.51,"HY0043","HYGIENE SYSTEMS LTD",27/12/2021 00:00:00,30/1/2022 00:00:00,"P10-2022"
,"LEE VALLEY CAMPSITE","PREMISES RELATED EXPENDITURE","CLEANING & DOMESTIC SUPPLIES","2666","P115244-SERVICE-CLEANING MATERIALS",10/1/2022 00:00:00,"257760",-21.24,"HY0043","HYGIENE SYSTEMS LTD",27/12/2021 00:00:00,30/1/2022 00:00:00,"P10-2022"
,"LEE VALLEY CAMPSITE","PREMISES RELATED EXPENDITURE","CLEANING & DOMESTIC SUPPLIES","2666","P114688-SERVICE-26/11/21 - 25/12/21",11/1/2022 00:00:00,"257819",82.09,"IN0012","INITIAL WASHROOM HYGIENE",27/12/2021 00:00:00,30/1/2022 00:00:00,"P10-2022"
,"LEE VALLEY CAMPSITE","PREMISES RELATED EXPENDITURE","CLEANING & DOMESTIC SUPPLIES","2666","P116032-SERVICE-26/12/21 - 25/01/22",12/1/2022 00:00:00,"257820",82.09,"IN0012","INITIAL WASHROOM HYGIENE",27/12/2021 00:00:00,30/1/2022 00:00:00,"P10-2022"
,"LEE VALLEY CAMPSITE","PREMISES RELATED EXPENDITURE","CLEANING & DOMESTIC SUPPLIES","2666","P116032-SERVICE-26/01/22 - 25/02/22",12/1/2022 00:00:00,"257821",82.09,"IN0012","INITIAL WASHROOM HYGIENE",27/12/2021 00:00:00,30/1/2022 00:00:00,"P10-2022"
,"LEE VALLEY VELOPARK","PREMISES RELATED EXPENDITURE","CLEANING & DOMESTIC SUPPLIES","2666","P115974-SERVICE-Cleaning Products",12/1/2022 00:00:00,"256567",20.39,"SC0057","SCREWFIX DIRECT LTD",27/12/2021 00:00:00,30/1/2022 00:00:00,"P10-2022"
,"LV HOCKEY AND TENNIS CENTRE","PREMISES RELATED EXPENDITURE","CLEANING & DOMESTIC SUPPLIES","2666","P113781-SERVICE-hygiene services",12/1/2022 00:00:00,"257572",364.82,"PE0015","PHS GROUP PLC",27/12/2021 00:00:00,30/1/2022 00:00:00,"P10-2022"
,"LV HOCKEY AND TENNIS CENTRE","PREMISES RELATED EXPENDITURE","CLEANING & DOMESTIC SUPPLIES","2666","P115141-SERVICE-cleaning supplies until March 2022",7/1/2022 00:00:00,"257616",265.75,"BR0025","BREEZE SOUTHERN LTD",27/12/2021 00:00:00,30/1/2022 00:00:00,"P10-2022"
,"LV HOCKEY AND TENNIS CENTRE","PREMISES RELATED EXPENDITURE","CLEANING & DOMESTIC SUPPLIES","2666","P115141-SERVICE-cleaning supplies until March 2022",7/1/2022 00:00:00,"257617",117.15,"BR0025","BREEZE SOUTHERN LTD",27/12/2021 00:00:00,30/1/2022 00:00:00,"P10-2022"
,"LV HOCKEY AND TENNIS CENTRE","PREMISES RELATED EXPENDITURE","CLEANING & DOMESTIC SUPPLIES","2666","P116002-SERVICE-window cleaning November and January",17/1/2022 00:00:00,"257966",725,"EL0076","ELITE SERVICES - PLS USE A/C ELI0362",27/12/2021 00:00:00,30/1/2022 00:00:00,"P10-2022"
,"LV HOCKEY AND TENNIS CENTRE","PREMISES RELATED EXPENDITURE","CLEANING & DOMESTIC SUPPLIES","2666","P116002-SERVICE-window cleaning November and January",17/1/2022 00:00:00,"257967",725,"EL0076","ELITE SERVICES - PLS USE A/C ELI0362",27/12/2021 00:00:00,30/1/2022 00:00:00,"P10-2022"
,"LV HOCKEY AND TENNIS CENTRE","PREMISES RELATED EXPENDITURE","CLEANING & DOMESTIC SUPPLIES","2666","P116168-SERVICE-cleaning and materials",25/1/2022 00:00:00,"258169",110.24,"CA0498","CASNA GROUP",27/12/2021 00:00:00,30/1/2022 00:00:00,"P10-2022"
,"LEE VALLEY ATHLETICS CENTRE","PREMISES RELATED EXPENDITURE","CLEANING & DOMESTIC SUPPLIES","2666","P115743-SERVICE-LVAC CLEANING EQUIPMENT AS PER EMAIL ABEACON",11/1/2022 00:00:00,"257515",134.49,"HY0043","HYGIENE SYSTEMS LTD",27/12/2021 00:00:00,30/1/2022 00:00:00,"P10-2022"
,"LEE VALLEY ATHLETICS CENTRE","PREMISES RELATED EXPENDITURE","CLEANING & DOMESTIC SUPPLIES","2666","P115743-SERVICE-LVAC CLEANING EQUIPMENT AS PER EMAIL ABEACON",26/1/2022 00:00:00,"258188",3.45,"HY0043","HYGIENE SYSTEMS LTD",27/12/2021 00:00:00,30/1/2022 00:00:00,"P10-2022"
,"LEE VALLEY ATHLETICS CENTRE","PREMISES RELATED EXPENDITURE","CLEANING & DOMESTIC SUPPLIES","2666","P116060-SERVICE-LVAC CLEANING EQUP. EMAILED 13/1/22 ABEACKON",30/1/2022 00:00:00,"258425",265.89,"HY0043","HYGIENE SYSTEMS LTD",27/12/2021 00:00:00,30/1/2022 00:00:00,"P10-2022"
,"LEE VALLEY WHITE WATER CENTRE","PREMISES RELATED EXPENDITURE","CLEANING & DOMESTIC SUPPLIES","2666","P115725-SERVICE-Cleaning supplies",11/1/2022 00:00:00,"257237",130.08,"SU0595","SUMMIT HYGIENE LTD",27/12/2021 00:00:00,30/1/2022 00:00:00,"P10-2022"
,"LEE VALLEY WHITE WATER CENTRE","PREMISES RELATED EXPENDITURE","CLEANING & DOMESTIC SUPPLIES","2666","P116048-SERVICE-cleaning supplies",20/1/2022 00:00:00,"258211",163.53,"SU0595","SUMMIT HYGIENE LTD",27/12/2021 00:00:00,30/1/2022 00:00:00,"P10-2022"
,"LEE VALLEY WHITE WATER CENTRE","PREMISES RELATED EXPENDITURE","WINDOW CLEANING","2667","P115251-SERVICE-Window Cleaning Internal and External",10/1/2022 00:00:00,"257314",916.29,"ELI0362","ELITE SUPPORT SERVICES (LONDON) LIMITED",27/12/2021 00:00:00,30/1/2022 00:00:00,"P10-2022"
,"LEE VALLEY WHITE WATER CENTRE","PREMISES RELATED EXPENDITURE","WINDOW CLEANING","2667","P112886-SERVICE-Window Clean",25/1/2022 00:00:00,"258103",916.29,"ELI0362","ELITE SUPPORT SERVICES (LONDON) LIMITED",27/12/2021 00:00:00,30/1/2022 00:00:00,"P10-2022"
,"LEE VALLEY WHITE WATER CENTRE","PREMISES RELATED EXPENDITURE","WINDOW CLEANING","2667","P112886-SERVICE-Window Clean",25/1/2022 00:00:00,"258215",-861.1,"ELI0362","ELITE SUPPORT SERVICES (LONDON) LIMITED",27/12/2021 00:00:00,30/1/2022 00:00:00,"P10-2022"
"P&V","LEE VALLEY FARM HOLYFIELDHALL","TRANSPORT RELATED EXPENDITURE","TRANSPORT RUNNING EXPENSES","3333","P115880-SERVICE-Fix Fault",6/1/2022 00:00:00,"257483",474.62,"OL0059","OLIVER LANDPOWER LIMITED",27/12/2021 00:00:00,30/1/2022 00:00:00,"P10-2022"
"P&V","LEE VALLEY FARM HOLYFIELDHALL","TRANSPORT RELATED EXPENDITURE","TRANSPORT RUNNING EXPENSES","3333","P114205-SERVICE-Parts",6/1/2022 00:00:00,"257567",59.03,"RW0257","R. W. CRAWFORD AGRICULTURAL MACHINERY LTD",27/12/2021 00:00:00,30/1/2022 00:00:00,"P10-2022"
"P&V","LEE VALLEY FARM HOLYFIELDHALL","TRANSPORT RELATED EXPENDITURE","TRANSPORT RUNNING EXPENSES","3333","P114205-SERVICE-Parts",6/1/2022 00:00:00,"257568",24.63,"RW0257","R. W. CRAWFORD AGRICULTURAL MACHINERY LTD",27/12/2021 00:00:00,30/1/2022 00:00:00,"P10-2022"
"P&V","LEE VALLEY FARM HOLYFIELDHALL","TRANSPORT RELATED EXPENDITURE","TRANSPORT RUNNING EXPENSES","3333","P115833-SERVICE-Parts",11/1/2022 00:00:00,"257745",43.92,"HU0003","ALLIANCE AUTOMOTIVE UK CV LIMITED T/A",27/12/2021 00:00:00,30/1/2022 00:00:00,"P10-2022"
"P&V","LEE VALLEY FARM HOLYFIELDHALL","TRANSPORT RELATED EXPENDITURE","TRANSPORT RUNNING EXPENSES","3333","P114205-SERVICE-Parts",11/1/2022 00:00:00,"257816",81.41,"RW0257","R. W. CRAWFORD AGRICULTURAL MACHINERY LTD",27/12/2021 00:00:00,30/1/2022 00:00:00,"P10-2022"
"P&V","LEE VALLEY FARM HOLYFIELDHALL","TRANSPORT RELATED EXPENDITURE","TRANSPORT RUNNING EXPENSES","3333","P114205-SERVICE-Parts",25/1/2022 00:00:00,"258208",63.46,"RW0257","R. W. CRAWFORD AGRICULTURAL MACHINERY LTD",27/12/2021 00:00:00,30/1/2022 00:00:00,"P10-2022"
"P&V","LEE VALLEY FARM HOLYFIELDHALL","TRANSPORT RELATED EXPENDITURE","TRANSPORT RUNNING EXPENSES","3333","P115833-SERVICE-Parts",25/1/2022 00:00:00,"258247",171.84,"HU0003","ALLIANCE AUTOMOTIVE UK CV LIMITED T/A",27/12/2021 00:00:00,30/1/2022 00:00:00,"P10-2022"
"P&V","LEE VALLEY FARM HOLYFIELDHALL","TRANSPORT RELATED EXPENDITURE","TRANSPORT RUNNING EXPENSES","3333","P113482-SERVICE-Parts",25/1/2022 00:00:00,"258297",181.65,"OL0059","OLIVER LANDPOWER LIMITED",27/12/2021 00:00:00,30/1/2022 00:00:00,"P10-2022"
"P&V","LEE VALLEY FARM HOLYFIELDHALL","TRANSPORT RELATED EXPENDITURE","TRANSPORT RUNNING EXPENSES","3333","P114935-SERVICE-Parts",25/1/2022 00:00:00,"258413",69.07,"OL0001","OLIVER AGRICULTURE LTD",27/12/2021 00:00:00,30/1/2022 00:00:00,"P10-2022"
"P&V","LEE VALLEY FARM HOLYFIELDHALL","TRANSPORT RELATED EXPENDITURE","TRANSPORT RUNNING EXPENSES","3333","P115833-SERVICE-Parts",30/1/2022 00:00:00,"258461",53.47,"HU0003","ALLIANCE AUTOMOTIVE UK CV LIMITED T/A",27/12/2021 00:00:00,30/1/2022 00:00:00,"P10-2022"
"P&V","LEE VALLEY FARM HOLYFIELDHALL","TRANSPORT RELATED EXPENDITURE","TRANSPORT RUNNING EXPENSES","3333","P114205-SERVICE-Parts",30/1/2022 00:00:00,"258467",59.03,"RW0257","R. W. CRAWFORD AGRICULTURAL MACHINERY LTD",27/12/2021 00:00:00,30/1/2022 00:00:00,"P10-2022"
"P&V","LEE VALLEY FARM HOLYFIELDHALL","TRANSPORT RELATED EXPENDITURE","TRANSPORT RUNNING EXPENSES","3333","P115920-SERVICE-Vehcile Service",30/1/2022 00:00:00,"258496",54.85,"AJ0064","A.J.D. OFF ROAD LTD",27/12/2021 00:00:00,30/1/2022 00:00:00,"P10-2022"
,"LV CAMPSITE CARAVAN SALES","TRANSPORT RELATED EXPENDITURE","TRANSPORT RUNNING EXPENSES","3333","P115221-SERVICE-riverwood induction",6/1/2022 00:00:00,"255985",2500,"LO0459","LONDON LODGES UK",27/12/2021 00:00:00,30/1/2022 00:00:00,"P10-2022"
,"LV CAMPSITE CARAVAN SALES","TRANSPORT RELATED EXPENDITURE","TRANSPORT RUNNING EXPENSES","3333","P115219-SERVICE-Transportation of riverwood",6/1/2022 00:00:00,"255986",1650,"LO0459","LONDON LODGES UK",27/12/2021 00:00:00,30/1/2022 00:00:00,"P10-2022"
,"LEE VALLEY CARAVAN PARK","TRANSPORT RELATED EXPENDITURE","TRANSPORT RUNNING EXPENSES","3333","P116113-SERVICE-Transport for staff unit",26/1/2022 00:00:00,"258498",1200,"LO0459","LONDON LODGES UK",27/12/2021 00:00:00,30/1/2022 00:00:00,"P10-2022"
,"LEE VALLEY MARINA STANSTEAD","TRANSPORT RELATED EXPENDITURE","VEHICLE FUEL","3335","ALLSTAR BUSINESS SOLUTIONS LTD",6/1/2022 00:00:00,"257542",75.72,"AR0035","ALLSTAR BUSINESS SOLUTIONS LTD",27/12/2021 00:00:00,30/1/2022 00:00:00,"P10-2022"
"P&V","LEE VALLEY FARM HOLYFIELDHALL","TRANSPORT RELATED EXPENDITURE","VEHICLE FUEL","3335","ALLSTAR BUSINESS SOLUTIONS LTD",6/1/2022 00:00:00,"257542",144.73,"AR0035","ALLSTAR BUSINESS SOLUTIONS LTD",27/12/2021 00:00:00,30/1/2022 00:00:00,"P10-2022"
,"LEE VALLEY CARAVAN PARK","TRANSPORT RELATED EXPENDITURE","VEHICLE FUEL","3335","ALLSTAR BUSINESS SOLUTIONS LTD",6/1/2022 00:00:00,"257542",195.32,"AR0035","ALLSTAR BUSINESS SOLUTIONS LTD",27/12/2021 00:00:00,30/1/2022 00:00:00,"P10-2022"
"P&V","NORTH AREA RANGERS","TRANSPORT RELATED EXPENDITURE","VEHICLE FUEL","3335","ALLSTAR BUSINESS SOLUTIONS LTD",6/1/2022 00:00:00,"257542",36.32,"AR0035","ALLSTAR BUSINESS SOLUTIONS LTD",27/12/2021 00:00:00,30/1/2022 00:00:00,"P10-2022"
"P&V","SOUTH AREA RANGERS","TRANSPORT RELATED EXPENDITURE","VEHICLE FUEL","3335","ALLSTAR BUSINESS SOLUTIONS LTD",6/1/2022 00:00:00,"257542",92.99,"AR0035","ALLSTAR BUSINESS SOLUTIONS LTD",27/12/2021 00:00:00,30/1/2022 00:00:00,"P10-2022"
"P&V","SOUTH AREA RANGERS","TRANSPORT RELATED EXPENDITURE","VEHICLE FUEL","3335","ALLSTAR BUSINESS SOLUTIONS LTD",6/1/2022 00:00:00,"257542",392.24,"AR0035","ALLSTAR BUSINESS SOLUTIONS LTD",27/12/2021 00:00:00,30/1/2022 00:00:00,"P10-2022"
"P&V","GUNPOWDER PARK","TRANSPORT RELATED EXPENDITURE","VEHICLE FUEL","3335","ALLSTAR BUSINESS SOLUTIONS LTD",6/1/2022 00:00:00,"257542",63.3,"AR0035","ALLSTAR BUSINESS SOLUTIONS LTD",27/12/2021 00:00:00,30/1/2022 00:00:00,"P10-2022"
"P&V","RIVER LEE COUNTRY PARK","TRANSPORT RELATED EXPENDITURE","VEHICLE FUEL","3335","ALLSTAR BUSINESS SOLUTIONS LTD",6/1/2022 00:00:00,"257542",81.51,"AR0035","ALLSTAR BUSINESS SOLUTIONS LTD",27/12/2021 00:00:00,30/1/2022 00:00:00,"P10-2022"
"P&V","RIVER LEE COUNTRY PARK","TRANSPORT RELATED EXPENDITURE","VEHICLE FUEL","3335","ALLSTAR BUSINESS SOLUTIONS LTD",6/1/2022 00:00:00,"257542",402.12,"AR0035","ALLSTAR BUSINESS SOLUTIONS LTD",27/12/2021 00:00:00,30/1/2022 00:00:00,"P10-2022"
,"LV HOCKEY AND TENNIS CENTRE","TRANSPORT RELATED EXPENDITURE","VEHICLE FUEL","3335","ALLSTAR BUSINESS SOLUTIONS LTD",6/1/2022 00:00:00,"257542",26.52,"AR0035","ALLSTAR BUSINESS SOLUTIONS LTD",27/12/2021 00:00:00,30/1/2022 00:00:00,"P10-2022"
,"LEE VALLEY RIDING CENTRE","TRANSPORT RELATED EXPENDITURE","VEHICLE FUEL","3335","ALLSTAR BUSINESS SOLUTIONS LTD",6/1/2022 00:00:00,"257543",133.27,"AR0035","ALLSTAR BUSINESS SOLUTIONS LTD",27/12/2021 00:00:00,30/1/2022 00:00:00,"P10-2022"
"P&V","RIVER LEE COUNTRY PARK","TRANSPORT RELATED EXPENDITURE","VEHICLE REPAIRS & MAINTENANCE","3338","P115800-SERVICE-Isuzu GK 65 MRU - Service",17/1/2022 00:00:00,"257938",225.15,"AB0153","ABBEY SERVICE CENTRE",27/12/2021 00:00:00,30/1/2022 00:00:00,"P10-2022"
"P&V","RIVER LEE COUNTRY PARK","TRANSPORT RELATED EXPENDITURE","VEHICLE REPAIRS & MAINTENANCE","3338","P115800-SERVICE-Isuzu GK 65 MRU - MOT",17/1/2022 00:00:00,"257938",45,"AB0153","ABBEY SERVICE CENTRE",27/12/2021 00:00:00,30/1/2022 00:00:00,"P10-2022"
"P&V","RIVER LEE COUNTRY PARK","TRANSPORT RELATED EXPENDITURE","VEHICLE REPAIRS & MAINTENANCE","3338","P115800-SERVICE-Isuzu GK 65 MPO - MOT",17/1/2022 00:00:00,"257939",45,"AB0153","ABBEY SERVICE CENTRE",27/12/2021 00:00:00,30/1/2022 00:00:00,"P10-2022"
"P&V","RIVER LEE COUNTRY PARK","TRANSPORT RELATED EXPENDITURE","VEHICLE REPAIRS & MAINTENANCE","3338","P115800-SERVICE-Isuzu GK 65 MPO - Service",17/1/2022 00:00:00,"257939",225.15,"AB0153","ABBEY SERVICE CENTRE",27/12/2021 00:00:00,30/1/2022 00:00:00,"P10-2022"
"P&V","RIVER LEE COUNTRY PARK","TRANSPORT RELATED EXPENDITURE","VEHICLE REPAIRS & MAINTENANCE","3338","P115800-SERVICE-Isuzu GK 65 MRO - Service",17/1/2022 00:00:00,"257940",225.15,"AB0153","ABBEY SERVICE CENTRE",27/12/2021 00:00:00,30/1/2022 00:00:00,"P10-2022"
"P&V","RIVER LEE COUNTRY PARK","TRANSPORT RELATED EXPENDITURE","VEHICLE REPAIRS & MAINTENANCE","3338","P115800-SERVICE-Isuzu GK 65 MRO - MOT",17/1/2022 00:00:00,"257940",45,"AB0153","ABBEY SERVICE CENTRE",27/12/2021 00:00:00,30/1/2022 00:00:00,"P10-2022"
"P&V","RIVER LEE COUNTRY PARK","TRANSPORT RELATED EXPENDITURE","VEHICLE REPAIRS & MAINTENANCE","3338","P115800-SERVICE-Ford Transit Connect GD 65 UTK - Parts",17/1/2022 00:00:00,"257941",75,"AB0153","ABBEY SERVICE CENTRE",27/12/2021 00:00:00,30/1/2022 00:00:00,"P10-2022"
"P&V","RIVER LEE COUNTRY PARK","TRANSPORT RELATED EXPENDITURE","VEHICLE REPAIRS & MAINTENANCE","3338","P115800-SERVICE-Ford Transit Connect GD 65 UTK - MOT",17/1/2022 00:00:00,"257941",50,"AB0153","ABBEY SERVICE CENTRE",27/12/2021 00:00:00,30/1/2022 00:00:00,"P10-2022"
"P&V","RIVER LEE COUNTRY PARK","TRANSPORT RELATED EXPENDITURE","VEHICLE REPAIRS & MAINTENANCE","3338","P115800-SERVICE-Ford Transit Connect GD 65 UTF - Parts",17/1/2022 00:00:00,"257942",75,"AB0153","ABBEY SERVICE CENTRE",27/12/2021 00:00:00,30/1/2022 00:00:00,"P10-2022"
"P&V","RIVER LEE COUNTRY PARK","TRANSPORT RELATED EXPENDITURE","VEHICLE REPAIRS & MAINTENANCE","3338","P115800-SERVICE-Ford Transit Connect GD 65 UTF - MOT",17/1/2022 00:00:00,"257942",50,"AB0153","ABBEY SERVICE CENTRE",27/12/2021 00:00:00,30/1/2022 00:00:00,"P10-2022"
"P&V","RIVER LEE COUNTRY PARK","TRANSPORT RELATED EXPENDITURE","VEHICLE REPAIRS & MAINTENANCE","3338","VEHICLE PARTS",17/1/2022 00:00:00,"258134",4.48,"FI0001","DIRECTOR OF FINANCE - CASH",27/12/2021 00:00:00,30/1/2022 00:00:00,"P10-2022"
"P&V","RIVER LEE COUNTRY PARK","TRANSPORT RELATED EXPENDITURE","VEHICLE REPAIRS & MAINTENANCE","3338","VEHICLE PARTS",17/1/2022 00:00:00,"258134",22.4,"FI0001","DIRECTOR OF FINANCE - CASH",27/12/2021 00:00:00,30/1/2022 00:00:00,"P10-2022"
,"LEE VALLEY MARINA SPRINGFIELD","SUPPLIES AND SERVICES","EQUIPMENT & MATERIALS","4111","P116138-SERVICE-De Icing salt & PPE",30/1/2022 00:00:00,"258507",80.52,"SA0008","SAFETEC DIRECT LTD",27/12/2021 00:00:00,30/1/2022 00:00:00,"P10-2022"
,"LEE VALLEY CAMPSITE","SUPPLIES AND SERVICES","EQUIPMENT & MATERIALS","4111","P115859-SERVICE-usb plugs",6/1/2022 00:00:00,"257556",20.8,"AM0406","AMAZON PAYMENTS UK LIMITED",27/12/2021 00:00:00,30/1/2022 00:00:00,"P10-2022"
,"LEE VALLEY CAMPSITE","SUPPLIES AND SERVICES","EQUIPMENT & MATERIALS","4111","P115898-SERVICE-Amazon supplies for Sewardstone",7/1/2022 00:00:00,"257604",14.67,"AM0406","AMAZON PAYMENTS UK LIMITED",27/12/2021 00:00:00,30/1/2022 00:00:00,"P10-2022"
,"LEE VALLEY CAMPSITE","SUPPLIES AND SERVICES","EQUIPMENT & MATERIALS","4111","P115898-SERVICE-Amazon supplies for Sewardstone",7/1/2022 00:00:00,"257605",2.73,"AM0406","AMAZON PAYMENTS UK LIMITED",27/12/2021 00:00:00,30/1/2022 00:00:00,"P10-2022"
,"LEE VALLEY CAMPSITE","SUPPLIES AND SERVICES","EQUIPMENT & MATERIALS","4111","P115898-SERVICE-Amazon supplies for Sewardstone",10/1/2022 00:00:00,"257742",49.15,"AM0406","AMAZON PAYMENTS UK LIMITED",27/12/2021 00:00:00,30/1/2022 00:00:00,"P10-2022"
,"LEE VALLEY CAMPSITE","SUPPLIES AND SERVICES","EQUIPMENT & MATERIALS","4111","P115898-SERVICE-Amazon supplies for Sewardstone",10/1/2022 00:00:00,"257777",18.32,"AM0406","AMAZON PAYMENTS UK LIMITED",27/12/2021 00:00:00,30/1/2022 00:00:00,"P10-2022"
,"LEE VALLEY CAMPSITE","SUPPLIES AND SERVICES","EQUIPMENT & MATERIALS","4111","P115898-SERVICE-Amazon supplies for Sewardstone",10/1/2022 00:00:00,"257778",14.16,"AM0406","AMAZON PAYMENTS UK LIMITED",27/12/2021 00:00:00,30/1/2022 00:00:00,"P10-2022"
,"LEE VALLEY CAMPSITE","SUPPLIES AND SERVICES","EQUIPMENT & MATERIALS","4111","P115993-SERVICE-exstinguisher bracket",17/1/2022 00:00:00,"257873",16.65,"AM0406","AMAZON PAYMENTS UK LIMITED",27/12/2021 00:00:00,30/1/2022 00:00:00,"P10-2022"
,"LEE VALLEY CARAVAN PARK","SUPPLIES AND SERVICES","EQUIPMENT & MATERIALS","4111","P115820-SERVICE-Electrical maintenance",11/1/2022 00:00:00,"257268",5134.35,"BR0018","BRADSHAW ELECTRICAL LIMITED",27/12/2021 00:00:00,30/1/2022 00:00:00,"P10-2022"
,"LEE VALLEY CARAVAN PARK","SUPPLIES AND SERVICES","EQUIPMENT & MATERIALS","4111","P116006-SERVICE-Laundry",17/1/2022 00:00:00,"257541",722.76,"JO0168","JOHNSON STALBRIDGE LINEN SERVICES",27/12/2021 00:00:00,30/1/2022 00:00:00,"P10-2022"
,"LEE VALLEY CARAVAN PARK","SUPPLIES AND SERVICES","EQUIPMENT & MATERIALS","4111","P116010-SERVICE-Monthly pest control",11/1/2022 00:00:00,"257763",70,"VE0006","VERMINATE CITY & RURAL PEST CONTROL LTD",27/12/2021 00:00:00,30/1/2022 00:00:00,"P10-2022"
,"LEE VALLEY CARAVAN PARK","SUPPLIES AND SERVICES","EQUIPMENT & MATERIALS","4111","P116049-SERVICE-Inspect tripped pump",17/1/2022 00:00:00,"257774",180,"CO0550","CONVERT WATER LTD",27/12/2021 00:00:00,30/1/2022 00:00:00,"P10-2022"
,"LEE VALLEY CARAVAN PARK","SUPPLIES AND SERVICES","EQUIPMENT & MATERIALS","4111","P116235-SERVICE-Drill & materials",26/1/2022 00:00:00,"258194",177.7,"SC0057","SCREWFIX DIRECT LTD",27/12/2021 00:00:00,30/1/2022 00:00:00,"P10-2022"
,"LEE VALLEY CARAVAN PARK","SUPPLIES AND SERVICES","EQUIPMENT & MATERIALS","4111","P115241-SERVICE-Pins for dobbs",30/1/2022 00:00:00,"258606",10.41,"AM0406","AMAZON PAYMENTS UK LIMITED",27/12/2021 00:00:00,30/1/2022 00:00:00,"P10-2022"
,"LEE VALLEY CARAVAN PARK","SUPPLIES AND SERVICES","EQUIPMENT & MATERIALS","4111","P115319-SERVICE-cable",30/1/2022 00:00:00,"258607",15.78,"AM0406","AMAZON PAYMENTS UK LIMITED",27/12/2021 00:00:00,30/1/2022 00:00:00,"P10-2022"
,"LEE VALLEY CARAVAN PARK","SUPPLIES AND SERVICES","EQUIPMENT & MATERIALS","4111","P116317-SERVICE-Materials for revap of the Bunglow",30/1/2022 00:00:00,"258762",424.68,"LE0012","LEASIDE TIMBER & BUILDERS MERCHANTS LTD",27/12/2021 00:00:00,30/1/2022 00:00:00,"P10-2022"
"P&V","MYDDELTON HOUSE GARDENS","SUPPLIES AND SERVICES","EQUIPMENT & MATERIALS","4111","P115948-SERVICE-garden tools and equitment",17/1/2022 00:00:00,"257876",91.61,"CL0093","CLOCKHOUSE NURSERY",27/12/2021 00:00:00,30/1/2022 00:00:00,"P10-2022"
"P&V","NORTH AREA RANGERS","SUPPLIES AND SERVICES","EQUIPMENT & MATERIALS","4111","P115919-SERVICE-BIG WIPES - Heavy Duty",11/1/2022 00:00:00,"257627",99.9,"JE0011","SAINT-GOBAIN BUILDING DISTRIBUTION",27/12/2021 00:00:00,30/1/2022 00:00:00,"P10-2022"
"P&V","NORTH AREA RANGERS","SUPPLIES AND SERVICES","EQUIPMENT & MATERIALS","4111","P111485-SERVICE-Equipment & Materials as and when required",18/1/2022 00:00:00,"258225",39.3,"JE0011","SAINT-GOBAIN BUILDING DISTRIBUTION",27/12/2021 00:00:00,30/1/2022 00:00:00,"P10-2022"
"P&V","SOUTH AREA RANGERS","SUPPLIES AND SERVICES","EQUIPMENT & MATERIALS","4111","P115845-SERVICE-Chipper Parts - Cap for Diesel TW 150 DHB",30/1/2022 00:00:00,"258596",17.5,"GR0146","GREEN PLANT UK LTD",27/12/2021 00:00:00,30/1/2022 00:00:00,"P10-2022"
"P&V","SOUTH AREA RANGERS","SUPPLIES AND SERVICES","EQUIPMENT & MATERIALS","4111","P115845-SERVICE-Chipper Parts - Ignition Key",30/1/2022 00:00:00,"258596",6.25,"GR0146","GREEN PLANT UK LTD",27/12/2021 00:00:00,30/1/2022 00:00:00,"P10-2022"
"P&V","SOUTH AREA RANGERS","SUPPLIES AND SERVICES","EQUIPMENT & MATERIALS","4111","P115845-SERVICE-Chipper Parts - Delivery to address below",30/1/2022 00:00:00,"258596",7.5,"GR0146","GREEN PLANT UK LTD",27/12/2021 00:00:00,30/1/2022 00:00:00,"P10-2022"
"P&V","SOUTH AREA RANGERS","SUPPLIES AND SERVICES","EQUIPMENT & MATERIALS","4111","P116011-SERVICE-Brush Cutter Parts - Sthil Shredder Safety &",30/1/2022 00:00:00,"258630",29.04,"AP0245","APS LIMITED",27/12/2021 00:00:00,30/1/2022 00:00:00,"P10-2022"
"P&V","SOUTH AREA RANGERS","SUPPLIES AND SERVICES","EQUIPMENT & MATERIALS","4111","P115934-SERVICE-3x Clearing Saw Blade Assembly",30/1/2022 00:00:00,"258631",46.5,"AP0245","APS LIMITED",27/12/2021 00:00:00,30/1/2022 00:00:00,"P10-2022"
"P&V","SOUTH AREA RANGERS","SUPPLIES AND SERVICES","EQUIPMENT & MATERIALS","4111","P115934-SERVICE-1x Stihl Clearing Saw Brush Blade",30/1/2022 00:00:00,"258631",34.17,"AP0245","APS LIMITED",27/12/2021 00:00:00,30/1/2022 00:00:00,"P10-2022"
"P&V","SOUTH AREA RANGERS","SUPPLIES AND SERVICES","EQUIPMENT & MATERIALS","4111","P115934-SERVICE-3x Stihl Safety & Deflector",30/1/2022 00:00:00,"258631",71.01,"AP0245","APS LIMITED",27/12/2021 00:00:00,30/1/2022 00:00:00,"P10-2022"
"P&V","SOUTH AREA RANGERS","SUPPLIES AND SERVICES","EQUIPMENT & MATERIALS","4111","P115956-SERVICE-1x FS 460 Clearing Saw",30/1/2022 00:00:00,"258632",675.83,"AP0245","APS LIMITED",27/12/2021 00:00:00,30/1/2022 00:00:00,"P10-2022"
"P&V","ABBEY GARDENS","SUPPLIES AND SERVICES","EQUIPMENT & MATERIALS","4111","P115586-SERVICE-40 tonne 20mm Shingle",6/1/2022 00:00:00,"256864",1400,"HA0450","J & R HAULAGE LTD",27/12/2021 00:00:00,30/1/2022 00:00:00,"P10-2022"
"P&V","ABBEY GARDENS","SUPPLIES AND SERVICES","EQUIPMENT & MATERIALS","4111","P115586-SERVICE-40 tonne 20mm Shingle",6/1/2022 00:00:00,"257736",-140,"HA0450","J & R HAULAGE LTD",27/12/2021 00:00:00,30/1/2022 00:00:00,"P10-2022"
"P&V","RIVER LEE COUNTRY PARK","SUPPLIES AND SERVICES","EQUIPMENT & MATERIALS","4111","P115655-SERVICE-Delivery to address below",11/1/2022 00:00:00,"256968",5.25,"LS0469","L & S ENGINEERS LTD",27/12/2021 00:00:00,30/1/2022 00:00:00,"P10-2022"
"P&V","RIVER LEE COUNTRY PARK","SUPPLIES AND SERVICES","EQUIPMENT & MATERIALS","4111","P115655-SERVICE-3x Pole Pruner Replacement Chains 12""",11/1/2022 00:00:00,"256968",25.11,"LS0469","L & S ENGINEERS LTD",27/12/2021 00:00:00,30/1/2022 00:00:00,"P10-2022"
"P&V","RIVER LEE COUNTRY PARK","SUPPLIES AND SERVICES","EQUIPMENT & MATERIALS","4111","P115655-SERVICE-2x 13""/14"" Chain Loop 56 Links",11/1/2022 00:00:00,"256968",24.84,"LS0469","L & S ENGINEERS LTD",27/12/2021 00:00:00,30/1/2022 00:00:00,"P10-2022"
"P&V","RIVER LEE COUNTRY PARK","SUPPLIES AND SERVICES","EQUIPMENT & MATERIALS","4111","P115655-SERVICE-2x Chainsaw Chain 16""",11/1/2022 00:00:00,"256968",29.7,"LS0469","L & S ENGINEERS LTD",27/12/2021 00:00:00,30/1/2022 00:00:00,"P10-2022"
"P&V","RIVER LEE COUNTRY PARK","SUPPLIES AND SERVICES","EQUIPMENT & MATERIALS","4111","P115655-SERVICE-1x Stihl Rollomatic Guide Bar 18""",11/1/2022 00:00:00,"256968",33.75,"LS0469","L & S ENGINEERS LTD",27/12/2021 00:00:00,30/1/2022 00:00:00,"P10-2022"
"P&V","RIVER LEE COUNTRY PARK","SUPPLIES AND SERVICES","EQUIPMENT & MATERIALS","4111","P115655-SERVICE-2x Chainsaw Chain 18""",11/1/2022 00:00:00,"256968",32.94,"LS0469","L & S ENGINEERS LTD",27/12/2021 00:00:00,30/1/2022 00:00:00,"P10-2022"
"P&V","RIVER LEE COUNTRY PARK","SUPPLIES AND SERVICES","EQUIPMENT & MATERIALS","4111","TOOLS & EQUIP",17/1/2022 00:00:00,"258134",8.1,"FI0001","DIRECTOR OF FINANCE - CASH",27/12/2021 00:00:00,30/1/2022 00:00:00,"P10-2022"
"P&V","RIVER LEE COUNTRY PARK","SUPPLIES AND SERVICES","EQUIPMENT & MATERIALS","4111","TOOLS & EQUIP",17/1/2022 00:00:00,"258134",3.38,"FI0001","DIRECTOR OF FINANCE - CASH",27/12/2021 00:00:00,30/1/2022 00:00:00,"P10-2022"
"P&V","RIVER LEE COUNTRY PARK","SUPPLIES AND SERVICES","EQUIPMENT & MATERIALS","4111","TOOLS & EQUIP",17/1/2022 00:00:00,"258134",1.83,"FI0001","DIRECTOR OF FINANCE - CASH",27/12/2021 00:00:00,30/1/2022 00:00:00,"P10-2022"
"P&V","RIVER LEE COUNTRY PARK","SUPPLIES AND SERVICES","EQUIPMENT & MATERIALS","4111","TOOLS & EQUIP",17/1/2022 00:00:00,"258134",2.87,"FI0001","DIRECTOR OF FINANCE - CASH",27/12/2021 00:00:00,30/1/2022 00:00:00,"P10-2022"
"P&V","RIVER LEE COUNTRY PARK","SUPPLIES AND SERVICES","EQUIPMENT & MATERIALS","4111","TOOLS & EQUIP",17/1/2022 00:00:00,"258134",6.22,"FI0001","DIRECTOR OF FINANCE - CASH",27/12/2021 00:00:00,30/1/2022 00:00:00,"P10-2022"
"P&V","RIVER LEE COUNTRY PARK","SUPPLIES AND SERVICES","EQUIPMENT & MATERIALS","4111","TOOLS & EQUIP",17/1/2022 00:00:00,"258134",5,"FI0001","DIRECTOR OF FINANCE - CASH",27/12/2021 00:00:00,30/1/2022 00:00:00,"P10-2022"
"P&V","RIVER LEE COUNTRY PARK","SUPPLIES AND SERVICES","EQUIPMENT & MATERIALS","4111","TOOLS & EQUIP",17/1/2022 00:00:00,"258134",7.5,"FI0001","DIRECTOR OF FINANCE - CASH",27/12/2021 00:00:00,30/1/2022 00:00:00,"P10-2022"
,"VENUES MANAGEMENT","SUPPLIES AND SERVICES","EQUIPMENT & MATERIALS","4111","P115188-SERVICE-1200 Logoed Black Face Masks",26/1/2022 00:00:00,"258418",2340,"CO0740","COMM SENSE LTD",27/12/2021 00:00:00,30/1/2022 00:00:00,"P10-2022"
,"LEE VALLEY VELOPARK","SUPPLIES AND SERVICES","EQUIPMENT & MATERIALS","4111","P115972-SERVICE-Suremix 60 Soze V",12/1/2022 00:00:00,"257573",51.3,"BO0015","BOC LTD",27/12/2021 00:00:00,30/1/2022 00:00:00,"P10-2022"
,"LEE VALLEY VELOPARK","SUPPLIES AND SERVICES","EQUIPMENT & MATERIALS","4111","P115271-SERVICE-Derny Repair",30/1/2022 00:00:00,"258463",361.5,"CA0666","DERNY REPAIR AND SERVICE",27/12/2021 00:00:00,30/1/2022 00:00:00,"P10-2022"
,"LV HOCKEY AND TENNIS CENTRE","SUPPLIES AND SERVICES","EQUIPMENT & MATERIALS","4111","P114147-SERVICE-suremix",7/1/2022 00:00:00,"257574",1.8,"BO0015","BOC LTD",27/12/2021 00:00:00,30/1/2022 00:00:00,"P10-2022"
,"LV HOCKEY AND TENNIS CENTRE","SUPPLIES AND SERVICES","EQUIPMENT & MATERIALS","4111","P114147-SERVICE-suremix 100",7/1/2022 00:00:00,"257574",15,"BO0015","BOC LTD",27/12/2021 00:00:00,30/1/2022 00:00:00,"P10-2022"
,"LV HOCKEY AND TENNIS CENTRE","SUPPLIES AND SERVICES","EQUIPMENT & MATERIALS","4111","P116228-SERVICE-championship tennis net black x10",30/1/2022 00:00:00,"257749",1120,"HU0451","HUCK NETS (UK) LTD",27/12/2021 00:00:00,30/1/2022 00:00:00,"P10-2022"
,"LV HOCKEY AND TENNIS CENTRE","SUPPLIES AND SERVICES","EQUIPMENT & MATERIALS","4111","P113854-SERVICE-balls and equipment for use",17/1/2022 00:00:00,"257846",77.5,"HE0386","HEAD UK LTD",27/12/2021 00:00:00,30/1/2022 00:00:00,"P10-2022"
,"LV HOCKEY AND TENNIS CENTRE","SUPPLIES AND SERVICES","EQUIPMENT & MATERIALS","4111","P114147-SERVICE-suremix 100",30/1/2022 00:00:00,"258745",16.8,"BO0015","BOC LTD",27/12/2021 00:00:00,30/1/2022 00:00:00,"P10-2022"
,"LEE VALLEY RIDING CENTRE","SUPPLIES AND SERVICES","EQUIPMENT & MATERIALS","4111","P116165-SERVICE-washing detergent and reproofing",25/1/2022 00:00:00,"258433",152.88,"JL0014","JLA LIMITED",27/12/2021 00:00:00,30/1/2022 00:00:00,"P10-2022"
,"LEE VALLEY RIDING CENTRE","SUPPLIES AND SERVICES","EQUIPMENT & MATERIALS","4111","P116189-SERVICE-nite glow extinguisher sign",30/1/2022 00:00:00,"258464",9.16,"SC0057","SCREWFIX DIRECT LTD",27/12/2021 00:00:00,30/1/2022 00:00:00,"P10-2022"
,"LEE VALLEY RIDING CENTRE","SUPPLIES AND SERVICES","EQUIPMENT & MATERIALS","4111","P116189-SERVICE-wd 40 grease",30/1/2022 00:00:00,"258464",6.24,"SC0057","SCREWFIX DIRECT LTD",27/12/2021 00:00:00,30/1/2022 00:00:00,"P10-2022"
,"LEE VALLEY RIDING CENTRE","SUPPLIES AND SERVICES","EQUIPMENT & MATERIALS","4111","P116189-SERVICE-x4 duck original cloth tape mesh",30/1/2022 00:00:00,"258464",16.63,"SC0057","SCREWFIX DIRECT LTD",27/12/2021 00:00:00,30/1/2022 00:00:00,"P10-2022"
,"LEE VALLEY RIDING CENTRE","SUPPLIES AND SERVICES","EQUIPMENT & MATERIALS","4111","P116189-SERVICE-dewalt jigsaw blade set",30/1/2022 00:00:00,"258464",13.16,"SC0057","SCREWFIX DIRECT LTD",27/12/2021 00:00:00,30/1/2022 00:00:00,"P10-2022"
,"LEE VALLEY RIDING CENTRE","SUPPLIES AND SERVICES","EQUIPMENT & MATERIALS","4111","P116189-SERVICE-x3 no entry sign",30/1/2022 00:00:00,"258464",4.98,"SC0057","SCREWFIX DIRECT LTD",27/12/2021 00:00:00,30/1/2022 00:00:00,"P10-2022"
,"LEE VALLEY RIDING CENTRE","SUPPLIES AND SERVICES","EQUIPMENT & MATERIALS","4111","P116189-SERVICE-x6 do not drink sign",30/1/2022 00:00:00,"258464",14.95,"SC0057","SCREWFIX DIRECT LTD",27/12/2021 00:00:00,30/1/2022 00:00:00,"P10-2022"
,"LEE VALLEY RIDING CENTRE","SUPPLIES AND SERVICES","EQUIPMENT & MATERIALS","4111","P116189-SERVICE-x4 compression adapting wall plate elbow",30/1/2022 00:00:00,"258464",7.87,"SC0057","SCREWFIX DIRECT LTD",27/12/2021 00:00:00,30/1/2022 00:00:00,"P10-2022"
,"LEE VALLEY RIDING CENTRE","SUPPLIES AND SERVICES","EQUIPMENT & MATERIALS","4111","P116189-SERVICE-duck original cloth tape",30/1/2022 00:00:00,"258464",4.16,"SC0057","SCREWFIX DIRECT LTD",27/12/2021 00:00:00,30/1/2022 00:00:00,"P10-2022"
,"LEE VALLEY RIDING CENTRE","SUPPLIES AND SERVICES","EQUIPMENT & MATERIALS","4111","P116189-SERVICE-X3 angled compression tap connector",30/1/2022 00:00:00,"258464",8.93,"SC0057","SCREWFIX DIRECT LTD",27/12/2021 00:00:00,30/1/2022 00:00:00,"P10-2022"
,"LEE VALLEY RIDING CENTRE","SUPPLIES AND SERVICES","EQUIPMENT & MATERIALS","4111","P116189-SERVICE-X3 COMPRESSION TAP CONNECTOR",30/1/2022 00:00:00,"258464",7.73,"SC0057","SCREWFIX DIRECT LTD",27/12/2021 00:00:00,30/1/2022 00:00:00,"P10-2022"
,"LEE VALLEY RIDING CENTRE","SUPPLIES AND SERVICES","EQUIPMENT & MATERIALS","4111","P116189-SERVICE-outside tap",30/1/2022 00:00:00,"258464",19.98,"SC0057","SCREWFIX DIRECT LTD",27/12/2021 00:00:00,30/1/2022 00:00:00,"P10-2022"
,"LEE VALLEY RIDING CENTRE","SUPPLIES AND SERVICES","EQUIPMENT & MATERIALS","4111","P116189-SERVICE-x2 flammable gas sign",30/1/2022 00:00:00,"258464",2.48,"SC0057","SCREWFIX DIRECT LTD",27/12/2021 00:00:00,30/1/2022 00:00:00,"P10-2022"
,"LEE VALLEY RIDING CENTRE","SUPPLIES AND SERVICES","EQUIPMENT & MATERIALS","4111","HAYGAIN LTD",30/1/2022 00:00:00,"258641",0,"HA0446","HAYGAIN LTD",27/12/2021 00:00:00,30/1/2022 00:00:00,"P10-2022"
,"LEE VALLEY VELOPARK CATERING","SUPPLIES AND SERVICES","EQUIPMENT & MATERIALS","4111","P116210-SERVICE-Cleaning, Kegs & Volunteers",30/1/2022 00:00:00,"258474",1855.79,"FI0193","FIVE STAR CATERING LTD",27/12/2021 00:00:00,30/1/2022 00:00:00,"P10-2022"
,"LV LEISURE CENTRE CAMPSITE","SUPPLIES AND SERVICES","EQUIPMENT & MATERIALS","4111","P116034-SERVICE-play area signage",17/1/2022 00:00:00,"257490",35,"SL0528","SLAM SIGNS LTD",27/12/2021 00:00:00,30/1/2022 00:00:00,"P10-2022"
,"LV LEISURE CENTRE CAMPSITE","SUPPLIES AND SERVICES","EQUIPMENT & MATERIALS","4111","P115857-SERVICE-signs for edmonton",6/1/2022 00:00:00,"257557",21.41,"AM0406","AMAZON PAYMENTS UK LIMITED",27/12/2021 00:00:00,30/1/2022 00:00:00,"P10-2022"
,"LV LEISURE CENTRE CAMPSITE","SUPPLIES AND SERVICES","EQUIPMENT & MATERIALS","4111","P116206-SERVICE-weedkiller sand gloves and mastercrete",26/1/2022 00:00:00,"258410",30.45,"BQ0164","TRADE UK ACCOUNT",27/12/2021 00:00:00,30/1/2022 00:00:00,"P10-2022"
,"LV LEISURE CENTRE CAMPSITE","SUPPLIES AND SERVICES","EQUIPMENT & MATERIALS","4111","P116167-SERVICE-Amazon supplies",26/1/2022 00:00:00,"258426",11.65,"AM0406","AMAZON PAYMENTS UK LIMITED",27/12/2021 00:00:00,30/1/2022 00:00:00,"P10-2022"
,"LV LEISURE CENTRE GOLF COURSE","SUPPLIES AND SERVICES","EQUIPMENT & MATERIALS","4111","P115906-SERVICE-GOLF SUPPLIES",7/1/2022 00:00:00,"256288",705,"MR0420","MR AMENITY LTD",27/12/2021 00:00:00,30/1/2022 00:00:00,"P10-2022"
,"LV LEISURE CENTRE GOLF COURSE","SUPPLIES AND SERVICES","EQUIPMENT & MATERIALS","4111","P115472-SERVICE-signs for edmonton",6/1/2022 00:00:00,"256623",9.99,"AM0406","AMAZON PAYMENTS UK LIMITED",27/12/2021 00:00:00,30/1/2022 00:00:00,"P10-2022"
,"LV LEISURE CENTRE GOLF COURSE","SUPPLIES AND SERVICES","EQUIPMENT & MATERIALS","4111","P115904-SERVICE-golf equipment",7/1/2022 00:00:00,"256850",180,"GR0144","BARRY GRIFFITHS",27/12/2021 00:00:00,30/1/2022 00:00:00,"P10-2022"
,"LV LEISURE CENTRE GOLF COURSE","SUPPLIES AND SERVICES","EQUIPMENT & MATERIALS","4111","P115709-SERVICE-amazon supplies",6/1/2022 00:00:00,"257485",9.99,"AM0406","AMAZON PAYMENTS UK LIMITED",27/12/2021 00:00:00,30/1/2022 00:00:00,"P10-2022"
,"LV LEISURE CENTRE GOLF COURSE","SUPPLIES AND SERVICES","EQUIPMENT & MATERIALS","4111","P115889-SERVICE-ink for yard",10/1/2022 00:00:00,"257743",18.78,"AM0406","AMAZON PAYMENTS UK LIMITED",27/12/2021 00:00:00,30/1/2022 00:00:00,"P10-2022"
,"LEE VALLEY ATHLETICS CENTRE","SUPPLIES AND SERVICES","EQUIPMENT & MATERIALS","4111","P115187-SERVICE-FLAGS & CHALK AS PER EMAIL FROM PAUL MANSON",11/1/2022 00:00:00,"257522",36.61,"NE0094","NEWITT AND CO LTD",27/12/2021 00:00:00,30/1/2022 00:00:00,"P10-2022"
,"LEE VALLEY ATHLETICS CENTRE","SUPPLIES AND SERVICES","EQUIPMENT & MATERIALS","4111","JORDAN FITNESS LTD",25/1/2022 00:00:00,"258450",1702.31,"JO0158","JORDAN FITNESS LTD",27/12/2021 00:00:00,30/1/2022 00:00:00,"P10-2022"
,"LEE VALLEY ATHLETICS CENTRE","SUPPLIES AND SERVICES","EQUIPMENT & MATERIALS","4111","JORDAN FITNESS LTD",25/1/2022 00:00:00,"258450",-1042.77,"JO0158","JORDAN FITNESS LTD",27/12/2021 00:00:00,30/1/2022 00:00:00,"P10-2022"
,"LEE VALLEY ATHLETICS CENTRE","SUPPLIES AND SERVICES","EQUIPMENT & MATERIALS","4111","JORDAN FITNESS LTD",25/1/2022 00:00:00,"258450",-659.54,"JO0158","JORDAN FITNESS LTD",27/12/2021 00:00:00,30/1/2022 00:00:00,"P10-2022"
,"LEE VALLEY ATHLETICS CENTRE","SUPPLIES AND SERVICES","EQUIPMENT & MATERIALS","4111","P115442-SERVICE-ORDER 286727 BUMPER PLATES, FIT BALL+ MED BAL",25/1/2022 00:00:00,"258450",659.54,"JO0158","JORDAN FITNESS LTD",27/12/2021 00:00:00,30/1/2022 00:00:00,"P10-2022"
,"LEE VALLEY WHITE WATER CENTRE","SUPPLIES AND SERVICES","EQUIPMENT & MATERIALS","4111","P115597-SERVICE-Mats and Equipment blanket order",10/1/2022 00:00:00,"257261",19.98,"AM0406","AMAZON PAYMENTS UK LIMITED",27/12/2021 00:00:00,30/1/2022 00:00:00,"P10-2022"
,"LEE VALLEY WHITE WATER CENTRE","SUPPLIES AND SERVICES","EQUIPMENT & MATERIALS","4111","P115597-SERVICE-Mats and Equipment blanket order",10/1/2022 00:00:00,"257325",-29.16,"AM0406","AMAZON PAYMENTS UK LIMITED",27/12/2021 00:00:00,30/1/2022 00:00:00,"P10-2022"
,"LEE VALLEY WHITE WATER CENTRE","SUPPLIES AND SERVICES","EQUIPMENT & MATERIALS","4111","P113464-SERVICE-As per quote from A Laird dated",17/1/2022 00:00:00,"257828",4164.6,"RA0168","RAPID BLOCS LIMITED",27/12/2021 00:00:00,30/1/2022 00:00:00,"P10-2022"
,"LEE VALLEY WHITE WATER CENTRE","SUPPLIES AND SERVICES","EQUIPMENT & MATERIALS","4111","P115597-SERVICE-Mats and Equipment blanket order",20/1/2022 00:00:00,"258196",11.85,"AM0406","AMAZON PAYMENTS UK LIMITED",27/12/2021 00:00:00,30/1/2022 00:00:00,"P10-2022"
,"LEE VALLEY WHITE WATER CENTRE","SUPPLIES AND SERVICES","EQUIPMENT & MATERIALS","4111","P115597-SERVICE-Mats and Equipment blanket order",20/1/2022 00:00:00,"258197",1.25,"AM0406","AMAZON PAYMENTS UK LIMITED",27/12/2021 00:00:00,30/1/2022 00:00:00,"P10-2022"
,"LEE VALLEY WHITE WATER CENTRE","SUPPLIES AND SERVICES","EQUIPMENT & MATERIALS","4111","P115597-SERVICE-Mats and Equipment blanket order",20/1/2022 00:00:00,"258198",24.96,"AM0406","AMAZON PAYMENTS UK LIMITED",27/12/2021 00:00:00,30/1/2022 00:00:00,"P10-2022"
,"LEE VALLEY WHITE WATER CENTRE","SUPPLIES AND SERVICES","EQUIPMENT & MATERIALS","4111","P115597-SERVICE-Mats and Equipment blanket order",25/1/2022 00:00:00,"258283",16.66,"AM0406","AMAZON PAYMENTS UK LIMITED",27/12/2021 00:00:00,30/1/2022 00:00:00,"P10-2022"
,"LEE VALLEY WHITE WATER CENTRE","SUPPLIES AND SERVICES","EQUIPMENT & MATERIALS","4111","P116151-SERVICE-Mats and Equip Blanket Order",30/1/2022 00:00:00,"258490",27.49,"AM0406","AMAZON PAYMENTS UK LIMITED",27/12/2021 00:00:00,30/1/2022 00:00:00,"P10-2022"
,"LEE VALLEY WHITE WATER CENTRE","SUPPLIES AND SERVICES","EQUIPMENT & MATERIALS","4111","P116151-SERVICE-Mats and Equip Blanket Order",30/1/2022 00:00:00,"258492",27.49,"AM0406","AMAZON PAYMENTS UK LIMITED",27/12/2021 00:00:00,30/1/2022 00:00:00,"P10-2022"
,"LEE VALLEY WHITE WATER CENTRE","SUPPLIES AND SERVICES","EQUIPMENT & MATERIALS","4111","P116151-SERVICE-Mats and Equip Blanket Order",30/1/2022 00:00:00,"258611",6.66,"AM0406","AMAZON PAYMENTS UK LIMITED",27/12/2021 00:00:00,30/1/2022 00:00:00,"P10-2022"
,"LEE VALLEY WHITE WATER CENTRE","SUPPLIES AND SERVICES","EQUIPMENT & MATERIALS","4111","P116151-SERVICE-Mats and Equip Blanket Order",30/1/2022 00:00:00,"258612",9.16,"AM0406","AMAZON PAYMENTS UK LIMITED",27/12/2021 00:00:00,30/1/2022 00:00:00,"P10-2022"
,"LEE VALLEY WHITE WATER CENTRE","SUPPLIES AND SERVICES","EQUIPMENT & MATERIALS","4111","P116151-SERVICE-Mats and Equip Blanket Order",30/1/2022 00:00:00,"258642",17.49,"AM0406","AMAZON PAYMENTS UK LIMITED",27/12/2021 00:00:00,30/1/2022 00:00:00,"P10-2022"
"CEO","RESIDENTIAL ACCOMMODATION","SUPPLIES AND SERVICES","EQUIPMENT MAINTENANCE","4112","P115320-SERVICE-Service",6/1/2022 00:00:00,"257319",179,"KI0080","KINGSPAN WATER & ENERGY LIMITED",27/12/2021 00:00:00,30/1/2022 00:00:00,"P10-2022"
"CEO","RESIDENTIAL ACCOMMODATION","SUPPLIES AND SERVICES","EQUIPMENT MAINTENANCE","4112","P115930-SERVICE-3 Gas Certificates Thermostat Change - Riding",30/1/2022 00:00:00,"257884",560,"RE0094","REACT 2 IT (BUILDING & REFURBISHMENT) LTD",27/12/2021 00:00:00,30/1/2022 00:00:00,"P10-2022"
,"LEE VALLEY CAMPSITE","SUPPLIES AND SERVICES","EQUIPMENT MAINTENANCE","4112","P115854-SERVICE-Lamp post by Staff static 2",7/1/2022 00:00:00,"257322",120,"BR0018","BRADSHAW ELECTRICAL LIMITED",27/12/2021 00:00:00,30/1/2022 00:00:00,"P10-2022"
,"LEE VALLEY CAMPSITE","SUPPLIES AND SERVICES","EQUIPMENT MAINTENANCE","4112","P115852-SERVICE-Connection Staff static 2",7/1/2022 00:00:00,"257323",110,"BR0018","BRADSHAW ELECTRICAL LIMITED",27/12/2021 00:00:00,30/1/2022 00:00:00,"P10-2022"
,"LEE VALLEY CAMPSITE","SUPPLIES AND SERVICES","EQUIPMENT MAINTENANCE","4112","P115958-SERVICE-REPAIR TO TUMBLE DRYER 24/12/21",17/1/2022 00:00:00,"257531",169,"AL0434","ALLSOP & FRANCIS",27/12/2021 00:00:00,30/1/2022 00:00:00,"P10-2022"
,"LEE VALLEY CARAVAN PARK","SUPPLIES AND SERVICES","EQUIPMENT MAINTENANCE","4112","P116144-SERVICE-Hot water tub samples",20/1/2022 00:00:00,"258176",339.71,"KI0090","KINGFISHER ENVIRONMENTAL SERVICES LTD",27/12/2021 00:00:00,30/1/2022 00:00:00,"P10-2022"
"P&V","SOUTH AREA RANGERS","SUPPLIES AND SERVICES","EQUIPMENT MAINTENANCE","4112","P115899-SERVICE-Chipper Service and Repair",10/1/2022 00:00:00,"257748",368.3,"GR0146","GREEN PLANT UK LTD",27/12/2021 00:00:00,30/1/2022 00:00:00,"P10-2022"
"P&V","SOUTH AREA RANGERS","SUPPLIES AND SERVICES","EQUIPMENT MAINTENANCE","4112","P116120-SERVICE-Tipper Trailer Repairs",30/1/2022 00:00:00,"258424",55,"TO0071","G T TOWING",27/12/2021 00:00:00,30/1/2022 00:00:00,"P10-2022"
"P&V","RIVER LEE COUNTRY PARK","SUPPLIES AND SERVICES","EQUIPMENT MAINTENANCE","4112","P115887-SERVICE-Delivery",25/1/2022 00:00:00,"258146",5.95,"TR0039","TRACMASTER LTD",27/12/2021 00:00:00,30/1/2022 00:00:00,"P10-2022"
"P&V","RIVER LEE COUNTRY PARK","SUPPLIES AND SERVICES","EQUIPMENT MAINTENANCE","4112","P115887-SERVICE-6x Cutter Bar Bolts Part No. 31112165",25/1/2022 00:00:00,"258146",6,"TR0039","TRACMASTER LTD",27/12/2021 00:00:00,30/1/2022 00:00:00,"P10-2022"
,"LEE VALLEY VELOPARK","SUPPLIES AND SERVICES","EQUIPMENT MAINTENANCE","4112","P115969-SERVICE-Wing Mirror",12/1/2022 00:00:00,"257512",114.77,"AP0245","APS LIMITED",27/12/2021 00:00:00,30/1/2022 00:00:00,"P10-2022"
,"LEE VALLEY VELOPARK","SUPPLIES AND SERVICES","EQUIPMENT MAINTENANCE","4112","P115952-SERVICE-Re-fit Roller and Site Charge",30/1/2022 00:00:00,"258457",228,"BR0532","BRIGHT A BLIND LIMITED",27/12/2021 00:00:00,30/1/2022 00:00:00,"P10-2022"
,"LEE VALLEY VELOPARK CATERING","SUPPLIES AND SERVICES","EQUIPMENT MAINTENANCE","4112","P115315-SERVICE-Kitchen Extract Clean",25/1/2022 00:00:00,"258206",999.95,"UK0079","UK FM SERVICES",27/12/2021 00:00:00,30/1/2022 00:00:00,"P10-2022"
,"LV LEISURE CENTRE CAMPSITE","SUPPLIES AND SERVICES","EQUIPMENT MAINTENANCE","4112","P115935-SERVICE-Equipment maintenance",7/1/2022 00:00:00,"257166",18.74,"SC0057","SCREWFIX DIRECT LTD",27/12/2021 00:00:00,30/1/2022 00:00:00,"P10-2022"
,"LV LEISURE CENTRE CAMPSITE","SUPPLIES AND SERVICES","EQUIPMENT MAINTENANCE","4112","P115936-SERVICE-Equipment maintenance",7/1/2022 00:00:00,"257271",15.83,"BQ0164","TRADE UK ACCOUNT",27/12/2021 00:00:00,30/1/2022 00:00:00,"P10-2022"
,"LV LEISURE CENTRE CAMPSITE","SUPPLIES AND SERVICES","EQUIPMENT MAINTENANCE","4112","P115938-SERVICE-Air con maintenance",7/1/2022 00:00:00,"257329",105,"PR0363","PRETTY COOL CUSTOMERS LTD",27/12/2021 00:00:00,30/1/2022 00:00:00,"P10-2022"
,"LV LEISURE CENTRE CAMPSITE","SUPPLIES AND SERVICES","EQUIPMENT MAINTENANCE","4112","P115936-SERVICE-Equipment maintenance",7/1/2022 00:00:00,"257555",-15.83,"BQ0164","TRADE UK ACCOUNT",27/12/2021 00:00:00,30/1/2022 00:00:00,"P10-2022"
,"LV LEISURE CENTRE CAMPSITE","SUPPLIES AND SERVICES","EQUIPMENT MAINTENANCE","4112","P114390-SERVICE-fixing exit barrier call out",30/1/2022 00:00:00,"258604",209,"AP0032","APT SECURITY SYSTEMS",27/12/2021 00:00:00,30/1/2022 00:00:00,"P10-2022"
,"LEE VALLEY WHITE WATER CENTRE","SUPPLIES AND SERVICES","EQUIPMENT MAINTENANCE","4112","P115425-SERVICE-Carry out service of Wasing machnes and dryer",10/1/2022 00:00:00,"257251",681.1,"OP0071","OPL LIMITED",27/12/2021 00:00:00,30/1/2022 00:00:00,"P10-2022"
"R&B","INFORMATION TECHNOLOGY","SUPPLIES AND SERVICES","IT CORE SYSTEMS","4113","P115814-SERVICE-Monthly Fees 15 Nov - 14Dec 21",10/1/2022 00:00:00,"257252",351,"CO0440","VERIFONE SERVICES UK & IRELAND LTD",27/12/2021 00:00:00,30/1/2022 00:00:00,"P10-2022"
"R&B","INFORMATION TECHNOLOGY","SUPPLIES AND SERVICES","IT CORE SYSTEMS","4113","P111362-SERVICE-Hosted Payroll May 21- March 22",6/1/2022 00:00:00,"257310",542.51,"PA0453","PAYROLL BUSINESS SOLUTIONS LTD",27/12/2021 00:00:00,30/1/2022 00:00:00,"P10-2022"
"R&B","INFORMATION TECHNOLOGY","SUPPLIES AND SERVICES","IT CORE SYSTEMS","4113","P116156-SERVICE-Monthly Fees 15 Jan 22 - 14 Feb 22",20/1/2022 00:00:00,"258255",351,"CO0440","VERIFONE SERVICES UK & IRELAND LTD",27/12/2021 00:00:00,30/1/2022 00:00:00,"P10-2022"
,"LSC INFORMATION TECHNOLOGY","SUPPLIES AND SERVICES","IT CORE SYSTEMS","4113","P113717-SERVICE-Verifone renewal for the ICP services for the",20/1/2022 00:00:00,"258253",652.31,"CO0440","VERIFONE SERVICES UK & IRELAND LTD",27/12/2021 00:00:00,30/1/2022 00:00:00,"P10-2022"
,"LSC INFORMATION TECHNOLOGY","SUPPLIES AND SERVICES","IT CORE SYSTEMS","4113","P113699-SERVICE-Page Band7 Payment - 12 Months - PAY-BA7-RET/",20/1/2022 00:00:00,"258254",375,"CO0440","VERIFONE SERVICES UK & IRELAND LTD",27/12/2021 00:00:00,30/1/2022 00:00:00,"P10-2022"
"R&B","INFORMATION TECHNOLOGY","SUPPLIES AND SERVICES","IT NETWORK & TELECOMS COSTS","4114","P111480-SERVICE-Monthly SIP Apr 21-Mar 22",6/1/2022 00:00:00,"257544",147.74,"FR0131","VOICEFLEX LTD",27/12/2021 00:00:00,30/1/2022 00:00:00,"P10-2022"
"R&B","INFORMATION TECHNOLOGY","SUPPLIES AND SERVICES","IT NETWORK & TELECOMS COSTS","4114","P115949-SERVICE-MPLS for all sites Jan 2022",7/1/2022 00:00:00,"257629",11996.86,"PP0200","PPSNET LIMITED",27/12/2021 00:00:00,30/1/2022 00:00:00,"P10-2022"
,"LEE VALLEY CARAVAN PARK","SUPPLIES AND SERVICES","IT NETWORK & TELECOMS COSTS","4114","MY O2",6/1/2022 00:00:00,"257631",54,"O20134","MY O2",27/12/2021 00:00:00,30/1/2022 00:00:00,"P10-2022"
,"LEE VALLEY CARAVAN PARK","SUPPLIES AND SERVICES","IT NETWORK & TELECOMS COSTS","4114","MY O2",30/1/2022 00:00:00,"258650",54,"O20134","MY O2",27/12/2021 00:00:00,30/1/2022 00:00:00,"P10-2022"
"P&V","FISHERIES MANAGEMENT","SUPPLIES AND SERVICES","EQUIPMENT HIRE","4115","P115254-SERVICE-12 weeks hire at Stansted Innings, Marsh Lane",17/1/2022 00:00:00,"256949",92,"TO0092","TOILETS+ LTD",27/12/2021 00:00:00,30/1/2022 00:00:00,"P10-2022"
"P&V","FISHERIES MANAGEMENT","SUPPLIES AND SERVICES","EQUIPMENT HIRE","4115","P115254-SERVICE-12 weeks hire at Stansted Innings, Marsh Lane",17/1/2022 00:00:00,"257823",94.21,"TO0092","TOILETS+ LTD",27/12/2021 00:00:00,30/1/2022 00:00:00,"P10-2022"
"P&V","FISHERIES MANAGEMENT","SUPPLIES AND SERVICES","EQUIPMENT HIRE","4115","P116271-SERVICE-Toilet Hire at Stanstead Inn - Terminate Cont",30/1/2022 00:00:00,"258456",10.59,"TO0092","TOILETS+ LTD",27/12/2021 00:00:00,30/1/2022 00:00:00,"P10-2022"
,"LEE VALLEY CARAVAN PARK","SUPPLIES AND SERVICES","EQUIPMENT HIRE","4115","P116270-SERVICE-Machine hire",30/1/2022 00:00:00,"257792",20,"ED0011","EDWARDS PLANT & TOOL HIRE LIMITED",27/12/2021 00:00:00,30/1/2022 00:00:00,"P10-2022"
,"LEE VALLEY CARAVAN PARK","SUPPLIES AND SERVICES","EQUIPMENT HIRE","4115","EDWARDS PLANT & TOOL HIRE LIMI",30/1/2022 00:00:00,"257792",-20,"ED0011","EDWARDS PLANT & TOOL HIRE LIMITED",27/12/2021 00:00:00,30/1/2022 00:00:00,"P10-2022"
,"LEE VALLEY CARAVAN PARK","SUPPLIES AND SERVICES","EQUIPMENT HIRE","4115","EDWARDS PLANT & TOOL HIRE LIMI",30/1/2022 00:00:00,"257792",15,"ED0011","EDWARDS PLANT & TOOL HIRE LIMITED",27/12/2021 00:00:00,30/1/2022 00:00:00,"P10-2022"
,"LEE VALLEY CARAVAN PARK","SUPPLIES AND SERVICES","EQUIPMENT HIRE","4115","EDWARDS PLANT & TOOL HIRE LIMI",30/1/2022 00:00:00,"257792",5,"ED0011","EDWARDS PLANT & TOOL HIRE LIMITED",27/12/2021 00:00:00,30/1/2022 00:00:00,"P10-2022"
"P&V","MYDDELTON HOUSE","SUPPLIES AND SERVICES","IT HARDWARE & SOFTWARE COSTS","4116","ZEN INTERNET LTD",6/1/2022 00:00:00,"257534",29.5,"ZE0007","ZEN INTERNET LTD",27/12/2021 00:00:00,30/1/2022 00:00:00,"P10-2022"
"P&V","MYDDELTON HOUSE","SUPPLIES AND SERVICES","IT HARDWARE & SOFTWARE COSTS","4116","ZEN INTERNET LTD",17/1/2022 00:00:00,"257871",42,"ZE0007","ZEN INTERNET LTD",27/12/2021 00:00:00,30/1/2022 00:00:00,"P10-2022"
"P&V","MYDDELTON HOUSE","SUPPLIES AND SERVICES","IT HARDWARE & SOFTWARE COSTS","4116","ZEN INTERNET LTD",30/1/2022 00:00:00,"258627",29.5,"ZE0007","ZEN INTERNET LTD",27/12/2021 00:00:00,30/1/2022 00:00:00,"P10-2022"
,"LEE VALLEY MARINA SPRINGFIELD","SUPPLIES AND SERVICES","IT HARDWARE & SOFTWARE COSTS","4116","ZEN INTERNET LTD",17/1/2022 00:00:00,"257918",38,"ZE0007","ZEN INTERNET LTD",27/12/2021 00:00:00,30/1/2022 00:00:00,"P10-2022"
,"LEE VALLEY MARINA STANSTEAD","SUPPLIES AND SERVICES","IT HARDWARE & SOFTWARE COSTS","4116","ZEN INTERNET LTD",17/1/2022 00:00:00,"258126",31.32,"ZE0007","ZEN INTERNET LTD",27/12/2021 00:00:00,30/1/2022 00:00:00,"P10-2022"
,"LEE VALLEY CAMPSITE","SUPPLIES AND SERVICES","IT HARDWARE & SOFTWARE COSTS","4116","P115626-SERVICE-Apple iPhone SE 64GB Black, 11.9cm (4.7"")",11/1/2022 00:00:00,"257784",324,"VO0010","VODAFONE  LIMITED (CORPORATE)",27/12/2021 00:00:00,30/1/2022 00:00:00,"P10-2022"
,"LV CAMPSITE CARAVAN SALES","SUPPLIES AND SERVICES","IT HARDWARE & SOFTWARE COSTS","4116","P115626-SERVICE-Apple iPhone SE 64GB Black, 11.9cm (4.7"")",11/1/2022 00:00:00,"257784",324,"VO0010","VODAFONE  LIMITED (CORPORATE)",27/12/2021 00:00:00,30/1/2022 00:00:00,"P10-2022"
,"LEE VALLEY CARAVAN PARK","SUPPLIES AND SERVICES","IT HARDWARE & SOFTWARE COSTS","4116","P115991-SERVICE-Fibre connection Jan 2022",25/1/2022 00:00:00,"257630",835,"PP0200","PPSNET LIMITED",27/12/2021 00:00:00,30/1/2022 00:00:00,"P10-2022"
,"LEE VALLEY RIDING CENTRE","SUPPLIES AND SERVICES","IT HARDWARE & SOFTWARE COSTS","4116","ZEN INTERNET LTD",11/1/2022 00:00:00,"257747",31.32,"ZE0007","ZEN INTERNET LTD",27/12/2021 00:00:00,30/1/2022 00:00:00,"P10-2022"
,"LV LEISURE CENTRE GOLF COURSE","SUPPLIES AND SERVICES","IT HARDWARE & SOFTWARE COSTS","4116","P115626-SERVICE-Apple iPhone SE 64GB Black, 11.9cm (4.7"")",11/1/2022 00:00:00,"257784",324,"VO0010","VODAFONE  LIMITED (CORPORATE)",27/12/2021 00:00:00,30/1/2022 00:00:00,"P10-2022"
,"LEE VALLEY WHITE WATER CENTRE","SUPPLIES AND SERVICES","IT HARDWARE & SOFTWARE COSTS","4116","ZEN INTERNET LTD",6/1/2022 00:00:00,"257274",13.49,"ZE0007","ZEN INTERNET LTD",27/12/2021 00:00:00,30/1/2022 00:00:00,"P10-2022"
,"LEE VALLEY WHITE WATER CENTRE","SUPPLIES AND SERVICES","IT HARDWARE & SOFTWARE COSTS","4116","ZEN INTERNET LTD",6/1/2022 00:00:00,"257275",17.83,"ZE0007","ZEN INTERNET LTD",27/12/2021 00:00:00,30/1/2022 00:00:00,"P10-2022"
,"LEE VALLEY WHITE WATER CENTRE","SUPPLIES AND SERVICES","IT HARDWARE & SOFTWARE COSTS","4116","ZEN INTERNET LTD",25/1/2022 00:00:00,"258408",17.83,"ZE0007","ZEN INTERNET LTD",27/12/2021 00:00:00,30/1/2022 00:00:00,"P10-2022"
,"LEE VALLEY WHITE WATER CENTRE","SUPPLIES AND SERVICES","IT HARDWARE & SOFTWARE COSTS","4116","ZEN INTERNET LTD",25/1/2022 00:00:00,"258409",13.49,"ZE0007","ZEN INTERNET LTD",27/12/2021 00:00:00,30/1/2022 00:00:00,"P10-2022"
,"LV HOCKEY AND TENNIS CENTRE","SUPPLIES AND SERVICES","VENDING AGREEMENTS","4117","P115986-SERVICE-service charge feb 2022",12/1/2022 00:00:00,"257130",117,"TA0272","TASTEBUDS VENDING LI MITED",27/12/2021 00:00:00,30/1/2022 00:00:00,"P10-2022"
,"LV HOCKEY AND TENNIS CENTRE","SUPPLIES AND SERVICES","VENDING AGREEMENTS","4117","P115986-SERVICE-service charge march 2022",12/1/2022 00:00:00,"257130",117,"TA0272","TASTEBUDS VENDING LI MITED",27/12/2021 00:00:00,30/1/2022 00:00:00,"P10-2022"
,"LV HOCKEY AND TENNIS CENTRE","SUPPLIES AND SERVICES","VENDING AGREEMENTS","4117","P115986-SERVICE-congestion charge fee",12/1/2022 00:00:00,"257130",15,"TA0272","TASTEBUDS VENDING LI MITED",27/12/2021 00:00:00,30/1/2022 00:00:00,"P10-2022"
,"LV HOCKEY AND TENNIS CENTRE","SUPPLIES AND SERVICES","VENDING AGREEMENTS","4117","P115986-SERVICE-service charge jan 2022",12/1/2022 00:00:00,"257130",117,"TA0272","TASTEBUDS VENDING LI MITED",27/12/2021 00:00:00,30/1/2022 00:00:00,"P10-2022"
,"LEE VALLEY ATHLETICS CENTRE","SUPPLIES AND SERVICES","VENDING AGREEMENTS","4117","P116027-SERVICE-LVAC INVOICE 9299475984 31.12.21",11/1/2022 00:00:00,"257613",1215.01,"BR0019","BRAKE BROTHERS LIMITED",27/12/2021 00:00:00,30/1/2022 00:00:00,"P10-2022"
,"LEE VALLEY ATHLETICS CENTRE","SUPPLIES AND SERVICES","VENDING AGREEMENTS","4117","BRAKE BROTHERS LIMITED",11/1/2022 00:00:00,"257613",-1215.01,"BR0019","BRAKE BROTHERS LIMITED",27/12/2021 00:00:00,30/1/2022 00:00:00,"P10-2022"
,"LEE VALLEY ATHLETICS CENTRE","SUPPLIES AND SERVICES","VENDING AGREEMENTS","4117","BRAKE BROTHERS LIMITED",11/1/2022 00:00:00,"257613",20.04,"BR0019","BRAKE BROTHERS LIMITED",27/12/2021 00:00:00,30/1/2022 00:00:00,"P10-2022"
,"LEE VALLEY ATHLETICS CENTRE","SUPPLIES AND SERVICES","VENDING AGREEMENTS","4117","BRAKE BROTHERS LIMITED",11/1/2022 00:00:00,"257613",1194.97,"BR0019","BRAKE BROTHERS LIMITED",27/12/2021 00:00:00,30/1/2022 00:00:00,"P10-2022"
,"LEE VALLEY ATHLETICS CENTRE","SUPPLIES AND SERVICES","VENDING AGREEMENTS","4117","RIJO 42 INGREDIENTS LIMITED",11/1/2022 00:00:00,"257818",115.4,"RI0176","RIJO 42 INGREDIENTS LIMITED",27/12/2021 00:00:00,30/1/2022 00:00:00,"P10-2022"
,"LEE VALLEY ATHLETICS CENTRE","SUPPLIES AND SERVICES","VENDING AGREEMENTS","4117","RIJO 42 INGREDIENTS LIMITED",11/1/2022 00:00:00,"257818",295.56,"RI0176","RIJO 42 INGREDIENTS LIMITED",27/12/2021 00:00:00,30/1/2022 00:00:00,"P10-2022"
,"LEE VALLEY ATHLETICS CENTRE","SUPPLIES AND SERVICES","VENDING AGREEMENTS","4117","P116025-SERVICE-LVAC RIJO STOCK INV P967282 30.12.21",11/1/2022 00:00:00,"257818",410.96,"RI0176","RIJO 42 INGREDIENTS LIMITED",27/12/2021 00:00:00,30/1/2022 00:00:00,"P10-2022"
,"LEE VALLEY ATHLETICS CENTRE","SUPPLIES AND SERVICES","VENDING AGREEMENTS","4117","RIJO 42 INGREDIENTS LIMITED",11/1/2022 00:00:00,"257818",-410.96,"RI0176","RIJO 42 INGREDIENTS LIMITED",27/12/2021 00:00:00,30/1/2022 00:00:00,"P10-2022"
,"LEE VALLEY ATHLETICS CENTRE","SUPPLIES AND SERVICES","VENDING AGREEMENTS","4117","P116279-SERVICE-LVAC INV P96935 STOCK 20/1/22",30/1/2022 00:00:00,"258417",282.21,"RI0176","RIJO 42 INGREDIENTS LIMITED",27/12/2021 00:00:00,30/1/2022 00:00:00,"P10-2022"
,"LEE VALLEY ATHLETICS CENTRE","SUPPLIES AND SERVICES","VENDING AGREEMENTS","4117","RIJO 42 INGREDIENTS LIMITED",30/1/2022 00:00:00,"258417",-282.21,"RI0176","RIJO 42 INGREDIENTS LIMITED",27/12/2021 00:00:00,30/1/2022 00:00:00,"P10-2022"
,"LEE VALLEY ATHLETICS CENTRE","SUPPLIES AND SERVICES","VENDING AGREEMENTS","4117","RIJO 42 INGREDIENTS LIMITED",30/1/2022 00:00:00,"258417",72.49,"RI0176","RIJO 42 INGREDIENTS LIMITED",27/12/2021 00:00:00,30/1/2022 00:00:00,"P10-2022"
,"LEE VALLEY ATHLETICS CENTRE","SUPPLIES AND SERVICES","VENDING AGREEMENTS","4117","RIJO 42 INGREDIENTS LIMITED",30/1/2022 00:00:00,"258417",209.72,"RI0176","RIJO 42 INGREDIENTS LIMITED",27/12/2021 00:00:00,30/1/2022 00:00:00,"P10-2022"
"R&B","INFORMATION TECHNOLOGY","SUPPLIES AND SERVICES","IT MAINTENANCE AGREEMENTS","4119","P115953-SERVICE-Remove & Dispose of AC unit",7/1/2022 00:00:00,"257499",475,"HE0071","HERTS COOLING LIMITED",27/12/2021 00:00:00,30/1/2022 00:00:00,"P10-2022"
"R&B","INFORMATION TECHNOLOGY","SUPPLIES AND SERVICES","IT MAINTENANCE AGREEMENTS","4119","P115910-SERVICE-Volunteer Licence  & SSL - covers 1 year lice",7/1/2022 00:00:00,"257642",1900,"SM0485","TEAM KINETIC (PREVIOUSLY SMARTER IN DESIGN)",27/12/2021 00:00:00,30/1/2022 00:00:00,"P10-2022"
"R&B","INFORMATION TECHNOLOGY","SUPPLIES AND SERVICES","IT MAINTENANCE AGREEMENTS","4119","P115046-SERVICE-Maintenance service for 12 months for unit",10/1/2022 00:00:00,"257767",1755,"EA0063","EATON ELECTRIC LIMITED",27/12/2021 00:00:00,30/1/2022 00:00:00,"P10-2022"
"R&B","INFORMATION TECHNOLOGY","SUPPLIES AND SERVICES","IT MAINTENANCE AGREEMENTS","4119","P116255-SERVICE-Annual Maintenance Contract cooling equipment",30/1/2022 00:00:00,"258468",380,"HE0071","HERTS COOLING LIMITED",27/12/2021 00:00:00,30/1/2022 00:00:00,"P10-2022"
,"LEE VALLEY MARINA SPRINGFIELD","SUPPLIES AND SERVICES","IT MAINTENANCE AGREEMENTS","4119","P115996-SERVICE-Supply & data Dec 21",11/1/2022 00:00:00,"257751",75.19,"CY0653","CYBERTILL",27/12/2021 00:00:00,30/1/2022 00:00:00,"P10-2022"
,"LEE VALLEY MARINA STANSTEAD","SUPPLIES AND SERVICES","IT MAINTENANCE AGREEMENTS","4119","P115996-SERVICE-Supply & data Dec 21",11/1/2022 00:00:00,"257751",75.2,"CY0653","CYBERTILL",27/12/2021 00:00:00,30/1/2022 00:00:00,"P10-2022"
,"LEE VALLEY CAMPSITE","SUPPLIES AND SERVICES","IT MAINTENANCE AGREEMENTS","4119","P114755-SERVICE-Monthly Subscription Nov 21 - Apr 22",30/1/2022 00:00:00,"258601",145.5,"NE0218","NETGUIDES LIMITED",27/12/2021 00:00:00,30/1/2022 00:00:00,"P10-2022"
,"LEE VALLEY CARAVAN PARK","SUPPLIES AND SERVICES","IT MAINTENANCE AGREEMENTS","4119","P114755-SERVICE-Monthly Subscriptions Nov 21 - April 22 DW",30/1/2022 00:00:00,"258601",145.5,"NE0218","NETGUIDES LIMITED",27/12/2021 00:00:00,30/1/2022 00:00:00,"P10-2022"
"P&V","ALMOST WILD CAMPSITE","SUPPLIES AND SERVICES","IT MAINTENANCE AGREEMENTS","4119","P114755-SERVICE-Monthly Subscription Nov 21 - April 22 AWC",30/1/2022 00:00:00,"258601",145.5,"NE0218","NETGUIDES LIMITED",27/12/2021 00:00:00,30/1/2022 00:00:00,"P10-2022"
,"LV LEISURE CENTRE CAMPSITE","SUPPLIES AND SERVICES","IT MAINTENANCE AGREEMENTS","4119","P114755-SERVICE-Monthly Subscription Nov 21 - April 22",30/1/2022 00:00:00,"258601",145.5,"NE0218","NETGUIDES LIMITED",27/12/2021 00:00:00,30/1/2022 00:00:00,"P10-2022"
,"LV LEISURE CENTRE GOLF COURSE","SUPPLIES AND SERVICES","IT MAINTENANCE AGREEMENTS","4119","P115951-SERVICE-Digitickets Services Dec 2021",10/1/2022 00:00:00,"257607",511.36,"DI0304","DIGITAL TICKETING SYSTEMS LTD (DIGITICKETS)",27/12/2021 00:00:00,30/1/2022 00:00:00,"P10-2022"
"P&V","SOUTH AREA RANGERS","SUPPLIES AND SERVICES","MATERIALS (COUNTERS)","4123","P115447-SERVICE-Replace Visitor Counter - Ferry Lane",30/1/2022 00:00:00,"258455",1850,"HE0418","HEALTHMATIC LTD",27/12/2021 00:00:00,30/1/2022 00:00:00,"P10-2022"
"P&V","SOUTH AREA RANGERS","SUPPLIES AND SERVICES","MATERIALS (COUNTERS)","4123","P115447-SERVICE-Replace Visitor Counter - Coppermill Lane",30/1/2022 00:00:00,"258455",1850,"HE0418","HEALTHMATIC LTD",27/12/2021 00:00:00,30/1/2022 00:00:00,"P10-2022"
"P&V","FISHERIES MANAGEMENT","SUPPLIES AND SERVICES","MATERIALS (LOCKS)","4124","P115748-SERVICE-12x Combi Locks - 744091",6/1/2022 00:00:00,"257532",259.32,"GR0020","GREENHAM TRADING LIMITED",27/12/2021 00:00:00,30/1/2022 00:00:00,"P10-2022"
,"LEE VALLEY CAMPSITE","SUPPLIES AND SERVICES","MATERIALS (GROUNDS MAINT)","4125","P115961-SERVICE-Materials site maintenance",17/1/2022 00:00:00,"257553",119.77,"BQ0164","TRADE UK ACCOUNT",27/12/2021 00:00:00,30/1/2022 00:00:00,"P10-2022"
,"LEE VALLEY CAMPSITE","SUPPLIES AND SERVICES","MATERIALS (GROUNDS MAINT)","4125","P116200-SERVICE-Karcher k4",25/1/2022 00:00:00,"258291",174.17,"BQ0164","TRADE UK ACCOUNT",27/12/2021 00:00:00,30/1/2022 00:00:00,"P10-2022"
,"LEE VALLEY CARAVAN PARK","SUPPLIES AND SERVICES","MATERIALS (GROUNDS MAINT)","4125","P116266-SERVICE-Reduce crown on weeping willow",30/1/2022 00:00:00,"258661",895,"MU0030","P J MUSK TREES",27/12/2021 00:00:00,30/1/2022 00:00:00,"P10-2022"
,"LV LEISURE CENTRE CAMPSITE","SUPPLIES AND SERVICES","MATERIALS (GROUNDS MAINT)","4125","P115943-SERVICE-Maintenannce equipment",7/1/2022 00:00:00,"257165",24.03,"BQ0164","TRADE UK ACCOUNT",27/12/2021 00:00:00,30/1/2022 00:00:00,"P10-2022"
,"LV LEISURE CENTRE CAMPSITE","SUPPLIES AND SERVICES","MATERIALS (GROUNDS MAINT)","4125","P115945-SERVICE-Timer plug",7/1/2022 00:00:00,"257247",5.83,"BQ0164","TRADE UK ACCOUNT",27/12/2021 00:00:00,30/1/2022 00:00:00,"P10-2022"
,"LV LEISURE CENTRE CAMPSITE","SUPPLIES AND SERVICES","MATERIALS (GROUNDS MAINT)","4125","P115944-SERVICE-Cleaning socket and test",7/1/2022 00:00:00,"257324",30,"BR0018","BRADSHAW ELECTRICAL LIMITED",27/12/2021 00:00:00,30/1/2022 00:00:00,"P10-2022"
,"LV LEISURE CENTRE CAMPSITE","SUPPLIES AND SERVICES","MATERIALS (GROUNDS MAINT)","4125","P116061-SERVICE-Maintenance supplies",18/1/2022 00:00:00,"257849",135,"BQ0164","TRADE UK ACCOUNT",27/12/2021 00:00:00,30/1/2022 00:00:00,"P10-2022"
,"LV LEISURE CENTRE CAMPSITE","SUPPLIES AND SERVICES","MATERIALS (GROUNDS MAINT)","4125","P116062-SERVICE-maintenance supplies",18/1/2022 00:00:00,"257850",33.33,"SC0057","SCREWFIX DIRECT LTD",27/12/2021 00:00:00,30/1/2022 00:00:00,"P10-2022"
,"LV LEISURE CENTRE GOLF COURSE","SUPPLIES AND SERVICES","MATERIALS (GROUNDS MAINT)","4125","P115351-SERVICE-skip hire",10/1/2022 00:00:00,"256535",300,"OD0010","O'DONOVAN (WASTE DISPOSAL) LTD",27/12/2021 00:00:00,30/1/2022 00:00:00,"P10-2022"
,"LV LEISURE CENTRE GOLF COURSE","SUPPLIES AND SERVICES","MATERIALS (GROUNDS MAINT)","4125","P113345-SERVICE-greenkeeper equipment",7/1/2022 00:00:00,"256718",745,"MR0420","MR AMENITY LTD",27/12/2021 00:00:00,30/1/2022 00:00:00,"P10-2022"
,"LV LEISURE CENTRE GOLF COURSE","SUPPLIES AND SERVICES","MATERIALS (GROUNDS MAINT)","4125","P115209-SERVICE-Parts to repair golf buggy",10/1/2022 00:00:00,"257785",411.02,"DO0027","ERNEST DOE & SONS LTD",27/12/2021 00:00:00,30/1/2022 00:00:00,"P10-2022"
,"LV LEISURE CENTRE GOLF COURSE","SUPPLIES AND SERVICES","MATERIALS (GROUNDS MAINT)","4125","P115140-SERVICE-items for cushman",10/1/2022 00:00:00,"257786",933.38,"DO0027","ERNEST DOE & SONS LTD",27/12/2021 00:00:00,30/1/2022 00:00:00,"P10-2022"
,"STANSTEAD RECHARGEABLE WORKS","SUPPLIES AND SERVICES","MATERIALS (TOOLS & PLANT)","4127","P116121-SERVICE-crane repairs",17/1/2022 00:00:00,"258220",7238,"CR0183","CROWLAND CRANES LTD",27/12/2021 00:00:00,30/1/2022 00:00:00,"P10-2022"
"P&V","NORTH AREA RANGERS","SUPPLIES AND SERVICES","MATERIALS (TOOLS & PLANT)","4127","P115058-SERVICE-8 Tonne Excavator for 3 weeks",6/1/2022 00:00:00,"257626",914,"OR0063","ORBITAL EQUIPMENT LIMITED",27/12/2021 00:00:00,30/1/2022 00:00:00,"P10-2022"
"P&V","NORTH AREA RANGERS","SUPPLIES AND SERVICES","MATERIALS (TOOLS & PLANT)","4127","P115058-SERVICE-3 Tonne Dumper for 2 wwwks",6/1/2022 00:00:00,"257626",33.25,"OR0063","ORBITAL EQUIPMENT LIMITED",27/12/2021 00:00:00,30/1/2022 00:00:00,"P10-2022"
,"SPRINGFIELD RECHARGEABLE WORKS","SUPPLIES AND SERVICES","MATERIALS (ENG OTHER)","4130","P115627-SERVICE-To Hire 80 Ton Crane on Wednesday 15-12-2021",11/1/2022 00:00:00,"257780",800,"BA0339","BALDWINS CRANE HIRE LTD",27/12/2021 00:00:00,30/1/2022 00:00:00,"P10-2022"
,"SPRINGFIELD RECHARGEABLE WORKS","SUPPLIES AND SERVICES","MATERIALS (ENG OTHER)","4130","P115627-SERVICE-To Provide Insurance @15%",11/1/2022 00:00:00,"257780",120,"BA0339","BALDWINS CRANE HIRE LTD",27/12/2021 00:00:00,30/1/2022 00:00:00,"P10-2022"
,"LEE VALLEY WHITE WATER CENTRE","SUPPLIES AND SERVICES","MATERIALS (CHEMICALS)","4131","P113615-SERVICE-Chemicals",10/1/2022 00:00:00,"257508",383.83,"AL0074","BRENNTAG UK GROUP LIMITED",27/12/2021 00:00:00,30/1/2022 00:00:00,"P10-2022"
,"LEE VALLEY WHITE WATER CENTRE","SUPPLIES AND SERVICES","MATERIALS (CHEMICALS)","4131","P115989-SERVICE-Chemicals from Dec to March",11/1/2022 00:00:00,"257509",176.2,"AL0074","BRENNTAG UK GROUP LIMITED",27/12/2021 00:00:00,30/1/2022 00:00:00,"P10-2022"
,"LEE VALLEY WHITE WATER CENTRE","SUPPLIES AND SERVICES","MATERIALS (CHEMICALS)","4131","P115989-SERVICE-Chemicals from Dec to March",11/1/2022 00:00:00,"257510",497.31,"AL0074","BRENNTAG UK GROUP LIMITED",27/12/2021 00:00:00,30/1/2022 00:00:00,"P10-2022"
,"LEE VALLEY WHITE WATER CENTRE","SUPPLIES AND SERVICES","MATERIALS (CHEMICALS)","4131","P115989-SERVICE-Chemicals from Dec to March",17/1/2022 00:00:00,"257902",176.2,"AL0074","BRENNTAG UK GROUP LIMITED",27/12/2021 00:00:00,30/1/2022 00:00:00,"P10-2022"
,"LEE VALLEY WHITE WATER CENTRE","SUPPLIES AND SERVICES","MATERIALS (CHEMICALS)","4131","P115989-SERVICE-Chemicals from Dec to March",19/1/2022 00:00:00,"258201",415.85,"AL0074","BRENNTAG UK GROUP LIMITED",27/12/2021 00:00:00,30/1/2022 00:00:00,"P10-2022"
,"LEE VALLEY WHITE WATER CENTRE","SUPPLIES AND SERVICES","MATERIALS (CHEMICALS)","4131","P113615-SERVICE-Chemicals",19/1/2022 00:00:00,"258202",-98,"AL0074","BRENNTAG UK GROUP LIMITED",27/12/2021 00:00:00,30/1/2022 00:00:00,"P10-2022"
,"LEE VALLEY WHITE WATER CENTRE","SUPPLIES AND SERVICES","MATERIALS (CHEMICALS)","4131","P115989-SERVICE-Chemicals from Dec to March",30/1/2022 00:00:00,"258625",427.76,"AL0074","BRENNTAG UK GROUP LIMITED",27/12/2021 00:00:00,30/1/2022 00:00:00,"P10-2022"
,"LEE VALLEY ATHLETICS CENTRE","SUPPLIES AND SERVICES","MATERIALS (MEDICAL)","4132","P116036-SERVICE-LVAC 1ST AID 5.12.21 INVOICE INV-0182",17/1/2022 00:00:00,"257888",360,"ES0406","ESSEX AMBULANCE SERVICE LTD",27/12/2021 00:00:00,30/1/2022 00:00:00,"P10-2022"
,"LEE VALLEY ATHLETICS CENTRE","SUPPLIES AND SERVICES","MATERIALS (MEDICAL)","4132","P116037-SERVICE-LVAC OFFICIALS LIG 22/23/29/30 JANUARY 2022",17/1/2022 00:00:00,"257909",3450,"SE0312","SEAA COMPETITION LIMITED",27/12/2021 00:00:00,30/1/2022 00:00:00,"P10-2022"
,"LEE VALLEY ATHLETICS CENTRE","SUPPLIES AND SERVICES","MATERIALS (MEDICAL)","4132","P116309-SERVICE-LVAC 1ST AID COVER x  2 -22ND/23RD JAN 2022",30/1/2022 00:00:00,"258656",640,"ES0406","ESSEX AMBULANCE SERVICE LTD",27/12/2021 00:00:00,30/1/2022 00:00:00,"P10-2022"
"P&V","LEE VALLEY FARM HOLYFIELDHALL","SUPPLIES AND SERVICES","FEED","4133","P115879-SERVICE-Golden Flake",6/1/2022 00:00:00,"257473",1644,"BO0246","FOR FARMERS UK LTD",27/12/2021 00:00:00,30/1/2022 00:00:00,"P10-2022"
"P&V","LEE VALLEY FARM HOLYFIELDHALL","SUPPLIES AND SERVICES","FEED","4133","P115922-SERVICE-Nutrimol",6/1/2022 00:00:00,"257524",1974.72,"BO0246","FOR FARMERS UK LTD",27/12/2021 00:00:00,30/1/2022 00:00:00,"P10-2022"
"P&V","LEE VALLEY FARM HOLYFIELDHALL","SUPPLIES AND SERVICES","FEED","4133","P115923-SERVICE-Optima 18",6/1/2022 00:00:00,"257547",3592.18,"BO0246","FOR FARMERS UK LTD",27/12/2021 00:00:00,30/1/2022 00:00:00,"P10-2022"
"P&V","LEE VALLEY FARM HOLYFIELDHALL","SUPPLIES AND SERVICES","FEED","4133","P116155-SERVICE-Max Care Dairy",25/1/2022 00:00:00,"257870",641.55,"BO0246","FOR FARMERS UK LTD",27/12/2021 00:00:00,30/1/2022 00:00:00,"P10-2022"
"P&V","LEE VALLEY FARM HOLYFIELDHALL","SUPPLIES AND SERVICES","FEED","4133","P116157-SERVICE-Amyplus",25/1/2022 00:00:00,"258127",3618.45,"BO0246","FOR FARMERS UK LTD",27/12/2021 00:00:00,30/1/2022 00:00:00,"P10-2022"
"P&V","LEE VALLEY FARM HOLYFIELDHALL","SUPPLIES AND SERVICES","FEED","4133","P116057-SERVICE-Calf Rebate",17/1/2022 00:00:00,"258128",290,"TH0635","THAME FARMERS AUCTION MART LTD",27/12/2021 00:00:00,30/1/2022 00:00:00,"P10-2022"
"P&V","LEE VALLEY FARM HOLYFIELDHALL","SUPPLIES AND SERVICES","FEED","4133","P116056-SERVICE-Roll Barley",17/1/2022 00:00:00,"258129",172.5,"HJ0453","H J BROOKS & SONS",27/12/2021 00:00:00,30/1/2022 00:00:00,"P10-2022"
"P&V","LEE VALLEY FARM HOLYFIELDHALL","SUPPLIES AND SERVICES","FEED","4133","P116213-SERVICE-Super Beef/Agricell",25/1/2022 00:00:00,"258429",2956.78,"HE0449","HEYGATES COUNTRY FEEDS LTD",27/12/2021 00:00:00,30/1/2022 00:00:00,"P10-2022"
"P&V","LEE VALLEY FARM HOLYFIELDHALL","SUPPLIES AND SERVICES","FEED","4133","P116214-SERVICE-Dairy Meal",25/1/2022 00:00:00,"258430",7332.2,"HE0449","HEYGATES COUNTRY FEEDS LTD",27/12/2021 00:00:00,30/1/2022 00:00:00,"P10-2022"
,"LEE VALLEY RIDING CENTRE","SUPPLIES AND SERVICES","FEED","4133","P115960-SERVICE-feed",7/1/2022 00:00:00,"257169",2121.6,"DO0029","M C DOWLING & SONS",27/12/2021 00:00:00,30/1/2022 00:00:00,"P10-2022"
,"LEE VALLEY RIDING CENTRE","SUPPLIES AND SERVICES","FEED","4133","P115960-SERVICE-feed",7/1/2022 00:00:00,"257304",850.15,"DO0029","M C DOWLING & SONS",27/12/2021 00:00:00,30/1/2022 00:00:00,"P10-2022"
,"LEE VALLEY RIDING CENTRE","SUPPLIES AND SERVICES","FEED","4133","P115960-SERVICE-feed",7/1/2022 00:00:00,"257569",2199.6,"DO0029","M C DOWLING & SONS",27/12/2021 00:00:00,30/1/2022 00:00:00,"P10-2022"
,"LEE VALLEY RIDING CENTRE","SUPPLIES AND SERVICES","FEED","4133","P115960-SERVICE-feed",7/1/2022 00:00:00,"257570",1230.45,"DO0029","M C DOWLING & SONS",27/12/2021 00:00:00,30/1/2022 00:00:00,"P10-2022"
,"LEE VALLEY RIDING CENTRE","SUPPLIES AND SERVICES","FEED","4133","P115960-SERVICE-feed",10/1/2022 00:00:00,"257789",1132.95,"DO0029","M C DOWLING & SONS",27/12/2021 00:00:00,30/1/2022 00:00:00,"P10-2022"
,"LEE VALLEY RIDING CENTRE","SUPPLIES AND SERVICES","FEED","4133","P115960-SERVICE-feed",10/1/2022 00:00:00,"257790",2101.6,"DO0029","M C DOWLING & SONS",27/12/2021 00:00:00,30/1/2022 00:00:00,"P10-2022"
,"LEE VALLEY RIDING CENTRE","SUPPLIES AND SERVICES","FEED","4133","P115960-SERVICE-feed",17/1/2022 00:00:00,"258170",123.9,"DO0029","M C DOWLING & SONS",27/12/2021 00:00:00,30/1/2022 00:00:00,"P10-2022"
,"LEE VALLEY RIDING CENTRE","SUPPLIES AND SERVICES","FEED","4133","P115960-SERVICE-feed",25/1/2022 00:00:00,"258439",239.75,"DO0029","M C DOWLING & SONS",27/12/2021 00:00:00,30/1/2022 00:00:00,"P10-2022"
,"LEE VALLEY RIDING CENTRE","SUPPLIES AND SERVICES","BEDDING","4134","P115960-SERVICE-bedding",7/1/2022 00:00:00,"257304",1006.74,"DO0029","M C DOWLING & SONS",27/12/2021 00:00:00,30/1/2022 00:00:00,"P10-2022"
,"LEE VALLEY RIDING CENTRE","SUPPLIES AND SERVICES","BEDDING","4134","P115960-SERVICE-bedding",17/1/2022 00:00:00,"258170",630,"DO0029","M C DOWLING & SONS",27/12/2021 00:00:00,30/1/2022 00:00:00,"P10-2022"
,"LEE VALLEY RIDING CENTRE","SUPPLIES AND SERVICES","BEDDING","4134","P115960-SERVICE-bedding",25/1/2022 00:00:00,"258439",1149.6,"DO0029","M C DOWLING & SONS",27/12/2021 00:00:00,30/1/2022 00:00:00,"P10-2022"
"P&V","LEE VALLEY FARM HOLYFIELDHALL","SUPPLIES AND SERVICES","DAIRY SUNDRIES","4138","P115092-SERVICE-Dead Animal Removal",6/1/2022 00:00:00,"257623",54,"MA0074","W MARTIN & SON LIMITED",27/12/2021 00:00:00,30/1/2022 00:00:00,"P10-2022"
"P&V","LEE VALLEY FARM HOLYFIELDHALL","SUPPLIES AND SERVICES","DAIRY SUNDRIES","4138","P115092-SERVICE-Dead Animal Removal",6/1/2022 00:00:00,"257624",58,"MA0074","W MARTIN & SON LIMITED",27/12/2021 00:00:00,30/1/2022 00:00:00,"P10-2022"
"P&V","LEE VALLEY FARM HOLYFIELDHALL","SUPPLIES AND SERVICES","DAIRY SUNDRIES","4138","P115092-SERVICE-Dead Animal Removal",6/1/2022 00:00:00,"257625",54,"MA0074","W MARTIN & SON LIMITED",27/12/2021 00:00:00,30/1/2022 00:00:00,"P10-2022"
"P&V","LEE VALLEY FARM HOLYFIELDHALL","SUPPLIES AND SERVICES","DAIRY SUNDRIES","4138","P114432-SERVICE-Dairy Sundries",6/1/2022 00:00:00,"257738",12.41,"FA0099","FARM & COUNTRY SUPPLIES LTD",27/12/2021 00:00:00,30/1/2022 00:00:00,"P10-2022"
"P&V","LEE VALLEY FARM HOLYFIELDHALL","SUPPLIES AND SERVICES","DAIRY SUNDRIES","4138","P114432-SERVICE-Dairy Sundries",20/1/2022 00:00:00,"257885",64.2,"FA0099","FARM & COUNTRY SUPPLIES LTD",27/12/2021 00:00:00,30/1/2022 00:00:00,"P10-2022"
"P&V","LEE VALLEY FARM HOLYFIELDHALL","SUPPLIES AND SERVICES","DAIRY SUNDRIES","4138","FARM & COUNTRY SUPPLIES LTD",20/1/2022 00:00:00,"257886",75.56,"FA0099","FARM & COUNTRY SUPPLIES LTD",27/12/2021 00:00:00,30/1/2022 00:00:00,"P10-2022"
"P&V","LEE VALLEY FARM HOLYFIELDHALL","SUPPLIES AND SERVICES","DAIRY SUNDRIES","4138","FARM & COUNTRY SUPPLIES LTD",20/1/2022 00:00:00,"257886",29.28,"FA0099","FARM & COUNTRY SUPPLIES LTD",27/12/2021 00:00:00,30/1/2022 00:00:00,"P10-2022"
"P&V","LEE VALLEY FARM HOLYFIELDHALL","SUPPLIES AND SERVICES","DAIRY SUNDRIES","4138","FARM & COUNTRY SUPPLIES LTD",20/1/2022 00:00:00,"257886",-104.84,"FA0099","FARM & COUNTRY SUPPLIES LTD",27/12/2021 00:00:00,30/1/2022 00:00:00,"P10-2022"
"P&V","LEE VALLEY FARM HOLYFIELDHALL","SUPPLIES AND SERVICES","DAIRY SUNDRIES","4138","P114432-SERVICE-Dairy Sundries",20/1/2022 00:00:00,"257886",104.84,"FA0099","FARM & COUNTRY SUPPLIES LTD",27/12/2021 00:00:00,30/1/2022 00:00:00,"P10-2022"
"P&V","LEE VALLEY FARM HOLYFIELDHALL","SUPPLIES AND SERVICES","DAIRY SUNDRIES","4138","P111471-SERVICE-Plumbing Fittings",25/1/2022 00:00:00,"258218",156.18,"WO0076","E J WOOLLARD LTD",27/12/2021 00:00:00,30/1/2022 00:00:00,"P10-2022"
"P&V","LEE VALLEY FARM HOLYFIELDHALL","SUPPLIES AND SERVICES","DAIRY SUNDRIES","4138","P115092-SERVICE-Dead Animal Removal",20/1/2022 00:00:00,"258227",54,"MA0074","W MARTIN & SON LIMITED",27/12/2021 00:00:00,30/1/2022 00:00:00,"P10-2022"
"P&V","LEE VALLEY FARM HOLYFIELDHALL","SUPPLIES AND SERVICES","DAIRY SUNDRIES","4138","P115092-SERVICE-Dead Animal Removal",20/1/2022 00:00:00,"258257",58,"MA0074","W MARTIN & SON LIMITED",27/12/2021 00:00:00,30/1/2022 00:00:00,"P10-2022"
"P&V","LEE VALLEY FARM HOLYFIELDHALL","SUPPLIES AND SERVICES","DAIRY SUNDRIES","4138","FARM & COUNTRY SUPPLIES LTD",25/1/2022 00:00:00,"258376",25.42,"FA0099","FARM & COUNTRY SUPPLIES LTD",27/12/2021 00:00:00,30/1/2022 00:00:00,"P10-2022"
"P&V","LEE VALLEY FARM HOLYFIELDHALL","SUPPLIES AND SERVICES","DAIRY SUNDRIES","4138","FARM & COUNTRY SUPPLIES LTD",25/1/2022 00:00:00,"258376",133.58,"FA0099","FARM & COUNTRY SUPPLIES LTD",27/12/2021 00:00:00,30/1/2022 00:00:00,"P10-2022"
"P&V","LEE VALLEY FARM HOLYFIELDHALL","SUPPLIES AND SERVICES","DAIRY SUNDRIES","4138","FARM & COUNTRY SUPPLIES LTD",25/1/2022 00:00:00,"258376",-159,"FA0099","FARM & COUNTRY SUPPLIES LTD",27/12/2021 00:00:00,30/1/2022 00:00:00,"P10-2022"
"P&V","LEE VALLEY FARM HOLYFIELDHALL","SUPPLIES AND SERVICES","DAIRY SUNDRIES","4138","P116208-SERVICE-Dairy Sundries",25/1/2022 00:00:00,"258376",159,"FA0099","FARM & COUNTRY SUPPLIES LTD",27/12/2021 00:00:00,30/1/2022 00:00:00,"P10-2022"
"P&V","LEE VALLEY FARM HOLYFIELDHALL","SUPPLIES AND SERVICES","DAIRY SUNDRIES","4138","P115092-SERVICE-Dead Animal Removal",25/1/2022 00:00:00,"258431",140,"MA0074","W MARTIN & SON LIMITED",27/12/2021 00:00:00,30/1/2022 00:00:00,"P10-2022"
"P&V","LEE VALLEY FARM HOLYFIELDHALL","SUPPLIES AND SERVICES","DAIRY SUNDRIES","4138","P112366-SERVICE-Liquid Nitrogen",25/1/2022 00:00:00,"258440",55,"GE0005","GENUS BREEDING LTD",27/12/2021 00:00:00,30/1/2022 00:00:00,"P10-2022"
"P&V","MYDDLETON HSE HERITAGE CENTRE","SUPPLIES AND SERVICES","FOOD AND DRINK PURCHASES","4140","BIDFOOD",19/1/2022 00:00:00,"256874",-186.58,"360001","BIDFOOD",27/12/2021 00:00:00,30/1/2022 00:00:00,"P10-2022"
"P&V","MYDDLETON HSE HERITAGE CENTRE","SUPPLIES AND SERVICES","FOOD AND DRINK PURCHASES","4140","BIDFOOD",19/1/2022 00:00:00,"256874",143.93,"360001","BIDFOOD",27/12/2021 00:00:00,30/1/2022 00:00:00,"P10-2022"
"P&V","MYDDLETON HSE HERITAGE CENTRE","SUPPLIES AND SERVICES","FOOD AND DRINK PURCHASES","4140","P115606-SERVICE-food/drinks order w.e. 12/12",19/1/2022 00:00:00,"256874",186.58,"360001","BIDFOOD",27/12/2021 00:00:00,30/1/2022 00:00:00,"P10-2022"
"P&V","MYDDLETON HSE HERITAGE CENTRE","SUPPLIES AND SERVICES","FOOD AND DRINK PURCHASES","4140","BIDFOOD",19/1/2022 00:00:00,"256874",42.65,"360001","BIDFOOD",27/12/2021 00:00:00,30/1/2022 00:00:00,"P10-2022"
"P&V","MYDDLETON HSE HERITAGE CENTRE","SUPPLIES AND SERVICES","FOOD AND DRINK PURCHASES","4140","BIDFOOD",26/1/2022 00:00:00,"258163",354.63,"360001","BIDFOOD",27/12/2021 00:00:00,30/1/2022 00:00:00,"P10-2022"
"P&V","MYDDLETON HSE HERITAGE CENTRE","SUPPLIES AND SERVICES","FOOD AND DRINK PURCHASES","4140","P116050-SERVICE-food/drinks order w.b 10.01.22",26/1/2022 00:00:00,"258163",412.41,"360001","BIDFOOD",27/12/2021 00:00:00,30/1/2022 00:00:00,"P10-2022"
"P&V","MYDDLETON HSE HERITAGE CENTRE","SUPPLIES AND SERVICES","FOOD AND DRINK PURCHASES","4140","BIDFOOD",26/1/2022 00:00:00,"258163",57.78,"360001","BIDFOOD",27/12/2021 00:00:00,30/1/2022 00:00:00,"P10-2022"
"P&V","MYDDLETON HSE HERITAGE CENTRE","SUPPLIES AND SERVICES","FOOD AND DRINK PURCHASES","4140","BIDFOOD",26/1/2022 00:00:00,"258163",-412.41,"360001","BIDFOOD",27/12/2021 00:00:00,30/1/2022 00:00:00,"P10-2022"
,"LEE VALLEY VELOPARK CATERING","SUPPLIES AND SERVICES","FOOD AND DRINK PURCHASES","4140","P115978-SERVICE-Food and Drink Order",12/1/2022 00:00:00,"257633",119.33,"360001","BIDFOOD",27/12/2021 00:00:00,30/1/2022 00:00:00,"P10-2022"
,"LEE VALLEY VELOPARK CATERING","SUPPLIES AND SERVICES","FOOD AND DRINK PURCHASES","4140","P115978-SERVICE-Food and Drink Order",12/1/2022 00:00:00,"257787",-7.48,"360001","BIDFOOD",27/12/2021 00:00:00,30/1/2022 00:00:00,"P10-2022"
,"LEE VALLEY VELOPARK CATERING","SUPPLIES AND SERVICES","FOOD AND DRINK PURCHASES","4140","P116099-SERVICE-Food and Drink Order",19/1/2022 00:00:00,"257898",154.99,"360001","BIDFOOD",27/12/2021 00:00:00,30/1/2022 00:00:00,"P10-2022"
,"LEE VALLEY VELOPARK CATERING","SUPPLIES AND SERVICES","FOOD AND DRINK PURCHASES","4140","BIDFOOD",19/1/2022 00:00:00,"257898",69.96,"360001","BIDFOOD",27/12/2021 00:00:00,30/1/2022 00:00:00,"P10-2022"
,"LEE VALLEY VELOPARK CATERING","SUPPLIES AND SERVICES","FOOD AND DRINK PURCHASES","4140","BIDFOOD",19/1/2022 00:00:00,"257898",85.03,"360001","BIDFOOD",27/12/2021 00:00:00,30/1/2022 00:00:00,"P10-2022"
,"LEE VALLEY VELOPARK CATERING","SUPPLIES AND SERVICES","FOOD AND DRINK PURCHASES","4140","BIDFOOD",19/1/2022 00:00:00,"257898",-154.99,"360001","BIDFOOD",27/12/2021 00:00:00,30/1/2022 00:00:00,"P10-2022"
,"LEE VALLEY VELOPARK CATERING","SUPPLIES AND SERVICES","FOOD AND DRINK PURCHASES","4140","P115524-SERVICE-Cake Order",17/1/2022 00:00:00,"258132",156,"CH0742","CHANEL MUSA T/AS CAKE CULT LDN LTD",27/12/2021 00:00:00,30/1/2022 00:00:00,"P10-2022"
,"LEE VALLEY VELOPARK CATERING","SUPPLIES AND SERVICES","FOOD AND DRINK PURCHASES","4140","P116101-SERVICE-Food and Drink Order",19/1/2022 00:00:00,"258162",502.78,"360001","BIDFOOD",27/12/2021 00:00:00,30/1/2022 00:00:00,"P10-2022"
,"LEE VALLEY VELOPARK CATERING","SUPPLIES AND SERVICES","FOOD AND DRINK PURCHASES","4140","BIDFOOD",19/1/2022 00:00:00,"258162",116.78,"360001","BIDFOOD",27/12/2021 00:00:00,30/1/2022 00:00:00,"P10-2022"
,"LEE VALLEY VELOPARK CATERING","SUPPLIES AND SERVICES","FOOD AND DRINK PURCHASES","4140","BIDFOOD",19/1/2022 00:00:00,"258162",386,"360001","BIDFOOD",27/12/2021 00:00:00,30/1/2022 00:00:00,"P10-2022"
,"LEE VALLEY VELOPARK CATERING","SUPPLIES AND SERVICES","FOOD AND DRINK PURCHASES","4140","BIDFOOD",19/1/2022 00:00:00,"258162",-502.78,"360001","BIDFOOD",27/12/2021 00:00:00,30/1/2022 00:00:00,"P10-2022"
,"LEE VALLEY VELOPARK CATERING","SUPPLIES AND SERVICES","FOOD AND DRINK PURCHASES","4140","P116102-SERVICE-Food and Drink Order",19/1/2022 00:00:00,"258165",105.75,"360001","BIDFOOD",27/12/2021 00:00:00,30/1/2022 00:00:00,"P10-2022"
,"LEE VALLEY VELOPARK CATERING","SUPPLIES AND SERVICES","FOOD AND DRINK PURCHASES","4140","P116103-SERVICE-Black Travel Lid",19/1/2022 00:00:00,"258168",38.75,"RO0216","ROMBOUTS COFFEE GB LIMITED",27/12/2021 00:00:00,30/1/2022 00:00:00,"P10-2022"
,"LEE VALLEY VELOPARK CATERING","SUPPLIES AND SERVICES","FOOD AND DRINK PURCHASES","4140","P116104-SERVICE-Food Order",19/1/2022 00:00:00,"258180",121.27,"SI0589","SIMPLY LUNCH LTD",27/12/2021 00:00:00,30/1/2022 00:00:00,"P10-2022"
,"LEE VALLEY VELOPARK CATERING","SUPPLIES AND SERVICES","FOOD AND DRINK PURCHASES","4140","P116222-SERVICE-Food and Drink Order",30/1/2022 00:00:00,"258406",260.77,"360001","BIDFOOD",27/12/2021 00:00:00,30/1/2022 00:00:00,"P10-2022"
,"LEE VALLEY VELOPARK CATERING","SUPPLIES AND SERVICES","FOOD AND DRINK PURCHASES","4140","P116285-SERVICE-Food Order",30/1/2022 00:00:00,"258459",86.55,"SI0589","SIMPLY LUNCH LTD",27/12/2021 00:00:00,30/1/2022 00:00:00,"P10-2022"
,"LEE VALLEY VELOPARK CATERING","SUPPLIES AND SERVICES","FOOD AND DRINK PURCHASES","4140","P116301-SERVICE-Food and Drink Order",30/1/2022 00:00:00,"258644",621.12,"360001","BIDFOOD",27/12/2021 00:00:00,30/1/2022 00:00:00,"P10-2022"
,"LEE VALLEY VELOPARK CATERING","SUPPLIES AND SERVICES","FOOD AND DRINK PURCHASES","4140","BIDFOOD",30/1/2022 00:00:00,"258646",226.49,"360001","BIDFOOD",27/12/2021 00:00:00,30/1/2022 00:00:00,"P10-2022"
,"LEE VALLEY VELOPARK CATERING","SUPPLIES AND SERVICES","FOOD AND DRINK PURCHASES","4140","P116302-SERVICE-Food and Drink Order",30/1/2022 00:00:00,"258646",415.71,"360001","BIDFOOD",27/12/2021 00:00:00,30/1/2022 00:00:00,"P10-2022"
,"LEE VALLEY VELOPARK CATERING","SUPPLIES AND SERVICES","FOOD AND DRINK PURCHASES","4140","BIDFOOD",30/1/2022 00:00:00,"258646",189.22,"360001","BIDFOOD",27/12/2021 00:00:00,30/1/2022 00:00:00,"P10-2022"
,"LEE VALLEY VELOPARK CATERING","SUPPLIES AND SERVICES","FOOD AND DRINK PURCHASES","4140","BIDFOOD",30/1/2022 00:00:00,"258646",-415.71,"360001","BIDFOOD",27/12/2021 00:00:00,30/1/2022 00:00:00,"P10-2022"
,"LEE VALLEY VELOPARK CATERING","SUPPLIES AND SERVICES","FOOD AND DRINK PURCHASES","4140","P116303-SERVICE-Coffee Lids",30/1/2022 00:00:00,"258662",53.6,"RO0216","ROMBOUTS COFFEE GB LIMITED",27/12/2021 00:00:00,30/1/2022 00:00:00,"P10-2022"
,"LEE VALLEY VELOPARK CATERING","SUPPLIES AND SERVICES","FOOD AND DRINK PURCHASES","4140","P116304-SERVICE-Food Order",30/1/2022 00:00:00,"258667",79.62,"SO0412","THE SOHO SANDWICH COMPANY",27/12/2021 00:00:00,30/1/2022 00:00:00,"P10-2022"
,"LV HOCKEY AND TENNIS CATERING","SUPPLIES AND SERVICES","FOOD AND DRINK PURCHASES","4140","BIDFOOD",17/1/2022 00:00:00,"257926",314.67,"360001","BIDFOOD",27/12/2021 00:00:00,30/1/2022 00:00:00,"P10-2022"
,"LV HOCKEY AND TENNIS CATERING","SUPPLIES AND SERVICES","FOOD AND DRINK PURCHASES","4140","BIDFOOD",17/1/2022 00:00:00,"257926",85.46,"360001","BIDFOOD",27/12/2021 00:00:00,30/1/2022 00:00:00,"P10-2022"
,"LV HOCKEY AND TENNIS CATERING","SUPPLIES AND SERVICES","FOOD AND DRINK PURCHASES","4140","BIDFOOD",17/1/2022 00:00:00,"257926",-400.13,"360001","BIDFOOD",27/12/2021 00:00:00,30/1/2022 00:00:00,"P10-2022"
,"LV HOCKEY AND TENNIS CATERING","SUPPLIES AND SERVICES","FOOD AND DRINK PURCHASES","4140","P114249-SERVICE-food and drink prders",17/1/2022 00:00:00,"257926",400.13,"360001","BIDFOOD",27/12/2021 00:00:00,30/1/2022 00:00:00,"P10-2022"
,"LV HOCKEY AND TENNIS CATERING","SUPPLIES AND SERVICES","FOOD AND DRINK PURCHASES","4140","P114249-SERVICE-food and drink",17/1/2022 00:00:00,"257926",68.26,"360001","BIDFOOD",27/12/2021 00:00:00,30/1/2022 00:00:00,"P10-2022"
,"LV HOCKEY AND TENNIS CATERING","SUPPLIES AND SERVICES","FOOD AND DRINK PURCHASES","4140","P114249-SERVICE-food and drink orders",17/1/2022 00:00:00,"257926",187.47,"360001","BIDFOOD",27/12/2021 00:00:00,30/1/2022 00:00:00,"P10-2022"
,"LV HOCKEY AND TENNIS CATERING","SUPPLIES AND SERVICES","FOOD AND DRINK PURCHASES","4140","P114249-SERVICE-food and drink prders",25/1/2022 00:00:00,"258289",183.85,"360001","BIDFOOD",27/12/2021 00:00:00,30/1/2022 00:00:00,"P10-2022"
,"LV HOCKEY AND TENNIS CATERING","SUPPLIES AND SERVICES","FOOD AND DRINK PURCHASES","4140","BIDFOOD",25/1/2022 00:00:00,"258289",96.09,"360001","BIDFOOD",27/12/2021 00:00:00,30/1/2022 00:00:00,"P10-2022"
,"LV HOCKEY AND TENNIS CATERING","SUPPLIES AND SERVICES","FOOD AND DRINK PURCHASES","4140","BIDFOOD",25/1/2022 00:00:00,"258289",-183.85,"360001","BIDFOOD",27/12/2021 00:00:00,30/1/2022 00:00:00,"P10-2022"
,"LV HOCKEY AND TENNIS CATERING","SUPPLIES AND SERVICES","FOOD AND DRINK PURCHASES","4140","BIDFOOD",25/1/2022 00:00:00,"258289",87.76,"360001","BIDFOOD",27/12/2021 00:00:00,30/1/2022 00:00:00,"P10-2022"
,"LV ATHLETICS CENTRE CATERING","SUPPLIES AND SERVICES","FOOD AND DRINK PURCHASES","4140","P116188-SERVICE-front of house food",25/1/2022 00:00:00,"258427",454.83,"360001","BIDFOOD",27/12/2021 00:00:00,30/1/2022 00:00:00,"P10-2022"
,"LV ATHLETICS CENTRE CATERING","SUPPLIES AND SERVICES","FOOD AND DRINK PURCHASES","4140","BIDFOOD",25/1/2022 00:00:00,"258427",265.07,"360001","BIDFOOD",27/12/2021 00:00:00,30/1/2022 00:00:00,"P10-2022"
,"LV ATHLETICS CENTRE CATERING","SUPPLIES AND SERVICES","FOOD AND DRINK PURCHASES","4140","BIDFOOD",25/1/2022 00:00:00,"258427",-454.83,"360001","BIDFOOD",27/12/2021 00:00:00,30/1/2022 00:00:00,"P10-2022"
,"LV ATHLETICS CENTRE CATERING","SUPPLIES AND SERVICES","FOOD AND DRINK PURCHASES","4140","BIDFOOD",25/1/2022 00:00:00,"258427",189.76,"360001","BIDFOOD",27/12/2021 00:00:00,30/1/2022 00:00:00,"P10-2022"
,"LV WHITE WATER CATERING","SUPPLIES AND SERVICES","FOOD AND DRINK PURCHASES","4140","P115677-SERVICE-milk & cakes",11/1/2022 00:00:00,"256882",276.75,"360001","BIDFOOD",27/12/2021 00:00:00,30/1/2022 00:00:00,"P10-2022"
,"LV WHITE WATER CATERING","SUPPLIES AND SERVICES","FOOD AND DRINK PURCHASES","4140","BIDFOOD",11/1/2022 00:00:00,"256882",73.94,"360001","BIDFOOD",27/12/2021 00:00:00,30/1/2022 00:00:00,"P10-2022"
,"LV WHITE WATER CATERING","SUPPLIES AND SERVICES","FOOD AND DRINK PURCHASES","4140","BIDFOOD",11/1/2022 00:00:00,"256882",202.81,"360001","BIDFOOD",27/12/2021 00:00:00,30/1/2022 00:00:00,"P10-2022"
,"LV WHITE WATER CATERING","SUPPLIES AND SERVICES","FOOD AND DRINK PURCHASES","4140","BIDFOOD",11/1/2022 00:00:00,"256882",-276.75,"360001","BIDFOOD",27/12/2021 00:00:00,30/1/2022 00:00:00,"P10-2022"
,"LV WHITE WATER CATERING","SUPPLIES AND SERVICES","FOOD AND DRINK PURCHASES","4140","P115808-SERVICE-sandwiches",11/1/2022 00:00:00,"257004",171.42,"AN0324","ANCHOR CATERING",27/12/2021 00:00:00,30/1/2022 00:00:00,"P10-2022"
,"LV WHITE WATER CATERING","SUPPLIES AND SERVICES","FOOD AND DRINK PURCHASES","4140","P115809-SERVICE-stocktake",11/1/2022 00:00:00,"257133",532,"VE0038","VENNERS LTD",27/12/2021 00:00:00,30/1/2022 00:00:00,"P10-2022"
,"LV WHITE WATER CATERING","SUPPLIES AND SERVICES","FOOD AND DRINK PURCHASES","4140","P115810-SERVICE-food",11/1/2022 00:00:00,"257248",253.71,"360001","BIDFOOD",27/12/2021 00:00:00,30/1/2022 00:00:00,"P10-2022"
,"LV WHITE WATER CATERING","SUPPLIES AND SERVICES","FOOD AND DRINK PURCHASES","4140","P115680-SERVICE-sandwqiches",11/1/2022 00:00:00,"257484",238.19,"AN0324","ANCHOR CATERING",27/12/2021 00:00:00,30/1/2022 00:00:00,"P10-2022"
,"LV WHITE WATER CATERING","SUPPLIES AND SERVICES","FOOD AND DRINK PURCHASES","4140","P116176-SERVICE-food",25/1/2022 00:00:00,"257899",157.2,"360001","BIDFOOD",27/12/2021 00:00:00,30/1/2022 00:00:00,"P10-2022"
,"LV WHITE WATER CATERING","SUPPLIES AND SERVICES","FOOD AND DRINK PURCHASES","4140","P116022-SERVICE-cups",25/1/2022 00:00:00,"257913",224.98,"CA0585","CAFE CONNECTIONS",27/12/2021 00:00:00,30/1/2022 00:00:00,"P10-2022"
,"LV WHITE WATER CATERING","SUPPLIES AND SERVICES","FOOD AND DRINK PURCHASES","4140","ROMBOUTS COFFEE GB LIMITED",25/1/2022 00:00:00,"257919",-216.3,"RO0216","ROMBOUTS COFFEE GB LIMITED",27/12/2021 00:00:00,30/1/2022 00:00:00,"P10-2022"
,"LV WHITE WATER CATERING","SUPPLIES AND SERVICES","FOOD AND DRINK PURCHASES","4140","ROMBOUTS COFFEE GB LIMITED",25/1/2022 00:00:00,"257919",204.3,"RO0216","ROMBOUTS COFFEE GB LIMITED",27/12/2021 00:00:00,30/1/2022 00:00:00,"P10-2022"
,"LV WHITE WATER CATERING","SUPPLIES AND SERVICES","FOOD AND DRINK PURCHASES","4140","ROMBOUTS COFFEE GB LIMITED",25/1/2022 00:00:00,"257919",12,"RO0216","ROMBOUTS COFFEE GB LIMITED",27/12/2021 00:00:00,30/1/2022 00:00:00,"P10-2022"
,"LV WHITE WATER CATERING","SUPPLIES AND SERVICES","FOOD AND DRINK PURCHASES","4140","P116024-SERVICE-coffee",25/1/2022 00:00:00,"257919",216.3,"RO0216","ROMBOUTS COFFEE GB LIMITED",27/12/2021 00:00:00,30/1/2022 00:00:00,"P10-2022"
,"LV WHITE WATER CATERING","SUPPLIES AND SERVICES","FOOD AND DRINK PURCHASES","4140","BIDFOOD",25/1/2022 00:00:00,"257925",-642.5,"360001","BIDFOOD",27/12/2021 00:00:00,30/1/2022 00:00:00,"P10-2022"
,"LV WHITE WATER CATERING","SUPPLIES AND SERVICES","FOOD AND DRINK PURCHASES","4140","P116176-SERVICE-food",25/1/2022 00:00:00,"257925",642.5,"360001","BIDFOOD",27/12/2021 00:00:00,30/1/2022 00:00:00,"P10-2022"
,"LV WHITE WATER CATERING","SUPPLIES AND SERVICES","FOOD AND DRINK PURCHASES","4140","BIDFOOD",25/1/2022 00:00:00,"257925",154.01,"360001","BIDFOOD",27/12/2021 00:00:00,30/1/2022 00:00:00,"P10-2022"
,"LV WHITE WATER CATERING","SUPPLIES AND SERVICES","FOOD AND DRINK PURCHASES","4140","BIDFOOD",25/1/2022 00:00:00,"257925",488.49,"360001","BIDFOOD",27/12/2021 00:00:00,30/1/2022 00:00:00,"P10-2022"
,"LV WHITE WATER CATERING","SUPPLIES AND SERVICES","FOOD AND DRINK PURCHASES","4140","P116054-SERVICE-kitchen food",25/1/2022 00:00:00,"258105",328.39,"360001","BIDFOOD",27/12/2021 00:00:00,30/1/2022 00:00:00,"P10-2022"
,"LV WHITE WATER CATERING","SUPPLIES AND SERVICES","FOOD AND DRINK PURCHASES","4140","P116054-SERVICE-kitchen food",25/1/2022 00:00:00,"258164",17.52,"360001","BIDFOOD",27/12/2021 00:00:00,30/1/2022 00:00:00,"P10-2022"
,"LV WHITE WATER CATERING","SUPPLIES AND SERVICES","FOOD AND DRINK PURCHASES","4140","P116179-SERVICE-coffee",25/1/2022 00:00:00,"258195",280,"RO0216","ROMBOUTS COFFEE GB LIMITED",27/12/2021 00:00:00,30/1/2022 00:00:00,"P10-2022"
,"LV WHITE WATER CATERING","SUPPLIES AND SERVICES","FOOD AND DRINK PURCHASES","4140","P116054-SERVICE-kitchen food",25/1/2022 00:00:00,"258205",-17.52,"360001","BIDFOOD",27/12/2021 00:00:00,30/1/2022 00:00:00,"P10-2022"
,"LV WHITE WATER CATERING","SUPPLIES AND SERVICES","FOOD AND DRINK PURCHASES","4140","P116177-SERVICE-stocktake",25/1/2022 00:00:00,"258213",564,"VE0038","VENNERS LTD",27/12/2021 00:00:00,30/1/2022 00:00:00,"P10-2022"
,"LV WHITE WATER CATERING","SUPPLIES AND SERVICES","FOOD AND DRINK PURCHASES","4140","P115299-SERVICE-sandwiches",25/1/2022 00:00:00,"258375",256.95,"AN0324","ANCHOR CATERING",27/12/2021 00:00:00,30/1/2022 00:00:00,"P10-2022"
,"LV WHITE WATER CATERING","SUPPLIES AND SERVICES","FOOD AND DRINK PURCHASES","4140","BIDFOOD",25/1/2022 00:00:00,"258407",12.08,"360001","BIDFOOD",27/12/2021 00:00:00,30/1/2022 00:00:00,"P10-2022"
,"LV WHITE WATER CATERING","SUPPLIES AND SERVICES","FOOD AND DRINK PURCHASES","4140","BIDFOOD",25/1/2022 00:00:00,"258407",218.59,"360001","BIDFOOD",27/12/2021 00:00:00,30/1/2022 00:00:00,"P10-2022"
,"LV WHITE WATER CATERING","SUPPLIES AND SERVICES","FOOD AND DRINK PURCHASES","4140","BIDFOOD",25/1/2022 00:00:00,"258407",-230.67,"360001","BIDFOOD",27/12/2021 00:00:00,30/1/2022 00:00:00,"P10-2022"
,"LV WHITE WATER CATERING","SUPPLIES AND SERVICES","FOOD AND DRINK PURCHASES","4140","P116203-SERVICE-kitchen",25/1/2022 00:00:00,"258407",230.67,"360001","BIDFOOD",27/12/2021 00:00:00,30/1/2022 00:00:00,"P10-2022"
,"LV WHITE WATER CATERING","SUPPLIES AND SERVICES","FOOD AND DRINK PURCHASES","4140","P116175-SERVICE-cofffee",25/1/2022 00:00:00,"258432",408.4,"RO0216","ROMBOUTS COFFEE GB LIMITED",27/12/2021 00:00:00,30/1/2022 00:00:00,"P10-2022"
,"LV WHITE WATER CATERING","SUPPLIES AND SERVICES","FOOD AND DRINK PURCHASES","4140","P116203-SERVICE-kitchen",25/1/2022 00:00:00,"258438",176.71,"360001","BIDFOOD",27/12/2021 00:00:00,30/1/2022 00:00:00,"P10-2022"
,"LV WHITE WATER CATERING","SUPPLIES AND SERVICES","FOOD AND DRINK PURCHASES","4140","P116187-SERVICE-sandwiches wc 17.01/22",26/1/2022 00:00:00,"258485",262.66,"AN0324","ANCHOR CATERING",27/12/2021 00:00:00,30/1/2022 00:00:00,"P10-2022"
,"LV CAMPSITE CARAVAN SALES","SUPPLIES AND SERVICES","CARAVAN PURCHASES","4171","PEMBERTON LEISURE HOMES",17/1/2022 00:00:00,"255325",2180.62,"PE0282","PEMBERTON LEISURE HOMES",27/12/2021 00:00:00,30/1/2022 00:00:00,"P10-2022"
,"LV CAMPSITE CARAVAN SALES","SUPPLIES AND SERVICES","CARAVAN PURCHASES","4171","PEMBERTON LEISURE HOMES",17/1/2022 00:00:00,"255325",39410.76,"PE0282","PEMBERTON LEISURE HOMES",27/12/2021 00:00:00,30/1/2022 00:00:00,"P10-2022"
,"LV CAMPSITE CARAVAN SALES","SUPPLIES AND SERVICES","CARAVAN PURCHASES","4171","PEMBERTON LEISURE HOMES",17/1/2022 00:00:00,"255325",10903.09,"PE0282","PEMBERTON LEISURE HOMES",27/12/2021 00:00:00,30/1/2022 00:00:00,"P10-2022"
,"LV CAMPSITE CARAVAN SALES","SUPPLIES AND SERVICES","CARAVAN PURCHASES","4171","PEMBERTON LEISURE HOMES",17/1/2022 00:00:00,"255325",-52494.47,"PE0282","PEMBERTON LEISURE HOMES",27/12/2021 00:00:00,30/1/2022 00:00:00,"P10-2022"
,"LV CAMPSITE CARAVAN SALES","SUPPLIES AND SERVICES","CARAVAN PURCHASES","4171","P115043-SERVICE-Pemberton",17/1/2022 00:00:00,"255325",52494.47,"PE0282","PEMBERTON LEISURE HOMES",27/12/2021 00:00:00,30/1/2022 00:00:00,"P10-2022"
,"LV CAMPSITE CARAVAN SALES","SUPPLIES AND SERVICES","CARAVAN PURCHASES","4171","PEMBERTON LEISURE HOMES",17/1/2022 00:00:00,"256223",6761.5,"PE0282","PEMBERTON LEISURE HOMES",27/12/2021 00:00:00,30/1/2022 00:00:00,"P10-2022"
,"LV CAMPSITE CARAVAN SALES","SUPPLIES AND SERVICES","CARAVAN PURCHASES","4171","PEMBERTON LEISURE HOMES",17/1/2022 00:00:00,"256223",28300.67,"PE0282","PEMBERTON LEISURE HOMES",27/12/2021 00:00:00,30/1/2022 00:00:00,"P10-2022"
,"LV CAMPSITE CARAVAN SALES","SUPPLIES AND SERVICES","CARAVAN PURCHASES","4171","PEMBERTON LEISURE HOMES",17/1/2022 00:00:00,"256223",-36414.42,"PE0282","PEMBERTON LEISURE HOMES",27/12/2021 00:00:00,30/1/2022 00:00:00,"P10-2022"
,"LV CAMPSITE CARAVAN SALES","SUPPLIES AND SERVICES","CARAVAN PURCHASES","4171","P116116-SERVICE-Pemberton static",17/1/2022 00:00:00,"256223",36414.42,"PE0282","PEMBERTON LEISURE HOMES",27/12/2021 00:00:00,30/1/2022 00:00:00,"P10-2022"
,"LV CAMPSITE CARAVAN SALES","SUPPLIES AND SERVICES","CARAVAN PURCHASES","4171","PEMBERTON LEISURE HOMES",17/1/2022 00:00:00,"256223",1352.25,"PE0282","PEMBERTON LEISURE HOMES",27/12/2021 00:00:00,30/1/2022 00:00:00,"P10-2022"
"R&B","INFORMATION TECHNOLOGY","SUPPLIES AND SERVICES","CLOTHING & UNIFORMS","4225","P115740-SERVICE-6 x LV sewn in right hand chest -  black",7/1/2022 00:00:00,"257527",19.96,"DI0017","DIRECT BOOT & SHOE SUPPLIES",27/12/2021 00:00:00,30/1/2022 00:00:00,"P10-2022"
"R&B","INFORMATION TECHNOLOGY","SUPPLIES AND SERVICES","CLOTHING & UNIFORMS","4225","P115598-SERVICE-UN024-Navy-XXL -100% cotton polo shirt x 3 wi",6/1/2022 00:00:00,"257528",20.85,"DI0017","DIRECT BOOT & SHOE SUPPLIES",27/12/2021 00:00:00,30/1/2022 00:00:00,"P10-2022"
,"LEE VALLEY MARINA STANSTEAD","SUPPLIES AND SERVICES","CLOTHING & UNIFORMS","4225","P115170-SERVICE-Maria's Rain Coat + delivery - uniform",18/1/2022 00:00:00,"256676",32.5,"DI0017","DIRECT BOOT & SHOE SUPPLIES",27/12/2021 00:00:00,30/1/2022 00:00:00,"P10-2022"
,"LEE VALLEY CAMPSITE","SUPPLIES AND SERVICES","CLOTHING & UNIFORMS","4225","P115964-SERVICE-saftey boots",18/1/2022 00:00:00,"257824",33.95,"AM0406","AMAZON PAYMENTS UK LIMITED",27/12/2021 00:00:00,30/1/2022 00:00:00,"P10-2022"
,"LEE VALLEY CAMPSITE","SUPPLIES AND SERVICES","CLOTHING & UNIFORMS","4225","P115967-SERVICE-Uniform for GA",17/1/2022 00:00:00,"257874",58.24,"AM0406","AMAZON PAYMENTS UK LIMITED",27/12/2021 00:00:00,30/1/2022 00:00:00,"P10-2022"
,"LEE VALLEY CAMPSITE","SUPPLIES AND SERVICES","CLOTHING & UNIFORMS","4225","P116043-SERVICE-Uniform",17/1/2022 00:00:00,"258108",33.95,"AM0406","AMAZON PAYMENTS UK LIMITED",27/12/2021 00:00:00,30/1/2022 00:00:00,"P10-2022"
,"LEE VALLEY CAMPSITE","SUPPLIES AND SERVICES","CLOTHING & UNIFORMS","4225","P116043-SERVICE-Uniform",17/1/2022 00:00:00,"258109",58.24,"AM0406","AMAZON PAYMENTS UK LIMITED",27/12/2021 00:00:00,30/1/2022 00:00:00,"P10-2022"
,"LEE VALLEY CARAVAN PARK","SUPPLIES AND SERVICES","CLOTHING & UNIFORMS","4225","P115549-SERVICE-GA Trousers",7/1/2022 00:00:00,"256692",45.4,"AM0406","AMAZON PAYMENTS UK LIMITED",27/12/2021 00:00:00,30/1/2022 00:00:00,"P10-2022"
,"LEE VALLEY WHITE WATER CENTRE","SUPPLIES AND SERVICES","CLOTHING & UNIFORMS","4225","P115591-SERVICE-Trousers for Activities Team",10/1/2022 00:00:00,"256914",27.47,"AM0406","AMAZON PAYMENTS UK LIMITED",27/12/2021 00:00:00,30/1/2022 00:00:00,"P10-2022"
,"LEE VALLEY WHITE WATER CENTRE","SUPPLIES AND SERVICES","CLOTHING & UNIFORMS","4225","P115591-SERVICE-Trousers for Activities Team",10/1/2022 00:00:00,"257472",-27.48,"AM0406","AMAZON PAYMENTS UK LIMITED",27/12/2021 00:00:00,30/1/2022 00:00:00,"P10-2022"
,"LEE VALLEY WHITE WATER CENTRE","SUPPLIES AND SERVICES","CLOTHING & UNIFORMS","4225","P116258-SERVICE-Uniform trousers",30/1/2022 00:00:00,"258610",163.45,"AM0406","AMAZON PAYMENTS UK LIMITED",27/12/2021 00:00:00,30/1/2022 00:00:00,"P10-2022"
"P&V","MYDDELTON HOUSE","SUPPLIES AND SERVICES","OFFICE EXPENSES","4311","P115420-SERVICE-antibac wipes nov 21",7/1/2022 00:00:00,"257326",47.6,"TH0008","JKL SOLUTIONS LTD",27/12/2021 00:00:00,30/1/2022 00:00:00,"P10-2022"
"P&V","MYDDELTON HOUSE","SUPPLIES AND SERVICES","OFFICE EXPENSES","4311","P115420-SERVICE-antibac wipes nov 21",11/1/2022 00:00:00,"257327",9.52,"TH0008","JKL SOLUTIONS LTD",27/12/2021 00:00:00,30/1/2022 00:00:00,"P10-2022"
"P&V","MYDDELTON HOUSE","SUPPLIES AND SERVICES","OFFICE EXPENSES","4311","PITNEY BOWES PURCHASE POWER",17/1/2022 00:00:00,"257881",0.57,"PI0021","PITNEY BOWES PURCHASE POWER",27/12/2021 00:00:00,30/1/2022 00:00:00,"P10-2022"
"P&V","MYDDELTON HOUSE","SUPPLIES AND SERVICES","OFFICE EXPENSES","4311","PITNEY BOWES PURCHASE POWER",17/1/2022 00:00:00,"257881",144.9,"PI0021","PITNEY BOWES PURCHASE POWER",27/12/2021 00:00:00,30/1/2022 00:00:00,"P10-2022"
"R&B","INFORMATION TECHNOLOGY","SUPPLIES AND SERVICES","OFFICE EXPENSES","4311","P115927-SERVICE-Q-Connect Ruled Margin Spiral Soft Cover",17/1/2022 00:00:00,"257879",8.51,"TH0008","JKL SOLUTIONS LTD",27/12/2021 00:00:00,30/1/2022 00:00:00,"P10-2022"
"R&B","INFORMATION TECHNOLOGY","SUPPLIES AND SERVICES","OFFICE EXPENSES","4311","P115927-SERVICE-EcoTech Hand and Surface Disinfectant",17/1/2022 00:00:00,"257879",29.14,"TH0008","JKL SOLUTIONS LTD",27/12/2021 00:00:00,30/1/2022 00:00:00,"P10-2022"
"R&B","INFORMATION TECHNOLOGY","SUPPLIES AND SERVICES","OFFICE EXPENSES","4311","P115927-SERVICE-Q-Connect Plain Scribble Pad 160 Pages",17/1/2022 00:00:00,"257879",15.47,"TH0008","JKL SOLUTIONS LTD",27/12/2021 00:00:00,30/1/2022 00:00:00,"P10-2022"
"R&B","INFORMATION TECHNOLOGY","SUPPLIES AND SERVICES","OFFICE EXPENSES","4311","P115927-SERVICE-2Work Gel Hand Sanitiser 240ml x 3 at 2.24 ea",17/1/2022 00:00:00,"257879",6.75,"TH0008","JKL SOLUTIONS LTD",27/12/2021 00:00:00,30/1/2022 00:00:00,"P10-2022"
,"LEE VALLEY MARINA SPRINGFIELD","SUPPLIES AND SERVICES","OFFICE EXPENSES","4311","P115393-SERVICE-To supply items as requested",11/1/2022 00:00:00,"257587",99.66,"TH0008","JKL SOLUTIONS LTD",27/12/2021 00:00:00,30/1/2022 00:00:00,"P10-2022"
,"LEE VALLEY MARINA STANSTEAD","SUPPLIES AND SERVICES","OFFICE EXPENSES","4311","P114974-SERVICE-JKL stationery replacing first aid box items",7/1/2022 00:00:00,"256190",26.89,"TH0008","JKL SOLUTIONS LTD",27/12/2021 00:00:00,30/1/2022 00:00:00,"P10-2022"
,"LEE VALLEY MARINA STANSTEAD","SUPPLIES AND SERVICES","OFFICE EXPENSES","4311","P115954-SERVICE-2xpine dsinfectants  JKL  6.35 each",17/1/2022 00:00:00,"257878",12.7,"TH0008","JKL SOLUTIONS LTD",27/12/2021 00:00:00,30/1/2022 00:00:00,"P10-2022"
,"LEE VALLEY MARINA STANSTEAD","SUPPLIES AND SERVICES","OFFICE EXPENSES","4311","P116000-SERVICE-JKL stationery hand soap, loo blocks etc",17/1/2022 00:00:00,"258102",44.38,"TH0008","JKL SOLUTIONS LTD",27/12/2021 00:00:00,30/1/2022 00:00:00,"P10-2022"
,"LEE VALLEY MARINA STANSTEAD","SUPPLIES AND SERVICES","OFFICE EXPENSES","4311","P116139-SERVICE-toilet rolls and rags for workshop - Initial",20/1/2022 00:00:00,"258267",167.5,"IN0012","INITIAL WASHROOM HYGIENE",27/12/2021 00:00:00,30/1/2022 00:00:00,"P10-2022"
,"LV HOCKEY AND TENNIS CENTRE","SUPPLIES AND SERVICES","OFFICE EXPENSES","4311","P115701-SERVICE-ring binders",17/1/2022 00:00:00,"257910",24.65,"EA0385","EASTERN SHIRE PURCHASING ORGANISATION (ESPO)",27/12/2021 00:00:00,30/1/2022 00:00:00,"P10-2022"
,"LV HOCKEY AND TENNIS CENTRE","SUPPLIES AND SERVICES","OFFICE EXPENSES","4311","P115701-SERVICE-heavy weight embossed clear pockets",17/1/2022 00:00:00,"257910",2.7,"EA0385","EASTERN SHIRE PURCHASING ORGANISATION (ESPO)",27/12/2021 00:00:00,30/1/2022 00:00:00,"P10-2022"
,"LV HOCKEY AND TENNIS CENTRE","SUPPLIES AND SERVICES","OFFICE EXPENSES","4311","P115701-SERVICE-stick n notes",17/1/2022 00:00:00,"257910",3.1,"EA0385","EASTERN SHIRE PURCHASING ORGANISATION (ESPO)",27/12/2021 00:00:00,30/1/2022 00:00:00,"P10-2022"
,"LV HOCKEY AND TENNIS CENTRE","SUPPLIES AND SERVICES","OFFICE EXPENSES","4311","P115317-SERVICE-stationary order",17/1/2022 00:00:00,"257910",20.4,"EA0385","EASTERN SHIRE PURCHASING ORGANISATION (ESPO)",27/12/2021 00:00:00,30/1/2022 00:00:00,"P10-2022"
,"LV HOCKEY AND TENNIS CENTRE","SUPPLIES AND SERVICES","OFFICE EXPENSES","4311","P115701-SERVICE-postion bright coloured dividers",17/1/2022 00:00:00,"257910",5.65,"EA0385","EASTERN SHIRE PURCHASING ORGANISATION (ESPO)",27/12/2021 00:00:00,30/1/2022 00:00:00,"P10-2022"
,"LV HOCKEY AND TENNIS CENTRE","SUPPLIES AND SERVICES","OFFICE EXPENSES","4311","P115701-SERVICE-Economy storage box x2",17/1/2022 00:00:00,"257910",25.9,"EA0385","EASTERN SHIRE PURCHASING ORGANISATION (ESPO)",27/12/2021 00:00:00,30/1/2022 00:00:00,"P10-2022"
,"LV HOCKEY AND TENNIS CENTRE","SUPPLIES AND SERVICES","OFFICE EXPENSES","4311","P115197-SERVICE-d bright colours x2 23922",17/1/2022 00:00:00,"257911",6.77,"EA0385","EASTERN SHIRE PURCHASING ORGANISATION (ESPO)",27/12/2021 00:00:00,30/1/2022 00:00:00,"P10-2022"
,"LV HOCKEY AND TENNIS CENTRE","SUPPLIES AND SERVICES","OFFICE EXPENSES","4311","P115197-SERVICE-p hand writer x2 35259",17/1/2022 00:00:00,"257911",0.73,"EA0385","EASTERN SHIRE PURCHASING ORGANISATION (ESPO)",27/12/2021 00:00:00,30/1/2022 00:00:00,"P10-2022"
,"LV HOCKEY AND TENNIS CENTRE","SUPPLIES AND SERVICES","OFFICE EXPENSES","4311","P115317-SERVICE-stationary order",17/1/2022 00:00:00,"257964",63.8,"EA0385","EASTERN SHIRE PURCHASING ORGANISATION (ESPO)",27/12/2021 00:00:00,30/1/2022 00:00:00,"P10-2022"
,"LEE VALLEY RIDING CENTRE","SUPPLIES AND SERVICES","OFFICE EXPENSES","4311","P115376-SERVICE-1000 memberships card and delivery",10/1/2022 00:00:00,"257793",431.17,"TH0267","THAMES CARD TECHNOLOGY LIMITED",27/12/2021 00:00:00,30/1/2022 00:00:00,"P10-2022"
,"LV LEISURE CENTRE CAMPSITE","SUPPLIES AND SERVICES","OFFICE EXPENSES","4311","RIJO 42 INGREDIENTS LIMITED",17/1/2022 00:00:00,"257516",-445.87,"RI0176","RIJO 42 INGREDIENTS LIMITED",27/12/2021 00:00:00,30/1/2022 00:00:00,"P10-2022"
,"LV LEISURE CENTRE CAMPSITE","SUPPLIES AND SERVICES","OFFICE EXPENSES","4311","RIJO 42 INGREDIENTS LIMITED",17/1/2022 00:00:00,"257516",433.27,"RI0176","RIJO 42 INGREDIENTS LIMITED",27/12/2021 00:00:00,30/1/2022 00:00:00,"P10-2022"
,"LV LEISURE CENTRE CAMPSITE","SUPPLIES AND SERVICES","OFFICE EXPENSES","4311","P116033-SERVICE-Coffe machine supplies",17/1/2022 00:00:00,"257516",445.87,"RI0176","RIJO 42 INGREDIENTS LIMITED",27/12/2021 00:00:00,30/1/2022 00:00:00,"P10-2022"
,"LV LEISURE CENTRE CAMPSITE","SUPPLIES AND SERVICES","OFFICE EXPENSES","4311","RIJO 42 INGREDIENTS LIMITED",17/1/2022 00:00:00,"257516",12.6,"RI0176","RIJO 42 INGREDIENTS LIMITED",27/12/2021 00:00:00,30/1/2022 00:00:00,"P10-2022"
,"LV LEISURE CENTRE CAMPSITE","SUPPLIES AND SERVICES","OFFICE EXPENSES","4311","P116066-SERVICE-Office supplies",18/1/2022 00:00:00,"257877",51.25,"TH0008","JKL SOLUTIONS LTD",27/12/2021 00:00:00,30/1/2022 00:00:00,"P10-2022"
,"LEE VALLEY ATHLETICS CENTRE","SUPPLIES AND SERVICES","OFFICE EXPENSES","4311","P116277-SERVICE-LVAC INV 60254 PINS AND CARDS",30/1/2022 00:00:00,"258178",275.99,"ST0184","STACY & SON",27/12/2021 00:00:00,30/1/2022 00:00:00,"P10-2022"
,"LEE VALLEY ATHLETICS CENTRE","SUPPLIES AND SERVICES","OFFICE EXPENSES","4311","P116310-SERVICE-LVAC CARDS",30/1/2022 00:00:00,"258458",55,"ST0184","STACY & SON",27/12/2021 00:00:00,30/1/2022 00:00:00,"P10-2022"
,"LEE VALLEY WHITE WATER CENTRE","SUPPLIES AND SERVICES","OFFICE EXPENSES","4311","P116164-SERVICE-A3 and A4 paper",25/1/2022 00:00:00,"258421",55.14,"TH0008","JKL SOLUTIONS LTD",27/12/2021 00:00:00,30/1/2022 00:00:00,"P10-2022"
,"LV WHITE WATER CATERING","SUPPLIES AND SERVICES","OFFICE EXPENSES","4311","P116186-SERVICE-till rolls",25/1/2022 00:00:00,"258449",107.2,"TH0008","JKL SOLUTIONS LTD",27/12/2021 00:00:00,30/1/2022 00:00:00,"P10-2022"
"R&B","INFORMATION TECHNOLOGY","SUPPLIES AND SERVICES","PHOTOCOPYING","4314","KONICA MINOLTA BUSINESS SOLUTI",17/1/2022 00:00:00,"257920",270.86,"KO0071","KONICA MINOLTA BUSINESS SOLUTIONS ( UK) LTD",27/12/2021 00:00:00,30/1/2022 00:00:00,"P10-2022"
"R&B","INFORMATION TECHNOLOGY","SUPPLIES AND SERVICES","PHOTOCOPYING","4314","KONICA MINOLTA BUSINESS SOLUTI",20/1/2022 00:00:00,"258288",459.6,"KO0071","KONICA MINOLTA BUSINESS SOLUTIONS ( UK) LTD",27/12/2021 00:00:00,30/1/2022 00:00:00,"P10-2022"
"CEO","PR/COMMUNICATIONS","SUPPLIES AND SERVICES","PRINTING CORPORATE BROCHURES","4321","P115712-SERVICE-500 business letterheads (80gsm bond) for Lee",6/1/2022 00:00:00,"257243",24.33,"SO0582","SOLOPRESS",27/12/2021 00:00:00,30/1/2022 00:00:00,"P10-2022"
"CEO","CHIEF EXECUTIVE","SUPPLIES AND SERVICES","SUBSCRIPTIONS","4334","P116147-SERVICE-Membership & Subscription",19/1/2022 00:00:00,"258263",317.2,"IN0192","INTERNATIONAL ASSOCIATION FOR SPORTS",27/12/2021 00:00:00,30/1/2022 00:00:00,"P10-2022"
"P&V","LEE VALLEY FARM HOLYFIELDHALL","SUPPLIES AND SERVICES","SUBSCRIPTIONS","4334","P113491-SERVICE-Subs",11/1/2022 00:00:00,"257815",205.15,"NA0005","NATIONAL MILK RECORDS PLC",27/12/2021 00:00:00,30/1/2022 00:00:00,"P10-2022"
"P&V","LEE VALLEY FARM HOLYFIELDHALL","SUPPLIES AND SERVICES","SUBSCRIPTIONS","4334","P115091-SERVICE-Subs",11/1/2022 00:00:00,"257815",163.67,"NA0005","NATIONAL MILK RECORDS PLC",27/12/2021 00:00:00,30/1/2022 00:00:00,"P10-2022"
"R&B","REVENUE SUSPENSE (AUTHORITY)","SUPPLIES AND SERVICES","TELEPHONES (MOBILE)","4484","VODAFONE  LIMITED (CORPORATE)",6/1/2022 00:00:00,"257614",609.83,"VO0010","VODAFONE  LIMITED (CORPORATE)",27/12/2021 00:00:00,30/1/2022 00:00:00,"P10-2022"
"R&B","REVENUE SUSPENSE (AUTHORITY)","SUPPLIES AND SERVICES","TELEPHONES (MOBILE)","4484","GAMMA TELECOM LTD",20/1/2022 00:00:00,"258377",699.75,"GA0432","GAMMA TELECOM LTD",27/12/2021 00:00:00,30/1/2022 00:00:00,"P10-2022"
"R&B","REVENUE SUSPENSE (AUTHORITY)","SUPPLIES AND SERVICES","TELEPHONES (MOBILE)","4484","VODAFONE  LIMITED (CORPORATE)",30/1/2022 00:00:00,"258518",570.45,"VO0010","VODAFONE  LIMITED (CORPORATE)",27/12/2021 00:00:00,30/1/2022 00:00:00,"P10-2022"
